{"text_format":"3","workbook":"xlsx","n_sheets":5,"sheets":["OVERALL","Criteria 1","Criteria 2","Criteria 3","Criteria 4"],"not_rendered":{"defined_names":1,"comments":1},"read":"whole","date_system":"1900"}

{"sheet":"OVERALL","index":0,"n_rows":21,"n_cols":17,"rows_kept":21,"merged":[[1,1,4,14],[1,16,6,22],[5,1,6,1],[5,2,5,4],[5,5,5,7],[5,8,5,10],[5,11,5,13],[5,14,6,14],[20,1,20,13]]}
[]
[null,"MATRICA E BAROMETRIT TË REFORMAVE TË BE-së",{"$nulls":14},"Legjendë e renditjes:\n\n0-25 pikë: performancë e dobët;\n26-50 pikë: performancë e kufizuar;\n51-75 pikë: performancë e mirë;\n76-100 pikë: performancë shumë e mirë."]
[]
[]
[]
[null,"Institucioni","Kriteri 1: Kompleksiteti I masave",null,null,"Kriteri 2: Planifikimi vs obligimet evropiane ",null,null,"Kriteri 3: Zbatimi I masave të planifikuara",null,null,"Kriteri 4: Vlerësimi i raportit të vendit të BE-së",null,null,"Rezultati I përgjithshëm (shuma e pikëve)"]
[null,null," Nota","Pesha (25%)","Pikët (Nota x Pesha )  "," Nota","Pesha (35%)","Pikët (Nota x Pesha )  "," Nota","Pesha (30%)","Pikët (Nota x Pesha )  "," Nota","Pesha (10%)","Pikët (Nota x Pesha )  "]
[null,"Ministria e Ekonomisë",{"$f":"'Criteria 1'!O19","v":10},2.5,{"$f":"C8*D8","v":25},{"$f":"'Criteria 2'!D16","v":4},3.5,{"$f":"F8*G8","v":14},{"$f":"'Criteria 3'!F18","v":5},3,{"$f":"I8*J8","v":15},{"$f":"'Criteria 4'!C6","v":10},1,{"$f":"L8*M8","v":10},{"$f":"N8+K8+H8+E8","v":64}]
[null,"Ministria e Mjedisit, Planifikimit Hapësinor dhe Infrastrukturës",{"$f":"'Criteria 1'!O57","v":9},2.5,{"$f":"C9*D9","v":22.5},{"$f":"'Criteria 2'!D96","v":5},3.5,{"$f":"F9*G9","v":17.5},{"$f":"'Criteria 3'!F57","v":8},3,{"$f":"I9*J9","v":24},{"$f":"'Criteria 4'!C10","v":0},1,{"$f":"L9*M9","v":0},{"$f":"N9+K9+H9+E9","v":64}]
[null,"Ministria e Arsimit, Shkencës, Teknologjisë dhe Inovacionit",{"$f":"'Criteria 1'!O98","v":6},2.5,{"$f":"C10*D10","v":15},{"$f":"'Criteria 2'!D126","v":4},3.5,{"$f":"F10*G10","v":14},{"$f":"'Criteria 3'!F98","v":7},3,{"$f":"I10*J10","v":21},{"$f":"'Criteria 4'!C15","v":10},1,{"$f":"L10*M10","v":10},{"$f":"N10+K10+H10+E10","v":60}]
[null,"Ministria e Bujqësisë, Pylltarisë dhe Zhvillimit Rural",{"$f":"'Criteria 1'!O108","v":10},2.5,{"$f":"C11*D11","v":25},{"$f":"'Criteria 2'!D146","v":3},3.5,{"$f":"F11*G11","v":10.5},{"$f":"'Criteria 3'!F108","v":8},3,{"$f":"I11*J11","v":24},{"$f":"'Criteria 4'!C19","v":0},1,{"$f":"L11*M11","v":0},{"$f":"N11+K11+H11+E11","v":{"v":59.5,"d":"60"}}]
[null,"Ministria e Punëve të Brendshme",{"$f":"'Criteria 1'!O158","v":7},2.5,{"$f":"C12*D12","v":17.5},{"$f":"'Criteria 2'!D174","v":4},3.5,{"$f":"F12*G12","v":14},{"$f":"'Criteria 3'!F158","v":8},3,{"$f":"I12*J12","v":24},{"$f":"'Criteria 4'!C23","v":0},1,{"$f":"L12*M12","v":0},{"$f":"N12+K12+H12+E12","v":{"v":55.5,"d":"56"}}]
[null,"Ministria e Industrisë, Ndërmarrësisë dhe Tregtisë",{"$f":"'Criteria 1'!O199","v":7},2.5,{"$f":"C13*D13","v":17.5},{"$f":"'Criteria 2'!D237","v":2},3.5,{"$f":"F13*G13","v":7},{"$f":"'Criteria 3'!F199","v":7},3,{"$f":"I13*J13","v":21},{"$f":"'Criteria 4'!C33","v":10},1,{"$f":"L13*M13","v":10},{"$f":"N13+K13+H13+E13","v":{"v":55.5,"d":"56"}}]
[null,"Ministria e Drejtësisë",{"$f":"'Criteria 1'!O208","v":10},2.5,{"$f":"C14*D14","v":25},{"$f":"'Criteria 2'!D252","v":2},3.5,{"$f":"F14*G14","v":7},{"$f":"'Criteria 3'!F208","v":7},3,{"$f":"I14*J14","v":21},{"$f":"'Criteria 4'!C36","v":0},1,{"$f":"L14*M14","v":0},{"$f":"N14+K14+H14+E14","v":53}]
[null,"Ministria e Financave, Punës dhe Transfereve",{"$f":"'Criteria 1'!O249","v":7},2.5,{"$f":"C15*D15","v":17.5},{"$f":"'Criteria 2'!D297","v":4},3.5,{"$f":"F15*G15","v":14},{"$f":"'Criteria 3'!F249","v":7},3,{"$f":"I15*J15","v":21},{"$f":"'Criteria 4'!C43","v":0},1,{"$f":"L15*M15","v":0},{"$f":"N15+K15+H15+E15","v":{"v":52.5,"d":"53"}}]
[null,"Ministria për Komunitete dhe Kthim",{"$f":"'Criteria 1'!O256","v":3},2.5,{"$f":"C16*D16","v":7.5},{"$f":"'Criteria 2'!D303","v":4},3.5,{"$f":"F16*G16","v":14},{"$f":"'Criteria 3'!F256","v":8},3,{"$f":"I16*J16","v":24},{"$f":"'Criteria 4'!C46","v":0},1,{"$f":"L16*M16","v":0},{"$f":"N16+K16+H16+E16","v":{"v":45.5,"d":"46"}}]
[null,"Ministria e Shëndetësisë",{"$f":"'Criteria 1'!O271","v":9},2.5,{"$f":"C17*D17","v":22.5},{"$f":"'Criteria 2'!D316","v":2},3.5,{"$f":"F17*G17","v":7},{"$f":"'Criteria 3'!F271","v":5},3,{"$f":"I17*J17","v":15},{"$f":"'Criteria 4'!C49","v":0},1,{"$f":"L17*M17","v":0},{"$f":"N17+K17+H17+E17","v":{"v":44.5,"d":"45"}}]
[null,"Zyra e Kryeministrit",{"$f":"'Criteria 1'!O291","v":6},2.5,{"$f":"C18*D18","v":15},{"$f":"'Criteria 2'!D329","v":0},3.5,{"$f":"F18*G18","v":0},{"$f":"'Criteria 3'!F291","v":8},3,{"$f":"I18*J18","v":24},{"$f":"'Criteria 4'!C53","v":0},1,{"$f":"L18*M18","v":0},{"$f":"N18+K18+H18+E18","v":39}]
[null,"Ministria e Kulturës, Rinisë dhe Sportit",{"$f":"'Criteria 1'!O298","v":8},2.5,{"$f":"C19*D19","v":20},{"$f":"'Criteria 2'!D338","v":2},3.5,{"$f":"F19*G19","v":7},{"$f":"'Criteria 3'!F298","v":3},3,{"$f":"I19*J19","v":9},{"$f":"'Criteria 4'!C57","v":0},1,{"$f":"L19*M19","v":0},{"$f":"N19+K19+H19+E19","v":36}]
[null,"Ministria e Administrimit të Pushtetit Lokal",{"$f":"'Criteria 1'!O309","v":2},2.5,{"$f":"C20*D20","v":5},{"$f":"'Criteria 2'!D349","v":0},3.5,{"$f":"F20*G20","v":0},{"$f":"'Criteria 3'!F309","v":8},3,{"$f":"I20*J20","v":24},{"$f":"'Criteria 4'!C60","v":0},1,{"$f":"L20*M20","v":0},{"$f":"N20+K20+H20+E20","v":29}]
[null,"Qeveria",{"$nulls":12},{"$f":"AVERAGE(O8:O20)","v":{"v":50.61538461538461,"d":"51"}}]

{"sheet":"Criteria 1","index":1,"n_rows":311,"n_cols":17,"rows_kept":311,"merged":[[0,0,0,14],[1,0,2,0],[1,1,2,1],[1,2,2,2],[1,3,2,3],[1,4,2,4],[1,5,1,14],[3,0,3,14],[3,16,14,17],[17,0,17,13],[18,0,18,13],[19,0,19,14],[55,0,55,13],[56,0,56,13],[57,0,57,14],[96,0,96,13],[97,0,97,13],[98,0,98,14],[106,0,106,13],[107,0,107,13],[108,0,108,14],[156,0,156,13],[157,0,157,13],[158,0,158,14],[197,0,197,13],[198,0,198,13],[199,0,199,14],[206,0,206,13],[207,0,207,13],[208,0,208,14],[247,0,247,13],[248,0,248,13],[249,0,249,14],[254,0,254,13],[255,0,255,13],[256,0,256,14],[269,0,269,13],[270,0,270,13],[271,0,271,14],[289,0,289,13],[290,0,290,13],[291,0,291,14],[296,0,296,13],[297,0,297,13],[298,0,298,14],[307,0,307,13],[308,0,308,13],[310,0,310,14]]}
["Kriteri 1: Kompleksiteti i masave\nMinistritë planifikojnë masa të ndryshme në kuadër të Programit Kombëtar për Integrim Evropian dhe Agjendës së Reformës Evropiane. Në disa raste, këto masa janë relevante, të planifikuara mirë, strategjike, komplekse dhe të kujdesshme financiarisht. Në raste të tjera, ata nuk janë. Qëllimi i këtij vlerësimi është të bëjë dallimin ndërmjet masave të BE-së të planifikuara mirë dhe më pak të planifikuara mirë, duke shpërblyer kështu ministritë me performancë më të mirë."]
["Institution","Priority/Chapter","Masat","Afati","Referencë","Criteria 1: Kompleksiteti I masave"]
[{"$nulls":5},"Specifike","E matshme","Reformë","Intensiteti i burimeve","Kompleksiteti ndërinstitucional","Nivelet e miratimit","Prioritet i MSA-së dhe ERA-s","Masa përafron Acquis","Ndjeshmëria politike","Totali"]
["Ministria e Ekonomisë",{"$nulls":15},"SAA priority chapters:\n\n1. Chapter 1: Free Movement of Goods\n2. Chapter 3: Right of Establishment and Freedom to Provide Services\n3. Chapter 5: Public Procurement\n4. Chapter 6: Company Law\n5. Chapter 7: Intellectual Property Law\n6. Chapter 8: Competition Policy\n7. Chapter 12: Food Safety, Veterinary and Phytosanitary Policy\n8. Chapter 23: Judiciary and Fundamental Rights\n9. Chapter 24: Justice, Freedom and Security\n10. Public Administration Reform (PAR)"]
["ME",null,"Projektligji për energji, i miratuar","K4 2023","PKIE",1,1,1,1,1,1,1,1,0,{"$f":"SUM(F5:N5)","v":8}]
["ME",null,"Projektligji për rregullatorin e energjisë, i miratuar","K4 2023","PKIE",1,1,1,1,1,1,1,1,0,8]
["ME",null,"Projektligji për burimet e ripërtëritshme të energjisë, i miratuar","K2 2023","PKIE\nERA (K4 2022)",1,1,1,1,1,1,1,1,0,8]
["ME",null,"Programi i Zbatimit të Strategjisë së Energjisë, i miratuar","K3 2023","PKIE\nERA (K2 2022)",1,1,1,1,1,1,1,0,0,7]
["ME",null,"Plani i Energjisë dhe Klimës 2021-2030, i miratuar","K2 2022","ERA",1,1,1,1,1,1,1,0,0,7]
["ME",null,"Rregullorja për skemën e re mbështetëse për BRE","K4 2022","ERA",1,1,1,1,1,1,1,1,0,8]
["ME",null,"Dizajnimi i skemës konkurruese për BRE","K4 2022","ERA",1,1,1,1,1,1,1,0,0,7]
["ME",null,"Hapja e tregut të energjisë për konsumatorët e nivelit të tensionit 35 kv dhe 10 kv","K2 2022","ERA",1,1,1,1,1,1,1,0,0,7]
["ME",null,"Projektligji i plotësuar-ndryshuar për ndërmarrje publike, bazuar në rekomandimet e BE dhe praktikat e mira, i miratuar","K2 2022","ERA",1,1,1,1,1,1,1,1,0,8]
["ME",null,"Aktet nënligjore të miratuara","K4 2022","ERA",1,1,1,1,1,1,1,1,0,8]
["ME",null,"Kodi i etikës dhe qeverisjes korporative të ndërmarrjeve publike, i miratuar","K3 2022","ERA",1,1,0,0,0,0,1,0,0,3]
["ME",null,"Agjenda Digjitale për Kosovën 2030, e miratua","K3 2023","PKIE",1,1,1,1,1,1,1,1,0,8]
["ME",null,"Njëzet (20) pirgje të rrjetit mobil, ‘5G ready’, të lidhura me infrastrukturë fikse brezgjerë","K4 2023","PKIE",1,1,1,1,1,1,1,0,0,7]
["Përqindja",{"$nulls":13},{"v":0.92,"d":"92%"}]
["Rezultati i përgjithshëm",{"$nulls":13},10]
["Ministria e Mjedisit, Planifikimit Hapësinor dhe Infrastrukturës"]
["MMPHI","K14: Politikat e Transportit","Projektligji për plotësim-ndryshimin e Ligjit për Transportin Rrugor, i miratuar","K4 2023","PKIE",1,1,1,0,1,1,0,1,0,{"$f":"SUM(F21:N21)","v":6}]
["MMPHI","K14: Politikat e Transportit","UA për kontrollimin e rregullsisë teknike të automjeteve në rrugë, i miratuar","K2 2023","PKIE",1,1,0,0,0,0,0,1,0,{"$f":"SUM(F22:N22)","v":3}]
["MMPHI","K14: Politikat e Transportit","Plani i veprimit 2023-2025 për zbatimin e Strategjisë së transportit multimodal 2023-2030, i miratuar","K4 2023","PKIE",1,1,1,1,1,1,0,0,0,6]
["MMPHI","K14: Politikat e Transportit","Koncept dokumenti për hekurudha, i miratuar","K4 2023","PKIE",1,1,1,0,1,0,1,0,0,5]
["MMPHI","K14: Politikat e Transportit","Koncept dokumenti për transportin e mallrave të rrezikshme, i miratuar","K3 2023","PKIE",1,1,1,0,1,0,1,0,0,5]
["MMPHI","K27: Mjedisi","Projektligji për plotësim-ndryshimin e Ligjit për Vlerësimin Strategjik Mjedisor, i miratuar ","K3 2023","PKIE",1,1,1,1,1,1,1,1,0,8]
["MMPHI","K27: Mjedisi","Projektligji për ndryshime klimatike, i miratuar","K2 2023","PKIE",1,1,1,1,1,1,1,1,0,8]
["MMPHI","K27: Mjedisi","Projektligji për inspektimin në fushën e mjedisit, ujërave, natyrës, planifikimit hapësinor, ndërtimit dhe banimit, i miratuar","K4 2023","PKIE",1,1,1,1,1,1,1,1,0,8]
["MMPHI","K27: Mjedisi","UA për ambalazhim/paketim dhe mbeturinat e ambalazhimit/ paketimit, i miratuar ","K2 2023","PKIE",1,1,1,0,1,0,1,1,0,6]
["MMPHI","K27: Mjedisi","Strategjia për Mbrojtjen e Mjedisit dhe Zhvillim të Qëndrueshëm 2022-2030, e miratuar","K3 2023","PKIE/ERA",1,1,1,0,1,0,1,0,0,5]
["MMPHI","K27: Mjedisi","Strategjia Shtetërore e Ujërave të Kosovës 2023-2027 dhe Plani i Veprimit 2023-2025 për zbatimin e saj, i miratuar","K2 2023","PKIE/ERA",1,1,1,0,1,0,1,0,0,5]
[null,null,"Koncept dokumenti për fushën e ujërave, i miratuar ","K2 2023","PKIE",1,1,1,0,1,0,1,0,0,{"$f":"SUM(F32:N32)","v":5}]
[null,null,"Koncept dokumenti për fushën e mbrojtjes së natyrës, i miratuar ","K3 2023","PKIE",1,1,1,0,1,0,1,0,0,5]
[null,null,"Plani për menaxhimin e mbeturinave ndërtimore dhe të demolimit, i miratuar ","K2 2023","PKIE/ERA",1,1,1,0,1,1,1,0,0,6]
[null,null,"Numri i inspektorëve të trajnuar për të kontrolluar zbatimin e legjislacionit mjedisor ","K4 2023","PKIE/ERA",0,0,0,0,0,0,0,0,0,0]
[null,null,"Numri i zonave të reja të natyres (rreth 10), të mbrojtura ","K4 2023","PKIE/ERA",1,1,1,1,1,1,1,0,0,7]
[null,null,"Numri i deponive ilegale në komuna të identifikuara dhe reduktuara","K3 2023","PKIE/ERA",0,0,0,0,0,0,0,0,0,0]
[null,null,"Inventari i gazrave serrë për vitin 2021, i përgatitur","K2 2023","PKIE",1,1,1,1,1,0,0,0,0,5]
[null,null,"Projektligji për mbrojtjen e ajrit nga ndotja, i miratuar","K1 2022","ERA",1,1,1,1,0,1,1,1,0,{"$f":"SUM(F39:N39)","v":7}]
[null,null,"Projektligji për ujërat e Kosovës, i miratuar","K1 2022","ERA",1,1,1,1,1,1,1,1,0,8]
[null,null,"Projektligji për mbeturinat, i miratuar","K2 2021","ERA",1,1,1,1,1,1,1,1,0,8]
[null,null,"Fillimi i hartimit të strategjisë për dekarbonizim","K4 2021","ERA",1,1,1,1,1,1,1,1,0,8]
[null,null,"Plani i rishikuar kombëtar për cilësinë e ajrit, i miratuar","K4 2022","ERA",1,1,1,1,1,1,1,0,0,7]
[null,null,"Plani për menaxhimin e mbeturinave me VSM në zonën e Prishtinës, i \nhartuar","K2 2023","ERA",1,1,1,1,1,1,1,0,0,7]
[null,null,"Plani i menaxhimit për pellgun e lumit Drini i Bardhë, i finalizuar","K4 2022","ERA",1,1,1,1,1,1,1,0,0,7]
[null,null,"Rrjeti i monitorimit të ujërave nëntokësore, i funksionalizuar","K4 2022","ERA",0,0,0,0,0,0,0,0,0,0]
["MMPHI","K27: Mjedisi","Trajnimi i nivelit komunal për zbatimin e legjislacionit për menaxhimin e \nmbeturinave","K4 2022","ERA",0,0,0,0,0,0,0,0,0,0]
[null,null,"Fillimi i zbatimit të projekteve për menaxhimin e mbeturinave të \nrrezikshme: objektin për ruajtjen e përkohshme të mbetjeve të rrezikshme, \ndekomisionimi i Kosovës A","K3 2021","ERA",1,1,1,1,1,1,1,0,0,7]
[null,null,"Qendrat e transferimit dhe riciklimit në Skenderaj, Klinë, Istog, \nNovobërdë, të ndërtuara","K2 2023","ERA",1,1,1,1,1,1,1,0,0,7]
[null,null,"Fillimi i krijimit të sistemit të rikthimit të depozitës për shishe, plastikë \ndhe kanaçe","K4 2022","ERA",1,1,1,1,1,1,1,0,0,7]
[null,null,"Plotësim-ndryshimi i Ligjit nr.03/L-233 për mbrojtjen e natyrës","K3 2021","ERA",1,1,1,1,1,1,1,1,0,8]
[null,null,"Monitorimi dhe raportimi për gjendjen e zonave të mbrojtura dhe \nbiodiversitetit","K4 2022","ERA",0,0,0,0,0,0,0,0,0,0]
[null,null,"Plani hapësinor për parkun kombëtar ‘Sharri’, i miratuar ","K2 2023","ERA",1,1,1,1,1,1,1,0,0,7]
[null,null,"Plani hapësinor i parkut kombëtar ‘Bjeshkët e Nemuna’, i miratuar","K2 2022","ERA",1,1,1,1,1,1,1,0,0,7]
[null,null,"Krijimi i Sistemit online të Informacionit Mjedisor","K1 2023","ERA",1,1,1,1,1,1,1,0,0,7]
["Përqindja",{"$nulls":13},{"v":0.83,"d":"83%"}]
["Rezultati i përgjithshëm",{"$nulls":13},9]
["Ministria e Arsimit, Shkencës, Teknologjisë dhe Inovacionit"]
["MASHTI","K3: E drejta e themelimit dhe liria e ofrimit të shërbimeve","UA për plotësim-ndryshimin e UA për Standardet dhe Procedurat e Verifikimit të Standardeve të Profesionit, i miratuar","K4 2023","PKIE",1,1,1,0,0,0,0,1,0,{"$f":"SUM(F59:N59)","v":4}]
["MASHTI","K25: Shkenca dhe hulumtimet","Mbështetja e qendrave mësimore për romë, ashkalinj dhe egjiptianë","K4 2023","PKIE",0,0,0,0,0,0,0,0,0,0]
["MASHTI","K25: Shkenca dhe hulumtimet","Bursat për nxënës dhe studentë romë, ashkalinj dhe egjiptianë, të ndara","K4 2023","PKIE",0,0,0,0,0,0,0,0,0,0]
["MASHTI","K25: Shkenca dhe hulumtimet","Programi Kombëtar i Shkencës, i hartuar ","K4 2023","PKIE",1,1,1,1,1,1,1,0,0,7]
[null,null,"Platforma KRIS, e finalizuar dhe lansuar","K4 2023","PKIE",1,1,1,1,1,1,1,1,0,8]
[null,null,"Pikat kombëtare të kontaktit për Programin Horizon, të funksionalizuara ","K4 2023","PKIE",1,1,1,null,1,null,1,0,0,5]
[null,null,"Kurrikula bërthamë për edukimin në fëmijërinë e hershme, e hartuar dhe miratuar ","K4 2023","PKIE",1,1,1,1,1,1,1,0,0,7]
[null,null,"Korniza Kurrikulare për AAP, e miratuar","K4 2023","PKIE",1,1,1,1,1,1,1,0,0,7]
[null,null,"Infrastruktura e pershtatur (pjerrinat) në 14 shkolla, brenda dhe jashte objektit","K4 2023","PKIE",1,1,1,null,0,null,1,0,0,4]
[null,null,"Së pagu 20 Inspektorë të rinj, të rekrutuar ","K4 2023","PKIE",1,1,1,1,0,0,1,0,0,{"$f":"SUM(F68:N68)","v":5}]
[null,null,"Raportet për 400 mësimdhënës dhe 30 institucione arsimore për nivelin e performancës së arritur, të hartuara","K4 2022","ERA",1,1,1,1,1,1,1,0,0,7]
[null,null,"Roli i koordinatorëve të cilësisë i definuar përmes miratimit të UA","K4 2022","ERA",0,0,0,0,0,0,1,0,0,1]
[null,null,"Të gjitha shkollat kanë koordinator të cilësisë të trajnuar dhe që dedikojnë numër të caktuar të orëve për çështje të cilësisë","K1 2023","ERA",1,1,1,1,1,1,1,0,0,7]
[null,null,"Standardet për monitorim të miratuara","K3 2021","ERA",1,1,1,1,1,1,1,0,0,7]
[null,null,"Miratimi i politikave (rregulloreve) për sigurim të brendshëm të cilësisë","K2 2022","ERA",0,0,0,0,0,0,1,0,0,1]
[null,null,"Planit Strategjik i AKA-së, i miratuar","K4 2021","ERA",1,1,1,1,1,1,1,0,0,7]
[null,null,"Njëzetepesë (25) inspektorë të rinj të arsimit, të rekrutuar përmes procesit konkurrues","K4 2021","ERA",1,1,1,1,1,1,1,0,0,7]
[null,null,"Pesëmbëdhjetë (15) programe të zhvillimit profesional të mësimdhënësve, të miratuara","K1 2022","ERA",1,1,1,1,1,1,1,0,0,7]
[null,null,"Numri i mësimdhënësve të licencuar","K4 2022","ERA",0,0,0,0,0,0,1,0,0,1]
[null,null,"Kurrikulat bërthamë për klasën 11 dhe 12 të zhvilluara","K2 2022","ERA",1,1,1,1,1,1,1,0,0,7]
[null,null,"Pakot mësimore për klasën 10, 11 dhe 12 të zhvilluara","K2 2022","ERA",1,1,1,1,1,1,1,0,0,7]
[null,null,"Trajnimi i 1,500 mësimdhënësve për zbatimin e Kurrikulës bërthamë","K2 2022","ERA",1,1,1,1,1,1,1,0,0,7]
[null,null,"Projektligji për Agjencinë e Akreditimit, i miratuar ","K3 2021","ERA",1,1,1,1,1,1,1,0,0,7]
[null,null,"Projektligji për Arsimin e Lartë, i miratuar","K4 2022","ERA",1,1,1,1,1,1,1,0,0,7]
[null,null,"Rregullorja për organizimin e brendshëm dhe sistematizimin e vendeve të punës në MAShTI, e miratuar","K3 2021","ERA",1,1,1,1,1,0,1,0,0,6]
[null,null,"Vlerësimi i realizuar dhe rekomandimet e përfshira në PSAK të ri","K4 2021","ERA",1,1,1,1,1,0,1,0,0,6]
[null,null,"Zbatimi i së paku 3 programeve prioritare trajnuese për secilën nga fushat e arsimit të lartë, para-universitar dhe AAP","K4 2022","ERA",1,1,1,1,1,0,1,0,0,6]
[null,null,"Menaxhmenti i MAShTI-t i trajnuar për zbatim të instrumentit të mbështetjes direkte buxhetore","K4 2022","ERA",1,1,0,0,0,0,1,0,0,3]
["MASHTI","K25: Shkenca dhe hulumtimet","Menaxhmenti i MAShTI-t i trajnuar për planifikimin dhe menaxhimin e fondeve të jashtme përfshirë menaxhimin e deleguar","K4 2022","ERA",1,1,0,0,0,0,1,0,0,3]
[null,null,"Projektligji për edukimin në fëmijërinë e hershme 0-6 vjeç, i miratuar","K2 2022","ERA",1,1,1,1,1,1,1,0,0,7]
[null,null,"UA për detyrat, përgjegjësitë, procedurat dhe kriteret e zgjedhjes së drejtorit dhe të zëvendësdrejtorit të institucionit edukativo-arsimor dhe aftësues para-universitar me përfshirje të aspekteve gjinore, i miratuar","K3 2022","ERA",1,1,1,0,0,0,1,0,0,4]
[null,null,"UA për Procedurat e përzgjedhjes së personelit edukativo-arsimor në institucionet edukativo-arsimore dhe aftësuese (IEAA) të arsimit para-universitar me përfshirje të aspekteve gjinore, i miratuar","K3 2022","ERA",1,1,1,0,0,0,1,0,0,4]
[null,null,"Takime informuese në të gjitha DKA-të, të realizuara","K4 2022","ERA",1,1,0,0,0,0,1,0,0,3]
[null,null,"Trajnime me stafin e 6 qendrave burimore, trajnime me edukatoret e nivelit parashkollor, para-fillor si dhe mësimdhënësit e shkollave fillore, të mesme të ulëta dhe të larta","K3 2022","ERA",1,1,0,0,0,0,1,0,0,3]
[null,null,"Trajnimi i institucioneve dhe ekipeve vlerësuese komunale dhe parashkollore për përdorim të instrumenteve për vlerësimin e fëmijëve me nevoja të veçanta","K3 2022","ERA",0,0,0,0,0,0,1,0,0,1]
[null,null,"Financimi i mjaftueshëm i qendrave ekzistuese të të mësuarit","K4 2022","ERA",0,0,0,0,0,0,1,0,0,1]
[null,null,"20 komuna dhe shkolla për zbatimin e platformës për parandalim dhe reagim ndaj braktisjes dhe dhunës, të mbështetura","K4 2022","ERA",1,1,1,1,0,0,1,0,0,5]
[null,null,"Zbatimi i instruksioneve dhe udhëzuesit për themelimin dhe funksionimin e Qendrave Mësimore","K4 2022","ERA",0,0,0,0,0,0,1,0,0,1]
["Përqindja",{"$nulls":13},{"v":0.58,"d":"58%"}]
["Rezultati i përgjithshëm",{"$nulls":13},6]
["Ministria e Bujqësisë, Pylltarisë dhe Zhvillimit Rural"]
["MBPZHR","Perkrahja bujqesise dhe zhvillimit rural","Projektligji për organizimin e tregut të përbashkët të produkteve bujqësore, i miratuar","K1 2023","PKIE",1,1,1,1,1,1,1,1,0,{"$f":"SUM(F100:N100)","v":8}]
["MBPZHR","Perkrahja bujqesise dhe zhvillimit rural","Projektligji për tokën bujqësore, i miratuar","K4 2023","PKIE",1,1,1,1,1,1,1,1,0,8]
["MBPZHR","Perkrahja bujqesise dhe zhvillimit rural","Programi për bujqësi dhe zhvillim rural 2022-2027, i miratuar","K1 2023","PKIE",1,1,1,1,0,1,1,0,0,6]
["MBPZHR","Perkrahja bujqesise dhe zhvillimit rural","Plani kombëtar për bujqësi organike, i miratuar","K2 2023","PKIE",1,1,0,1,1,1,1,0,0,{"$f":"SUM(F103:N103)","v":6}]
["MBPZHR","Avancimi i sigurisë së ushqimit, fitosanitarise dhe veterinarisë","Projektligj i për veterinarinë, i miratuar","K4 2023","PKIE",1,1,1,1,1,1,1,1,0,{"$f":"SUM(F104:N104)","v":8}]
["MBPZHR","Avancimi i sigurisë së ushqimit, fitosanitarise dhe veterinarisë","Plani për avancimin e ndërmarrjeve agro-ushqimore, i miratuar","K4 2023","PKIE",1,1,0,1,0,1,1,1,0,6]
["MBPZHR","Avancimi i sigurisë së ushqimit, fitosanitarise dhe veterinarisë","Inventarizimi i peshkut (pilotprojekt) në një (1) pellg lumor, i finalizuar","K4 2023","PKIE",1,1,1,1,1,0,1,0,0,{"$f":"SUM(F106:N106)","v":6}]
["Përqindja",{"$nulls":13},{"v":1,"d":"100%"}]
["Rezultati i përgjithshëm",{"$nulls":13},10]
["Ministria e Punëve të Brendshme"]
["MPB","Ofrimi i sherbimeve cilesore publike","Projektligji për plotësim-ndryshim e ligjeve që përmbajnë procedura të veçanta administrative dhe harmonizimin e tyre me ligjin për procedurën e përgjithshme administrative, faza e dytë, i miratuar","K3 2023","PKIE",1,1,1,1,1,1,1,1,0,{"$f":"SUM(F110:N110)","v":8}]
["MPB","Ofrimi i sherbimeve cilesore publike","Së paku 50 shërbime të reja në platformën eKosova, të funksionalizuar","K4 2023","PKIE",1,1,1,1,1,0,1,1,0,7]
["MPB","Ofrimi i sherbimeve cilesore publike","Sistemi ARIS dhe Sistemi Qendror për Regjistrim Civil, të funksionalizuar dhe ndërlidhur","K2 2023","ERA",1,1,1,0,1,0,1,0,0,{"$f":"SUM(F112:N112)","v":5}]
["MPB","Ofrimi i sherbimeve cilesore publike","Të paktën 20% të projektligjeve ekzistuese, draft ligjeve, akteve nënligjore dhe udhëzimeve administrative që përmbajnë procedura të veçanta administrative dhe janë pjesë e programit legjislativ, të harmonizuara me LPPA","K4 2021","ERA",1,1,1,1,1,1,1,0,0,7]
["MPB","Ofrimi i sherbimeve cilesore publike","Faza e tretë e digjitalizimit të librave të skanuar, përkatësisht verifikimi i të dhënave dhe lidhja/përputhja e të dhënave, e zbatuar","K4 2022","ERA",1,1,0,0,1,0,0,0,0,3]
["MPB","Ofrimi i sherbimeve cilesore publike","Ofrimi i shërbimeve të gjendjes civile në komunat veriore","K4 2022","ERA",1,1,1,1,1,0,1,0,0,6]
["MPB","Ofrimi i sherbimeve cilesore publike","Rishikimi i kornizës ligjore dhe popullimi i regjistrit qendror me të gjitha të dhënat e qytetarëve, përfshirë ato historike, duke zvogëluar rastet e personave pa dokumente","K4 2022","ERA",1,1,1,1,1,0,0,0,0,5]
["MPB","Krijimi i administrates Evropiane publike","Projektligji për plotësim-ndryshim e Ligjit për Organizimin dhe Funksionimin e Administratës Shtetërore dhe Agjencive të Pavarura, i miratuar","K3 2023","PKIE",1,1,1,1,0,1,1,0,0,6]
["MPB","Krijimi i administrates Evropiane publike","Platforma digjitale për raportimin mbi zbatimin e kornizës strategjike të RAP, e funksionalizuar","K1 2023","PKIE",1,1,1,1,1,0,1,0,0,6]
["MPB","Krijimi i administrates Evropiane publike","Gjashtë (6) rregullore për zbatimin e Ligjit për Zyrtarët Publikë, të plotësuara-ndryshuara","K4 2021","ERA",1,1,1,1,0,1,0,0,0,5]
["MPB","Krijimi i administrates Evropiane publike","Memorandum shpjegues për ligjin për inspektim administrativ, i hartuar","K4 2021","ERA",1,1,0,0,0,0,0,0,0,2]
["MPB","Krijimi i administrates Evropiane publike","Projektligji për inspektimin administrativ, i miratuar","K2 2022","ERA",1,1,1,1,1,1,1,0,0,7]
["MPB","Racionalizimi i agjencive","Projektligji për valën e tretë të racionalizimit të agjencive, i miratuar","K4 2023","PKIE\nERA (K1 2023)",1,1,1,1,1,1,1,0,0,7]
["MPB","Racionalizimi i agjencive","Projektligji për valën e dytë të racionalizimit të agjencive, i miratuar","K2 2022","ERA",1,1,1,1,1,1,1,0,0,7]
["MPB","Racionalizimi i agjencive","Koncept dokumenti për valën e tretë të racionalizimit të agjencive, i miratuar","K3 2022","ERA",1,1,1,1,1,1,1,0,0,7]
["MPB","Racionalizimi i agjencive","Koncept dokumenti për valën e katërt të racionalizimit të agjencive, i miratuar","K4 2022","ERA",1,1,1,1,1,1,1,0,0,7]
["MPB","Racionalizimi i agjencive","Plani për racionalizimin e agjencive, i rishikuar","K2 2023","PKIE",1,1,0,0,0,0,0,0,0,2]
["MPB","Zbatimi i politikave efektive te migrimit","Së paku tridhjetekatër (34) prej tridhjetetetë (38) planeve lokale të veprimit për riintegrim, të miratuara","K4 2023","PKIE",1,1,1,1,1,1,0,0,0,6]
["MPB","Zbatimi i politikave efektive te migrimit","Qarkorja informative për zbatimin e politikave për riintegrim të qëndrueshëm, e hartuar","K4 2023","PKIE",1,1,0,0,1,0,0,0,0,3]
["MPB","Zbatimi i politikave efektive te migrimit","Udhëzuesi për monitorimin e integrimit të të huajve, i hartuar","K4 2023","PKIE",1,1,0,0,0,0,0,0,0,2]
["MPB","Zbatimi i politikave efektive te migrimit","Profili i Zgjeruar i Migrimit 2018- 2022, i miratuar","K4 2023","PKIE",1,1,1,1,1,0,1,0,0,6]
["MPB","Zbatimi i politikave efektive te migrimit","Profili i Lehtë i Migrimit 2022, i miratuar","K4 2023","PKIE",1,1,1,1,1,0,1,0,0,6]
["MPB","Zbatimi i politikave efektive te migrimit","Trajnim i trajnerëve (TT) me pjesëmarrjen e së paku dhjetë (10) zyrtarëve të nivelit qendror dhe lokal, për integrimin e të huajve, i mbajtur","K4 2023","PKIE",1,1,0,0,0,0,0,0,0,2]
["MPB","Zbatimi i politikave efektive te migrimit","Së paku pesë (5) trajnime, për 400 zyrtarë të nivelit qendror dhe lokal, për zbatimin e politikave për riintegrimin dhe integrimin e të huajve, të mbajtur","K4 2023","PKIE",1,1,1,0,0,0,1,0,0,4]
["MPB","Zbatimi i politikave efektive te migrimit","Së paku dy (2) zyrtarë në Qendrën e Përkohshme të Pritjes, të sistemuar","K4 2023","PKIE",1,1,1,1,0,0,1,0,0,5]
["MPB","Zbatimi i politikave efektive te migrimit","Së paku 60 gra ose vajza përfituese nga skemat e riintegrimit dhe integrimit të qëndrueshëm","K4 2023","PKIE",1,1,1,1,0,0,1,0,0,5]
["MPB","Zbatimi i politikave efektive te migrimit","Projektligji për shtetësinë, i plotësuar-ndryshuar","K4 2022","ERA",1,1,0,0,0,0,1,0,0,3]
["MPB","Zbatimi i politikave efektive te migrimit","Projektligji për plotësim - ndryshimin e Ligjit për të Huajt, i miratuar","K3 2023","PKIE",1,1,0,0,0,0,1,0,0,3]
["MPB","Zbatimi i politikave efektive te migrimit","Së paku tre (3) trajnime në kuadër të Udhërrëfyesit të bashkëpunimit me EUAA, me pjesëmarrjen e së paku tre (3) zyrtarëve të azilit, të organizuara","K4 2023","PKIE",1,1,0,0,0,0,1,0,0,3]
["MPB","Zbatimi i politikave efektive te migrimit","Projektligji për banesa dhe vendbanime, i plotësuar-ndryshuar","K4 2022","ERA",1,1,1,1,1,1,1,1,0,8]
["MPB","Avancimi i menaxhimit te integruar te kuijve","Programi i TI -së, me opsionin QlikView, për të përfshirë Sistemin e Menaxhimit të Rasteve (CMS) dhe Platformën e Inteligjencës Kufitare (BI), i avancuar","K4 2023","PKIE",1,1,1,1,1,0,1,0,0,6]
["MPB","Avancimi i menaxhimit te integruar te kuijve","Ndërlidhja e NjIP -së, me së paku tre (3) operatorë për të pranuar të dhëna REU, e funksionalizuar","K4 2023","PKIE",1,1,1,1,1,0,1,0,0,6]
["MPB","Avancimi i menaxhimit te integruar te kuijve","Projektligji për plotësim -ndryshim e Ligjit për Kontrollin dhe Mbikëqyrjen e Kufirit Shtetëror, i miratuar","K4 2023","PKIE",1,1,1,1,1,1,1,1,0,8]
["MPB","Avancimi i menaxhimit te integruar te kuijve","Plani i veprimit i QKMK, i zbatuar plotësisht","K4 2021","ERA",1,1,0,0,1,0,1,0,0,4]
["MPB","Luftimi i krimit të organizuar dhe bashkëpunimi policor","Departamenti për Inteligjencë dhe Analizë në PK, i themeluar","K4 2023","PKIE",1,1,1,1,0,1,1,0,0,6]
["MPB","Luftimi i krimit të organizuar dhe bashkëpunimi policor","Së paku njëzet (20) analistë të trajnuar në fushën e analizës","K4 2023","PKIE",1,1,0,0,0,0,1,0,0,3]
["MPB","Luftimi i krimit të organizuar dhe bashkëpunimi policor","Së paku 200 policë sektorialë (policë të lagjes), të caktuar","K4 2023","PKIE",1,1,0,0,0,0,0,0,0,2]
["MPB","Luftimi i krimit të organizuar dhe bashkëpunimi policor","Njësia e Veçante e Hetimeve në PK, e themeluar në përputhje me Ligjin për Prokurorinë Speciale","K4 2023","PKIE",1,1,1,1,1,1,1,0,0,7]
["MPB","Luftimi i krimit të organizuar dhe bashkëpunimi policor","Së paku dy (2) trajnime të përbashkëta polici -prokurori, për së paku dhjetë (10) zyrtarë policorë, për hetime financiare, konfiskimin e aseteve dhe mbrojtjen efektive të dëshmitarëve, të mbajtur","K4 2023","PKIE",1,1,0,0,0,0,1,0,0,3]
["MPB","Luftimi i krimit të organizuar dhe bashkëpunimi policor","Zyrtari ndërlidhës me EUROPOL, i sistemuar","K1 2023","PKIE",1,1,1,0,1,0,1,0,0,5]
["MPB","Luftimi i krimit të organizuar dhe bashkëpunimi policor","Pjesëmarrja në së paku katër (4) aktivitete në kuadër të EMPACT","K4 2023","PKIE",1,1,0,0,0,0,1,0,0,3]
["MPB","Luftimi i krimit të organizuar dhe bashkëpunimi policor","Projektligji për plotësim - ndryshimin e Ligjit për Armë, i miratuar","K4 2023","PKIE",1,1,1,1,1,1,1,1,0,8]
["MPB","Luftimi i krimit të organizuar dhe bashkëpunimi policor","UA për Ekipet e Përbashkëta të Hetimit, i miratuar","K3 2021","ERA",1,1,1,1,1,1,1,0,0,7]
["MPB","Luftimi i krimit të organizuar dhe bashkëpunimi policor","Plani i Përbashkët në mes të Policisë së Kosovës dhe Guardia di Finanza, i hartuar","K4 2021","ERA",1,1,0,1,1,0,1,0,0,5]
["MPB","Luftimi i krimit të organizuar dhe bashkëpunimi policor","Raportet gjashtëmujore për zbatimin e Planit të Përbashkët të Veprimit BE – Ballkan Perëndimor kundër Ekstremizmit të Dhunshëm dhe Terrorizmit, të hartua","K4 2023","PKIE",1,1,0,0,1,0,1,0,0,4]
["MPB","Lufta kunder terrorizmit","Raporti TeSAT për EUROPOL, i hartuar","K4 2023","PKIE",1,1,0,1,1,0,1,0,0,5]
["MPB","Lufta kunder terrorizmit","Strategjia për parandalimin e terrorizmit dhe ekstremizmit të dhunshëm, e miratuar","K4 2021","ERA",1,1,1,1,1,1,1,0,0,7]
["Përqindja",{"$nulls":13},{"v":0.68,"d":"68%"}]
["Rezultati i përgjithshëm",{"$nulls":13},7]
["Ministria e Industrisë, Ndërmarrësisë dhe Tregtisë"]
["MINT",null,"Rregullorja për plotësim - ndryshimin e Rregullores (MINT) nr. 01/2018 për Etiketimin dhe Shënjimin e Produkteve të Tekstilit, e miratuar","K3 2023","PKIE",1,1,1,0,1,1,1,1,0,{"$f":"SUM(F160:N160)","v":7}]
["MINT",null,"Vendimi për publikimin e listës me titujt dhe referencat e standardeve të harmonizuara për pajisjet elektrike të destinuara për përdorim brenda kufijve të caktuar të tensionit, i miratuar","K3 2023","PKIE",1,1,0,0,0,0,1,1,0,4]
["MINT",null,"Vendimi për publikimin e listës me titujt dhe referencat e standardeve të harmonizuara për pajtueshmërinë elektromagnetike, i miratuar","K3 2023","PKIE",1,1,0,0,0,0,1,1,0,4]
["MINT",null,"Koncept dokumentit për fushën e akreditimit, i miratuar","K3 2023","PKIE",1,1,1,0,1,1,1,0,0,6]
["MINT",null,"Njësia për informimin e bizneseve, e funksionalizuar","K4 2023","PKIE",1,1,1,1,0,0,1,0,0,5]
["MINT",null,"Skema e Akreditimit për trupat certifikuese (EN ISO/IEC 17065), e themeluar dhe e funksionalizuar","K4 2023","PKIE",1,1,1,1,0,0,1,0,0,5]
["MINT",null,"Laboratori i forcës dhe termometrisë, i akredituar","K4 2023","PKIE",1,1,1,1,1,0,1,0,0,6]
["MINT",null,"Së paku dhjetë (10) zyrtarë të rinj në inspektoratin e tregut, të rekrutua","K3 2023","PKIE",1,1,1,1,0,0,1,0,0,5]
["MINT",null,"Së paku pesë (5) zyrtarë të rinj në AMK, të rekrutuar","K2 2023","PKIE",1,1,1,1,0,0,1,0,0,5]
["MINT",null,"Së paku dhjetë (10) zyrtarë të fushës së sigurisë së produkteve, të trajnuar","K3 2023","PKIE",1,1,1,1,0,0,1,0,0,5]
["MINT",null,"Standardi EN ISO/IEC 17020 për laboratorët e metrologjisë ligjore (laboratori i masës, laboratori vëllim rrjedhje, laboratori i matjeve elektrike dhe laboratori i presionit), i zbatuar","K4 2023","PKIE",1,1,1,0,0,0,2,0,0,5]
["MINT",null,"UA për biokarburante, i miratuar","K2 2022","ERA",1,1,1,0,1,1,1,1,0,7]
["MINT",null,"Sistemi online për shitjen e standardeve, i funksionalizuar","K4 2023","PKIE",1,1,0,1,0,0,1,0,0,4]
["MINT",null,"Projektligji për regjistrin e pronarëve përfitues, i miratuar","K4 2023","PKIE",1,1,1,1,1,1,1,1,0,8]
["MINT",null,"Projektligji për shoqëritë tregtare, i miratuar","K4 2023","PKIE",1,1,1,1,1,1,1,1,0,8]
["MINT",null,"Së paku dy (2) sektorë të ri të shërbimeve, të digjitalizuar","K4 2023","PKIE",1,1,1,1,0,0,1,0,0,5]
["MINT",null,"Ueb-faqja për pikën e vetme të kontaktit, e krijuar dhe e lansuar","K4 2023","PKIE",1,1,0,0,0,0,1,0,0,3]
["MINT",null,"Strategjia për zhvillimin e industrisë dhe mbështetje të biznesit, e miratuar","K1 2023","PKIE",1,1,1,1,1,1,1,0,0,7]
["MINT",null,"Agjencia për përkrahjen e ndërmarrjeve, e themeluar dhe funksionalizuar","K3 2023","PKIE",1,1,1,1,1,1,1,0,0,7]
["MINT",null,"Analiza e ndikimit të zonave ekonomike në zhvillimin e NVM, e kryer","K4 2023","PKIE",1,1,0,1,1,0,1,0,0,5]
["MINT",null,"Së paku dyzet (40) biznese përfituese të granteve që u ndihmojnë bizneseve për të rritur kapacitetet prodhuese dhe zbatojnë standardet e kërkuara në tregun e BE -së","K4 2023","PKIE",1,1,0,1,0,0,1,0,0,4]
["MINT",null,"Së paku 20 biznese (10 deri në K2 2022 dhe 10 deri në K2 2023) të subvencionuara në formë të granteve për certifikim të produkteve","K2 2023","ERA",1,1,0,1,0,0,1,0,0,4]
["MINT",null,"Struktura organizative e KIESA-së e miratuar e cila adreson aspektet kryesore të përmirësimit të performancës: ndarjen e përgjegjësive, burimeve financiare dhe kapaciteteve njerëzore","K2 2022","ERA",1,1,1,0,0,1,1,0,0,5]
["MINT",null,"Mekanizmi i ankesës, i krijuar","K1 2022","ERA",1,1,1,0,0,0,1,0,0,4]
["MINT",null,"Programi i kujdesit, i miratuar","K4 2022","ERA",1,1,1,0,1,0,1,0,0,5]
["MINT",null,"Njësia e kujdesit për investitorët, e themeluar","K1 2022","ERA",1,1,1,0,1,0,1,0,0,5]
["MINT",null,"Vlerësimi i performancës së skemave mbështetëse për bizneset të KIESA-s, i realizuar","K4 2022","ERA",1,1,0,0,0,0,1,0,0,3]
["MINT",null,"Skema e Akreditimit për trupat certifikuese (EN ISO/IEC 17065) e themeluar dhe e funksionalizuar","K1 2022","ERA",1,1,0,0,0,0,1,0,0,3]
["MINT",null,"Së paku dy (2) zyrtarë të rekrutuar në Agjencinë e Metrologjisë","K4 2022","ERA",1,1,1,1,0,0,1,0,0,5]
["MINT",null,"Së paku një (1) laborator i ri në Agjencinë e Metrologjisë i themeluar","K4 2022","ERA",1,1,0,1,0,0,1,0,0,4]
["MINT",null,"Njësia për informimin e bizneseve në lidhje me standardet e themeluar","K4 2022","ERA",1,1,0,1,0,0,1,0,0,4]
["MINT",null,"Pika e vetme e kontaktit, e themeluar dhe e funksionalizuar","K1 2022","ERA",1,1,0,0,0,0,1,0,0,3]
["MINT",null,"UA mbi kërkesat e përcaktuara në relacion me komunikimin tregtar përfshi reklamimin apo marketingun, i miratuar","K4 2023","PKIE",1,1,1,0,1,1,1,0,0,6]
["MINT",null,"Programi për pronësi industriale, e miratuar","K1 2023","PKIE",1,1,1,1,1,1,1,0,0,7]
["MINT",null,"Së paku tre (3) trajnime për zyrtarët e Agjencisë së Pronësisë Industriale, të realizuara","K4 2023","PKIE",1,1,0,0,0,0,1,0,0,3]
["MINT",null,"Së paku një (1) produkt i regjistruar sipas treguesit gjeografik","K4 2023","PKIE",1,1,0,0,0,0,1,0,0,3]
["MINT",null,"Dokumenti për politika tregtare, i miratuar","K3 2023","PKIE",1,1,1,1,1,1,1,0,0,7]
["MINT",null,"Një (1) zyrtar në Departamentin e Tregtisë, i rekrutuar","K3 2023","PKIE",1,1,0,1,0,0,1,0,0,4]
["Përqindja",{"$nulls":13},{"v":0.61,"d":"61%"}]
["Rezultati i përgjithshëm",{"$nulls":13},7]
["Ministria e Drejtësisë"]
["MD","Avancimi i luftes kunder korrupsioni","Projektligji për plotësim - ndryshimin e Ligjit për Administrimin e Pasurisë së Sekuestruar dhe të Konfiskuar, i miratuar","K4 2023","PKIE",1,1,1,0,1,1,1,1,0,{"$f":"SUM(F201:N201)","v":7}]
["MD","Sigurimi i drejtave themelore te qytetareve","Marrëveshja për bashkëpunim juridik me Francën, e nënshkrua","K4 2023","PKIE",1,1,0,0,0,1,1,1,0,5]
["MD","Sigurimi i drejtave themelore te qytetareve","Koncept dokumenti për realizimin e të drejtave civile përfshirë të drejtën e palëve për gjykim brenda kohës së arsyeshme, i miratuar","K2 2023","PKIE\nERA (K2 2022)",1,1,1,0,1,1,1,0,0,6]
["MD","Sigurimi i drejtave themelore te qytetareve","Projektligji për mosmarrëveshjet administrative, i miratuar","K2 2022","ERA",1,1,1,1,0,0,1,1,0,6]
["MD","Sigurimi i drejtave themelore te qytetareve","Koncept Dokumenti për realizimin e të drejtave civile përfshirë të drejtën e palëve për gjykim brenda kohës se arsyeshme","K2 2022","ERA",1,1,1,0,1,1,1,0,0,6]
["MD","Sigurimi i drejtave themelore te qytetareve","Projektligji për parandalimin dhe mbrojtjen nga dhuna në familje dhe dhunën në baza gjinore, i miratuar","K4 2023","ERA",1,1,1,1,1,0,1,1,0,7]
["Përqindja",{"$nulls":13},{"v":1,"d":"100%"}]
["Rezultati i përgjithshëm",{"$nulls":13},10]
["\nMinistria e Financave, Punës dhe Transfereve"]
["MFPT","Ekzistenca e ekonomisë funksionale të tregut","Numri i trajnimeve të mbajtura për Departamentin e Makros në MFPT dhe Njësinë për Monitorimin e NPve në ME përmes projektit rajonal të asistencë teknike të FMN-FAD të financuar nga BE","K4 2023","PKIE",1,0,0,1,1,0,1,0,0,{"$f":"SUM(F210:N210)","v":4}]
["MFPT","Ekzistenca e ekonomisë funksionale të tregut","Raportimi i rregullt gjashtëmujor i zbatimit tё Planit tё Veprimit të SMFP 2022-2024","K3 2023","PKIE",1,1,1,0,1,0,1,0,0,5]
["MFPT","Ekzistenca e ekonomisë funksionale të tregut","Raportimi i rregullt vjetor i zbatimit të Planit të Veprimit tё SMFP 2022- 2024","K2 2023","PKIE",1,1,1,0,1,0,1,0,0,{"$f":"SUM(F212:N212)","v":5}]
["MFPT","Ekzistenca e ekonomisë funksionale të tregut","Hartimi i analizës së rreziqeve fiskale, përfshirë rreziqet që vijnë nga NP-të, e përfshirë në kornizën makro-fiskale, në dokumentet strategjike si KASh, ligji i buxhetit dhe PRE","K4 2023","PKIE",1,1,1,1,0,0,1,0,0,5]
["MFPT","Ekzistenca e ekonomisë funksionale të tregut","Raporte tremujore financiare dhe të performancës për të gjitha NP-të, të përgatitura","K4 2023","PKIE",1,1,0,1,1,0,1,0,0,5]
["MFPT","Krijimi i vendeve te reja pune dhe mbrojtja sociale e qytetareve ","Plani për Zbatimin e Skemës së Garantuar për të Rinj, i pilotuar","K4 2023","PKIE",1,1,1,1,0,0,1,0,0,5]
["MFPT","Krijimi i vendeve te reja pune dhe mbrojtja sociale e qytetareve ","Numri i grave të përfshira në masat aktive të tregut të punës, i rritur","K4 2023","PKIE",1,0,1,1,1,0,1,0,0,5]
["MFPT","Krijimi i vendeve te reja pune dhe mbrojtja sociale e qytetareve ","Numri inspektorëve të punës i rritur për 100 inspektorë shtesë","K4 2023","PKIE\nERA (K4 2022)",1,1,1,1,0,0,1,0,0,5]
["MFPT","Krijimi i vendeve te reja pune dhe mbrojtja sociale e qytetareve ","Numri i inspektimeve nga Inspektorati i Punës, i rritur","K4 2023","PKIE",1,0,0,1,0,0,1,0,0,3]
["MFPT","Krijimi i vendeve te reja pune dhe mbrojtja sociale e qytetareve ","Skema e grantit për zanate","K4 2022","ERA",1,1,1,1,1,0,1,0,0,6]
["MFPT","Krijimi i vendeve te reja pune dhe mbrojtja sociale e qytetareve ","Projektligji për skemën e ndihmave sociale, i miratuar","K2 2022","ERA",1,1,1,1,1,1,0,0,0,6]
["MFPT","Krijimi i vendeve te reja pune dhe mbrojtja sociale e qytetareve ","Projektligji për sigurinë dhe shëndetin në punë, i hartuar dhe miratuar","K2 2021","ERA",1,1,1,1,1,1,1,1,0,8]
["MFPT","Krijimi i vendeve te reja pune dhe mbrojtja sociale e qytetareve ","Projektligji i punës, i miratuar","K2 2022","ERA",1,1,1,1,1,1,1,1,0,8]
["MFPT","Krijimi i vendeve te reja pune dhe mbrojtja sociale e qytetareve ","Sistemi i Teknologjisë së Informacionit të Inspektoratit të Punës, i themeluar","K4 2022","ERA",1,1,1,1,1,1,1,0,0,7]
["MFPT","Krijimi i vendeve te reja pune dhe mbrojtja sociale e qytetareve ","Programi shtetëror për inkurajimin e investimeve në efiçiencën e energjisë duke subvencionuar familjet dhe bizneset që investojnë në këtë fushë, i miratuar","K4 2022","ERA",1,1,1,1,1,1,1,0,0,7]
["MFPT","Lëvizja e lirë e kapitalit","Projektligji për shërbimet e pagesave, i miratuar","K4 2023","PKIE",1,1,1,1,1,1,1,1,0,8]
["MFPT","Lëvizja e lirë e kapitalit","Koncept dokumenti për parandalimin e pastrimit të parave dhe luftimin e financimit të terrorizmit, i miratuar","K1 2023","PKIE",1,1,1,1,1,1,1,0,0,7]
["MFPT","Lëvizja e lirë e kapitalit","Udhëzuesit për faktorët e rrezikut, të hartuar dhe miratuar","K4 2023","PKIE",1,1,0,0,0,1,1,0,0,4]
["MFPT","Lëvizja e lirë e kapitalit","Memorandum mirëkuptimi për mbikëqyrjen e pajtueshmërisë mes NJIF dhe BQK, i nënshkruar","K4 2023","PKIE",1,1,0,0,0,1,1,0,0,4]
["MFPT","Lëvizja e lirë e kapitalit","Të paktën dy (2) aktivitetev mbikëqyrëse të mentorimit, të zhvilluara","K4 2023","PKIE",0,1,0,0,0,0,1,0,0,2]
["MFPT","Lëvizja e lirë e kapitalit","Numri i ngritur i raporteve të pranuara të transaksioneve / aktiviteteve të dyshimta","K4 2023","PKIE",1,1,0,1,0,0,1,0,0,4]
["MFPT","Lëvizja e lirë e kapitalit","Metodologjitë për vlerësim të rrezikut, të rishikuara/hartuara","K3 2023","PKIE",1,1,0,1,0,0,1,0,0,4]
["MFPT","Politikat e favorshme tatimore dhe doganore","Projekt -kodi për plotësim - ndryshimin e Kodit Doganor dhe të Akcizave në Kosovë, i miratuar","K2 2023","PKIE",1,1,1,1,1,1,1,1,0,8]
["MFPT","Politikat e favorshme tatimore dhe doganore","Luftimi i ekonomisë joformale dhe mashtrimit doganor përmes rritjes së bashkëpunimit dhe koordinimit ndërmjet Doganës, agjencive të zbatimit të ligjit dhe institucioneve të tjera relevante, e matur permes numrit te inspektimeve të realizuara, numri i operacioneve të ndërmarra, rezultatet e arritura","K4 2023","PKIE",1,1,1,1,1,0,1,0,0,6]
["MFPT","Politikat e favorshme tatimore dhe doganore","Zhvendosja në pronë publike dhe funksionalizimi i plotë për së paku një (1) terminali doganor","K4 2023","PKIE",1,1,0,0,1,0,1,0,0,4]
["MFPT","Politikat e favorshme tatimore dhe doganore","Koncept dokumenti për rishikimin e politikave tatimore, i miratuar","K2 2023","PKIE",1,1,1,1,1,1,1,0,0,7]
["MFPT","Politikat e favorshme tatimore dhe doganore","Numri i aktiviteteve në kuadër të projekteve për përmirësimin e përmbushjes tatimore, i rritur","K4 2023","PKIE",1,0,0,1,1,0,1,0,0,4]
["MFPT","Politikat e favorshme tatimore dhe doganore","Numri i kontrolleve dhe vizitave përmbushëse të bazuara në rrezik, i rritur","K4 2023","PKIE",1,0,0,0,0,0,1,0,0,2]
["MFPT","Politikat e favorshme tatimore dhe doganore","Numri i veprimeve të ndërmarra për të përmirësuar pajtueshmërinë tatimore","K2 2023","ERA",1,0,0,1,1,0,1,0,0,4]
["MFPT","Prokurimi publik dhe kontrolli financiar","Projektligji për plotësim - ndryshimin e Ligjit për Prokurimin Publik, i miratuar","K1 2023","PKIE\nERA (K1 2022)",1,1,1,1,1,1,1,1,0,8]
["MFPT","Prokurimi publik dhe kontrolli financiar","Projektligji për plotësimndryshimin e Ligjit për Auditorin e Përgjithshëm dhe Zyrën Kombëtare të Auditimit të Kosovës, i miratuar","K2 2023","PKIE",1,1,1,1,1,1,1,0,0,7]
["MFPT","Prokurimi publik dhe kontrolli financiar","Komitetet e auditimit të brendshëm në të gjitha organizatat buxhetore, përfshirë edhe nivelin komunal, të themeluara","K2 2023","PKIE",1,1,1,1,1,0,1,0,0,6]
["MFPT","Prokurimi publik dhe kontrolli financiar","Koncept Dokumenti për themelimin e një trupi fiskal të pavarur i miratuar pas konsultimit me palët e interesit përfshirë edhe BE-në","K4 2021","ERA",1,1,1,1,1,1,1,0,0,7]
["MFPT","Ndihma shtetërore, ne harmoni me rregullat e BE-se","Pesedhjete (50) sesione informuese për komunat, ministritë e linjës, institucionet rregullative dhe atyre të drejtësisë","K2 2023","ERA",1,1,0,1,1,0,1,0,0,5]
["MFPT","Ndihma shtetërore, ne harmoni me rregullat e BE-se","Numri i skemave të harmonizuara me Rregullat e Ndihmës Shtetërore","K1 2023","ERA",1,0,1,1,0,0,1,0,0,4]
["MFPT","Ndihma shtetërore, ne harmoni me rregullat e BE-se","Projektligji për ndihmë shtetërore, i rishikuar","K4 2022","ERA",1,1,1,1,1,0,1,1,0,7]
["MFPT","Ndihma shtetërore, ne harmoni me rregullat e BE-se","Rregullorja për Ndihmën Horizontale, e miratuar ","K4 2022","ERA",1,1,0,0,0,1,1,1,0,5]
["MFPT","Ndihma shtetërore, ne harmoni me rregullat e BE-se","Numri i skemave shtesë të njoftuara në DNSH","K4 2023","PKIE",1,1,0,0,0,0,1,0,0,3]
["Përqindja",{"$nulls":13},{"v":0.66,"d":"66%"}]
["Rezultati i përgjithshëm",{"$nulls":13},7]
["Ministria për Komunitete dhe Kthim"]
["MKK",null,"Strategjia për mbrojtjen dhe promovimin e të drejtave të komuniteteve dhe pjesëtarëve të tyre, e miratuar","K1 2023","PKIE",1,1,1,1,1,1,1,0,0,{"$f":"SUM(F251:N251)","v":7}]
["MKK",null,"Deri në 56 të zhvendosur dhe të cenueshëm social në Komunën e Graçanicës, të sistemuar në njësi banimi të përhershëm","K4 2023","PKIE",1,1,0,1,0,0,1,0,0,{"$f":"SUM(F252:N252)","v":4}]
["MKK",null,"Pesë (5) takime në nivelin komunal, sipas rajoneve, për zbatimin e Strategjisë për Mbrojtjen dhe Promovimin e të Drejtave të Komuniteteve dhe Pjesëtarëve të tyre, të mbajtur","K4 2023","PKIE",1,1,0,0,0,0,1,0,0,{"$f":"SUM(F253:N253)","v":3}]
["MKK",null,"Grupi koordinues ndërministror për zgjidhje të qëndrueshme për personat e zhvendosur, i themeluar","K4 2021","ERA",1,1,0,0,0,0,1,0,0,{"$f":"SUM(F254:N254)","v":3}]
["Përqindja",{"$nulls":13},{"v":0.25,"d":"25%"}]
["Rezultati i përgjithshëm",{"$nulls":13},3]
["Ministria e Shëndetësisë"]
["MSH","Mbrojtja e shëndetit","UA për masat për parandalimin e abuzimit me substanca narkotike dhe psikotrope për fëmijë, i miratuar","K2 2023","PKIE",1,1,1,1,1,1,1,1,0,{"$f":"SUM(F258:N258)","v":8}]
["MSH","Mbrojtja e shëndetit","UA për masat për ndihma mjekësore, psikologjike, rehabilitim dhe ri integrim të fëmijës viktimë të abuzimit, i miratuar","K2 2023","PKIE",1,1,1,1,1,1,1,1,0,8]
["MSH","Mbrojtja e shëndetit","UA për vërejtjet e kombinuara në njësinë e paketimit të duhanit, i miratuar","K2 2023","PKIE",1,1,1,1,0,1,1,1,0,7]
["MSH","Mbrojtja e shëndetit","Lista dhe çmimorja e shërbimeve shëndetësore, të hartuara","K1 2022","ERA",1,1,0,0,1,0,1,0,0,4]
["MSH","Mbrojtja e shëndetit","Projektligji për parandalimin dhe kontrollin e sëmundjeve ngjitëse, i miratuar","K2 2022","ERA",1,1,0,1,1,1,1,0,0,{"$f":"SUM(F262:N262)","v":6}]
["MSH","Forcimi i funksioneve kyçe të sistemit shëndetësor","Strategjia sektoriale e shëndetësisë 2022-2032, e hartuar","K4 2021","ERA",1,1,1,1,1,0,1,0,0,{"$f":"SUM(F263:N263)","v":6}]
["MSH","Forcimi i funksioneve kyçe të sistemit shëndetësor","Projektligji për sigurime shëndetësore, i miratuar","K4 2021","ERA",1,1,1,1,1,1,1,1,0,8]
["MSH","Forcimi i funksioneve kyçe të sistemit shëndetësor","Projektligji për shëndetësi, i miratuar","K2 2022","ERA",1,1,1,1,1,1,1,1,0,7]
["MSH","Forcimi i funksioneve kyçe të sistemit shëndetësor","UA për zbatimin e lirimit nga pagesa e premiumeve, bashkë-pagesat dhe bashkëfinancimi për shërbime shëndetësore, i hartuar","K1 2022","ERA",1,1,0,0,1,1,1,1,0,5]
["MSH","Forcimi i funksioneve kyçe të sistemit shëndetësor","UA për skemën e barnave jashtë-spitalore, i hartuar","K1 2022","ERA",1,1,1,0,1,1,1,1,0,7]
["MSH","Forcimi i funksioneve kyçe të sistemit shëndetësor","UA për trajtim mjekësor jashtë institucioneve shëndetësore publike, i plotësuar-ndryshuar","K1 2022","ERA",1,1,0,1,0,1,1,1,0,6]
["MSH","Forcimi i funksioneve kyçe të sistemit shëndetësor","Studimi i fizibilitetit për SISh, i kryer","K4 2021","ERA",1,1,0,0,0,0,1,0,0,3]
["Përqindja",{"$nulls":13},{"v":0.83,"d":"83%"}]
["Rezultati i përgjithshëm",{"$nulls":13},9]
["Zyra e Kryeministrit"]
["ZKM","Krijimi i administrates efektive publike","Raporti vjetor për vlerësimin e performancës së agjencive të ekzekutive, i hartuar","K2 2023","PKIE",1,1,0,0,1,0,1,0,0,{"$f":"SUM(F273:N273)","v":4}]
["ZKM","Krijimi i administrates efektive publike","Raporti final për performancën e agjencive ekzekutive, i miratuar nga Qeveria","K2 2023","PKIE",1,1,0,0,0,1,1,0,0,{"$f":"SUM(F274:N274)","v":4}]
["ZKM","Promovimi i lirive fetare","Projektligji për plotësim-ndryshim e Ligjit për Lirinë Fetare në Kosovë, i \nmiratuar","K1 2023","PKIE\nERA (K3 2022)",1,1,1,1,1,1,1,0,0,7]
["ZKM","Promovimi i lirive fetare","Akte nënligjore në kuadër të ligjit për liritë fetare, të hartuara dhe miratuara","K4 2022","ERA",1,1,1,0,1,1,1,0,0,6]
["ZKM","Zbatimi i rekomandimeve te Avokatit te Popullit","Numri i rekomandimeve të zbatuara të Avokatit të Popullit","K4 2023","PKIE",0,0,0,1,1,0,1,0,0,3]
["ZKM","Zbatimi i rekomandimeve te Avokatit te Popullit","Numri i përgjigjeve të pranuara nga institucionet përgjegjëse lidhur me rekomandimet e adresuara te Avokatit te Popullit","K4 2023","PKIE",0,0,0,0,1,0,1,0,0,2]
["ZKM","Zbatimi i rekomandimeve te Avokatit te Popullit","Ngritja së paku në 60% e zbatimit të rekomandimeve të Avokatit të Popullit dhe 95% sigurimi i përgjigjeve për rekomandimet e adresuara brenda afatit ligjore","K4 2021","ERA",1,1,1,1,1,0,1,0,0,6]
["ZKM","Avancimi i drejtave te njeriut","Korniza e treguesve për të drejtat e njeriut, e zhvilluar","K2 2023","PKIE",1,1,0,1,1,0,1,0,0,5]
["ZKM","Avancimi i drejtave te grave dhe femijeve","Plani Kombëtar për Barazi Gjinore 2023-2026, i miratuar","K4 2023","PKIE",1,1,1,1,1,1,1,0,0,7]
["ZKM","Avancimi i drejtave te grave dhe femijeve","Gjashtëmbëdhjetë (16) UA që rrjedhin nga ligji për mbrojtjen e fëmijëve, të miratuara","K2 2022","ERA",1,1,1,0,1,0,1,1,0,6]
["ZKM","Avancimi i drejtave te grave dhe femijeve","Ngritja e vetëdijes së publikut për parandalimin e dhunës ndaj grave, luftimin e stereotipave gjinorë, dhe të drejtave që garanton korniza ligjore për barazi gjinore duke pergatitur pesë (5) videospote dhe tri (3) tryeza diskutimi","K4 2023","PKIE",1,1,0,0,0,0,1,0,0,3]
["ZKM","Avancimi i drejtave te grave dhe femijeve","UA (masë afirmative) për regjistrimin e pronës së paluajtshme të përbashkët në emër të dy bashkëshortëve, i miratuar","K2 2023","PKIE",1,1,1,0,1,0,1,1,0,6]
["ZKM","Avancimi i drejtave te grave dhe femijeve","Akt nënligjor për zbatimin e buxhetimit gjinor, i miratuar","K4 2023","PKIE",1,1,1,0,1,0,1,1,0,6]
["ZKM","Avancimi i drejtave te grave dhe femijeve","Masa afirmative për rritjen e numrit të grave në pozita vendimmarrëse - niveli ekzekutiv, e miratuar","K4 2023","PKIE",1,1,1,0,1,1,1,0,0,6]
["ZKM","Avancimi i drejtave te grave dhe femijeve","Mbështetja e 10 OJQ-ve që synojnë fuqizimin e rolit të gruas në shoqëri","K4 2023","PKIE",1,1,0,0,0,0,1,0,0,3]
["ZKM","Avancimi i drejtave te grave dhe femijeve","Së paku dhjetë (10) trajnime mbi avancimin e realizimit të të drejtave të trashëgimisë; vendimmarrje; paqe, siguri dhe drejtësi, të mbajtura","K4 2023","PKIE",1,1,0,0,0,0,1,0,0,3]
["ZKM","Krijimi i nje mjedisi te lire per media","Projektligji për plotësim-ndryshim e Ligjit për Komisionin e Pavarur të Mediave, i miratuar","K2 2023","PKIE\nERA (K2 2021)",1,1,1,1,1,1,1,0,0,7]
["Përqindja",{"$nulls":13},{"v":0.59,"d":"59%"}]
["Rezultati i përgjithshëm",{"$nulls":13},6]
["Ministria e Kulturës, Rinisë dhe Sportit"]
["MKRS","Mbrojtja efektive e pronësisë intelektuale","UA për procedurat, kushtet për licencimin e organizatave të menaxhimit kolektiv, i miratuar","K4 2023","PKIE",1,1,1,0,1,1,0,1,0,{"$f":"SUM(F293:N293)","v":6}]
["MKRS","Mbrojtja efektive e pronësisë intelektuale","Së paku një (1) Shoqatë për Menaxhim Kolektiv në fushën e letërsisë, e licencuar","K4 2023","PKIE",1,1,0,0,0,0,0,0,0,{"$f":"SUM(F294:N294)","v":2}]
["MKRS","Përmirësimi i zbatimit të të drejtave dhe lirive themelore","Projektligji për trashëgiminë kulturore, i miratuar","K4 2022","ERA",1,1,1,1,1,1,1,1,0,{"$f":"SUM(F295:N295)","v":8}]
["MKRS","Përmirësimi i zbatimit të të drejtave dhe lirive themelore","Akte nënligjore në kuadër të avancimit të mbrojtjes së trashëgimisë kulturore, të hartuara dhe të miratuara","K4 2022","ERA",1,1,1,0,0,1,1,1,0,{"$f":"SUM(F296:N296)","v":6}]
["Përqindja",{"$nulls":13},{"v":0.75,"d":"75%"}]
["Rezultati i përgjithshëm",{"$nulls":13},8]
["\nMinistria e Administrimit të Pushtetit Lokal"]
["MAPL","N/A","Koncept dokumenti për Ligjin për Dhënien në Shfrytëzim dhe Këmbimin e Pronës së Paluajtshme të Komunës, i miratuar","K1 2023","PKIE",1,1,0,0,1,1,0,0,0,{"$f":"SUM(F300:N300)","v":4}]
["MAPL","N/A","Projektligji për plotësimndryshimin e Ligjit për Dhënien në Shfrytëzim dhe Këmbimin e Pronës së Paluajtshme të Komunës, i miratuar","K4 2023","PKIE",1,1,0,0,1,1,0,0,0,4]
["MAPL","N/A","Projektligji për plotësim ndryshimin e Ligjit për Bashkëpunim Ndër-komunal, i miratuar","K4 2023","PKIE",1,1,0,0,1,1,0,0,0,4]
["MAPL","N/A","UA për administratën e hapur lokale, i miratua","K4 2023","PKIE",1,1,0,0,1,1,0,0,0,4]
["MAPL","N/A","Vlerësimi ex-post i legjislacionit mbi mekanizmat e demokracisë lokale, i miratuar","K4 2023","PKIE",1,1,0,0,1,1,0,0,0,4]
["MAPL","N/A","Anëtarësimi i Republikës së Kosovës dhe komunave në Partneritetin për Qeverisje të Hapur, i miratuar","K4 2023","PKIE",1,1,0,0,1,1,0,0,0,4]
["MAPL","N/A","Platforma shtetërore eKomunat, e funksionalizuar","K4 2023","PKIE",1,1,1,1,1,1,0,0,0,6]
["MAPL","N/A","Vendosja e eKiosqeve në 20 Komuna të cilat nuk kanë kapacitete financiare","K4 2023","PKIE",1,1,0,0,1,1,0,0,0,4]
["Përqindja",{"$nulls":13},{"v":0.13,"d":"13%"}]
["Rezultati i përgjithshëm",{"$nulls":13},2]
[]
["Çdo masë vlerësohet sipas të gjitha kritereve me vlerën \"1\" ose vlerën \"0\". Vlera \"1\" paraqet vlerësim pozitiv, ndërsa \"0\" atë negative. Në rastet kur një masë vlerësohet negativisht sipas kritereve të para, atëherë e gjithë masa vlerësohet automatikisht negativisht.\n\nPas përfundimit të vlerësimit të të gjitha masave individuale, ministritë marrin një nga vlerësimet përfundimtare:\n\n- Nëse shuma e të gjithë elementëve është në intervalin 0-4 = Pak komplekse\n- Nëse shuma e të gjithë elementëve është në intervalin 5-9 = Kompleksitet i lartë\n\nMë në fund, ne numërojmë të gjitha masat e kompleksitetit të lartë dhe transferojmë rezultatin përfundimtar në vlerësimin e përgjithshëm nën kolonën \"Kompleksiteti i masave\":\n1. Më e lartë se 0% = 1\n2. Më e lartë se 10% = 2\n3. Më e lartë se 20% = 3\n4. Më e lartë se 30% = 4\n5. Më e lartë se 40% = 5\n6. Më e lartë se 50% = 6\n7. Më e lartë se 60% = 7\n8. Më e lartë se 70% = 8\n9. Më e lartë se 80% = 9\n10. Më e lartë se 90% = 10"]

{"sheet":"Criteria 2","index":2,"n_rows":351,"n_cols":5,"rows_kept":351,"merged":[[0,0,0,4],[2,0,2,4],[14,0,14,2],[15,0,15,2],[16,0,16,4],[94,0,94,2],[95,0,95,2],[96,0,96,4],[124,0,124,2],[125,0,125,2],[126,0,126,4],[144,0,144,2],[145,0,145,2],[146,0,146,4],[172,0,172,2],[173,0,173,2],[174,0,174,4],[235,0,235,2],[236,0,236,2],[237,0,237,4],[250,0,250,2],[251,0,251,2],[252,0,252,4],[295,0,295,2],[296,0,296,2],[297,0,297,4],[301,0,301,2],[302,0,302,2],[303,0,303,4],[314,0,314,2],[315,0,315,2],[316,0,316,4],[327,0,327,2],[328,0,328,2],[329,0,329,4],[336,0,336,2],[337,0,337,2],[338,0,338,4],[347,0,347,2],[348,0,348,2],[350,0,350,4]]}
["Kriteri 2: Planifikimi vs obligimet evropiane\nObligimet specifike të Kosovës për BE-në janë të përshkruara në Raportin e BE-së për vendin dhe në konkluzionet e shtatë takimeve të nënkomitetit të MSA-së. Institucionet e Kosovës sigurojnë zbatimin e këtyre obligimeve duke përgatitur Programin Kombëtar për Integrim Evropian dhe Planin e Veprimit të Agjendës së Reformës Evropiane. Megjithatë, sfida është se shpesh ka një hendek midis këtyre dy realiteteve. Planifikimi nga ministritë e linjës shpesh nuk mbulon të gjitha detyrimet e specifikuara të BE-së. Prandaj, qëllimi i këtij vlerësimi është të bëjë dallimin ndërmjet planifikimit më shumë dhe më pak të kujdesshëm të detyrimeve të BE-së nga ministritë e linjës."]
["Institution","Obligimet evropiane","Masat që adresojnë obligimet evropiane","Vlerësimi","All measures (measures not adressing EU Obligations)"]
["Ministria e Ekonomisë"]
["ME","Miratimi i Strategjisë së Energjisë 2022-2031, në përputhje me Marrëveshjen e Gjelbër Evropiane dhe Axhendën e Gjelbër për Ballkanin Perëndimor, dhe për të siguruar konsistencën e saj me draft Planin Kombëtar të Energjisë dhe Klimës (T2/2022)","Programi i Zbatimit të Strategjisë së Energjisë, i miratuar",1,"Projektligji për energji, i miratuar"]
["ME","Progresi në finalizimin e Planit Kombëtar të Integruar të Energjisë dhe Klimës (K4/2022)","Plani i Energjisë dhe Klimës 2021-2030, i miratuar",1,"Projektligji për rregullatorin e energjisë, i miratuar"]
["ME","Miratimi i Ligjit për Burimet e Rinovueshme të Energjisë që prezanton një proces konkurrues tenderimi për projektet e energjisë së rinovueshme në përputhje me legjislacionin për ndihmën shtetërore (K4/2022)","Projektligji për burimet e ripërtëritshme të energjisë, i miratuar\nDizajnimi i skemës konkurruese për BRE",1,"Rregullorja për skemën e re mbështetëse për BRE"]
["ME","Finalizimi i Agjendës Dixhitale të Kosovës 2030 [K2 2022].","Agjenda Digjitale për Kosovën 2030, e miratua",1,"Projektligji i plotësuar-ndryshuar për ndërmarrje publike, bazuar në rekomandimet e BE dhe praktikat e mira, i miratuar"]
["ME","Në përputhje me tranzicionin e qëndrueshëm të gjelbër në Evropë, ndërmerrni fazën e dytë të studimit gjithëpërfshirës mbi burimet alternative të qëndrueshme të energjisë (K2/2022)",null,0,"Aktet nënligjore të miratuara"]
["ME","Përgatitja e dekomisionimit të pjesëve jofunksionale të Kosovës A, marrja e vendimit për tokën që do të caktohet për deponimin e mbeturinave të rrezikshme dhe përgatitja e një vlerësimi të ndikimit mjedisor dhe social me konsultimin e duhur publik me qëllim marrjen e një vendimi përfundimtar për tokë (K2/2022)",null,0,"Njëzet (20) pirgje të rrjetit mobil, ‘5G ready’, të lidhura me infrastrukturë fikse brezgjerë"]
["ME","Përfundoni punët shtesë në mbështetje të projektit të financuar nga BE-ja për Termocentralin Kosova B (T3/2022 Njësia B2, T3/2023 Njësia B1)",null,0,"Hapja e tregut të energjisë për konsumatorët e nivelit të tensionit 35 kv dhe 10 kv"]
["ME","Marrja e masave për të planifikuar rimbushjen e Fondit të Efiçiencës së Energjisë në baza vjetore dhe shtrirjen e tij në ndërtesat e banimit dhe ndërmarrjet e vogla dhe të mesme (SME) (T4/2022)",null,0,"Kodi i etikës dhe qeverisjes korporative të ndërmarrjeve publike, i miratuar"]
["ME","Miratimi i stimujve të efikasitetit të energjisë për sektorin privat dhe familjet duke u fokusuar në aspektet sociale dhe familjet me të ardhura të ulëta (stimujt shtetërorë) dhe shfrytëzimin e programeve ekzistuese të BE-së në Kosovë (K4/2022).",null,0]
["ME","Përfundoni përafrimin e legjislacionit të Kosovës me Kodin Evropian të Komunikimeve Elektronike, Direktivën e BE-së për Sigurinë e Rrjetit dhe Informacionit dhe Kutinë e Veglave të BE-së për sigurinë kibernetike 5G",null,0]
["ME","Përgatitja e programit për mbrojtjen e konsumatorëve të ndjeshëm dhe përgatitja e një plani dhe masash zbutëse për të mbështetur këta konsumatorë",null,0]
["Përqindja",null,null,{"v":0.36,"d":"36%"}]
["Rezultati i përgjithshëm",null,null,4]
["Ministria e Mjedisit, Planifikimit Hapësinor dhe Infrastrukturës"]
["MMPHI","Të investojë në mirëmbajtjen dhe inspektimet e rrugëve, të organizojë fushata parandaluese dhe të krijojë një mekanizëm monitorues sistematik për mbledhjen e të dhënave të aksidenteve;","Ligji për rrugët, I miratuar",1,"UA për kontrollimin e rregullsisë teknike të automjeteve në rrugë, i miratuar"]
["MMPHI","Të transpozoj  acquis e BE-së në tregun hekurudhor dhe miratimi i ligjit të ri për sigurinë dhe ndëroperueshmërinë hekurudhore;","Ligji për siguri hekurudhore, I miratuar",1,"Koncept dokumenti për hekurudha, i miratuar"]
["MMPHI","Të miratoj strategjisë për transportin multimodal, e cila duhet të përfshijë ndër të tjera strategjinë e aviacionit civil; vazhdoj përpjekjet për të harmonizuar rregulloren e aviacionit të Kosovës me Marrëveshjen për Zonën e Përbashkët Evropiane të Aviacionit;","Plani i veprimit 2023-2025 për zbatimin e Strategjisë së transportit multimodal 2023-2030, i miratuar",1,"Koncept dokumenti për transportin e mallrave të rrezikshme, i miratuar"]
["MMPHI","Të miratojë strategjinë e sistemit inteligjent të transportit (ITS) dhe planin e veprimit, të sigurojë kapacitet dhe burime të mjaftueshme për zbatim dhe të vazhdojë përpjekjet për të harmonizuar me acquis e BE-së të drejtat e pasagjerëve në të gjitha llojet e transportit.","Strategjia e sistemit inteligjent të transportit (ITS), e miratuar",1,"Pritet të miratohet ne Q4 2023"]
["MMPHI","Në fushën e sigurisë rrugore, Kosova duhet të vazhdojë harmonizimin e legjislacionit me acquis të BE-së në fushën e edukimit, fushatave ndërgjegjësuese, zbatimit të aktiviteteve për të arritur rezultate më të mira në përputhje me qëllimet e Kombeve të Bashkuara dhe Bashkimit Evropian për të përgjysmuar numri i vdekjeve dhe lëndimeve në rrugë deri në vitin 2030. ","Plani i veprimit për siguri rrugore miratuar në tetor 2020 është përfshirë në programin nacional për siguri rrugore dhe planin e veprimit 2023-2030.",1,"Strategjia e transportit multimodal 2023-2030, e miratuar me 14.03.2023"]
["MMPHI","Përditësimi i Strategjisë të Transportit Multimodal për të përfshirë elementë të qëndrueshëm dhe të zgjuar,\nnë përputhje me Strategjinë e Lëvizshmërisë së Qëndrueshme dhe të Zgjuar të BE-së dhe BP-së, Marrëveshjen e Gjelbër Evropiane dhe Axhendën e Gjelbër për Ballkanin Perëndimor (K4/2022).","Plani i veprimit 2023-2025 për zbatimin e Strategjisë së transportit multimodal 2023-2030, i miratuar",1,"Projektligji për Vlerësimin e Ndikimit në Mjedis është miratuar në Kuvend me 15 dhjetor 2022."]
["MMPHI","Miratimi I ‘Udhëzimi Administrativ për Kornizën për vendosjen e\nsistemet inteligjente të transportit (ITS)” (K2/2022).","Udhëzimi administrativ për ITS, I miratuar",1,"Udherrefyesi per Ekonomine Qarkore I miratuar ne mars 2023"]
["MMPHI","Të bëhen përpjekje për të filluar transpozimin e acquis të BE-së për transportin rrugor. (e vazhdueshme)","Projektligji për plotësim-ndryshimin e Ligjit për Transportin Rrugor, i miratuar",1,"Me datë 17.05.2022, me Nr.prot.2706/22 është miratuar plotësimi dhe ndryshimi i UA nr. 30/2014 per kushtet, menyrat, parametrat dhe vlerat kufizuese te shkarkimit te ujerave te ndotura ne rrjetin e kanalizimit publik dhe ne trupin ujor dhe është publikuar ne websiten e Gazetes Zyrtare të Republikës së Kosovës me 17.05.2022."]
["MMPHI","Miratimi I Strategjisë Sektoriale të Transportit Multimodal që përfshin aviacionin civil\nstrategjia (K4/2022)","Strategjia e transportit multimodal 2023-2030",1,"Ështe formuar Grupi ndërministror për hartimin e  projekt marrëveshjes I cili ka harmonizuar draftin  final  dhe  pritet të nënshkruhet ne Q1 të vitit të ardhshem."]
["MMPHI","Kosova duhet të rrisë angazhimin e saj politik për të adresuar degradimin e mjedisit dhe sfidat e ndryshimeve klimatike dhe të përmirësojë ndjeshëm zbatimin e legjislacionit të saj, për ta harmonizuar atë me Agjendën e Gjelbër për qëllimet e Ballkanit Perëndimor;","Projektligji për Ndryshime Klimatike është miratuar në Qeveri me datën 12.07.2023 me vendim Nr. 02/151. \n",1,"Konceptdokumenti është hartuar dhe gjendet  në diskutim  publik me  palet e  interesit, sipas  përfundimit të  procesit te konsultimeve do te procedohet per  miratim ne Qeveri."]
["MMPHI"," Të trajtojë në mënyrë efektive çështjen e venddepozitimeve të paligjshme dhe të prezantojë masat e ekonomisë rrethore për reduktimin e mbetjeve, zhvillimin dhe miratimin e planeve ndërkomunale të menaxhimit të integruar të mbetjeve dhe krijimin e prodhuesve të zgjeruar sistemi i përgjegjësisë;","Numri i deponive ilegale në komunat e Kosoves, të identifikuara dhe reduktuara ",1,"Plani i veprimit për siguri rrugore miratuar në tetor 2020 është përfshirë në programin nacional për siguri rrugore dhe planin e veprimit 2023-2030."]
["MMPHI","Kosova gjithashtu duhet të ndryshojë dhe zbatojë ligjet për vlerësimin e ndikimit në mjedis dhe strategjik ","Projektligji per Vleresimin Strategjik Mjedisor, i miratuar \n",1,"\n Ka përfunduar Draft Programi Nacional dhe Plani i Veprimit për siguri në trafikun rrugor 2023-2030, ku pritet të miratohet  deri në fund të këtij viti.\n"]
["MMPHI","Kosova duhet të rrisë kapacitetet në të gjitha nivelet dhe të përcaktojë objektiva dhe afate kohore reale për të siguruar zbatimin efektiv të menaxhimit të saj të integruar të mbeturinave dhe ekonomisë rrethore;","Udhezimi Administrativ per Ambalazh/paketimit dhe mbeturinat e ambalazhimit/paketimit, i miratuar ",1,"Ekipi punues ka vazhduar punën në identifikimin e akseve rrugore me rrezikshmëri të lartë dhe poashtu ka vazhduar puna në përmirësimin e cilësisë së rrjetit rrugor.\nNe rruget nacionale dhe rajonale jane vendosur pahite elastike dhe sinjalizimi vertikal dhe horizontal\n"]
["MMPHI","Autoriteti i  pellgut lumor duhet të bëhet funksional si çështje urgjente;","Autoritetit Rajonal i Pellgjeve Lumore është funksional me Rregulloren (qrk)-nr. 05/2017 për organizimin e brendshëm dhe sistematizimin e vendeve të punës të ministrisë së mjedisit dhe planifikimit hapësinor e miratur me 13 qershor 2017",1,"Këto direktiva janë përfshirë në koncept dokumentin për hekurudhat dhe pas miratimit të tij nga Qeveria do të transpozohen në projektligjin për plotësimin dhe ndryshimin e ligjit për hekurudhat gjatë vitit 2024."]
["MMPHI","Miratimi i Ligjit për ndryshimet klimatike (K4/2022)","Projektligji për ndryshime klimatike, i miratuar",1,"Ështe formuar Grupi ndërministror për hartimin e  projekt marrëveshjes I cili ka harmonizuar draftin  final  dhe  pritet të nënshkruhet ne Q1 të vitit të ardhshem."]
["MMPHI","Forcimi në mënyrë të konsiderueshme dhe urgjente I kapaciteteve administrative (në vazhdimësi) dhe raport  tremujor mbi progresin","Numri i inspektorëve të trajnuar për të kontrolluar zbatimin e legjislacionit mjedisor ",1,"E drejta e Avio udhëtarëve është e rregulluar përmes  Rregullores e BE-së nr. 261/2004 e cila është transponuar në Kosovë përmes  Rregullores MI-2008/5 mbi të Drejtat e Avio Udhëtarëve. \nImplementimi  i Rregullores MI-2008/5 është plotësisht i kompletuar.\nProjektligji per  transporitn ka perfshire  pjesene  te drejtave  te udhetareve ne  transportin e udhetareve me autobus sipas  rekomandimeve te dalura nga TCT-ja , ndersa  pjesa e  hekurdhave  eshte e transpozua rn e  ligjin  ekzistues  te hekurudhave  , megjithate ne  kuader te  Konceptdokumentit per hekurudha eshte perfshire  edhe  rregullorja e re per te drejat e  udhetareve ne transporitn  hekurudhore me  kete rats gjate hartimit  te proijkeligjit te ri per hekurudha  do te perfshihet  edhe kjo qeshtje.\n"]
["MMPHI","Përgatitja e  një inventar9 të emetimeve të gazeve serrë që mbulojnë deri në vitin 2020 (K2/2022).","Inventari i gazrave serrë për vitin 2021, i përgatitur",1,"Është miratuar ne Qeveri Koncept dokumenti per fushen e mjedisit me daten 27.10.2023 "]
["MMPHI","Miratimi i Ligjit të ndryshuar për Vlerësimin Strategjik Mjedisor (T4/2022).","Projektligji për plotësim-ndryshimin e Ligjit për Vlerësimin Strategjik Mjedisor, i miratuar ",1,"Është miratuar ne Qeveri Koncept dokumenti per fushen e mjedisit me daten 27.10.2023 "]
["MMPHI","Miratimi i Projektligjit për mbrojtjen e ajrit nga ndotja (K2/2022).\n","Ligji për mbrojtjen e ajrit nga ndotja është miratuar ne Kuvend me 23.06.2022 dhe eshte publikuar ne Gazeten Zyrtare me 07.07.2023",1,"Rishikimi i Strategjisë Shtetërore për Ujëra 2023-2027 dhe Plani i Veprimit 2023-2025 është miratuar në Qeveri me vendim Nr.18/ 145  të datës 07.06.2023."]
["MMPHI","“Miratimi I Projektligjit për Themelimin e Informacionit Hapësinor Kombëtar\nInfrastruktura (INSPIRE) (K2/2022).\"","Ligji për krijimin e infrastrukturës kombëtare të informacionit hapësinor në Republikën e Kosovës eshte miratuar ne Kuvend me 14.06.2022 dhe eshte publikuar ne Gazeten Zyrtare me 28.06.2023",1,"Është miratuar ne Qeveri Koncept dokumenti per fushen e mjedisit me daten 27.10.2023 "]
["MMPHI","“Finalizimi i krijimit të rrjetit të monitorimit të ujërave nëntokësore për të gjithë\nterritori dhe filloni mbledhjen e të dhënave. (K4/2022).\"","Është krijuar rrjeti i monitorimit të ujërave nëntokësore, i cili aktualisht përmban 40 stacione monitoruese në të gjithë territorin e Kosovës. Në stacionet e monitorimit, në të gjitha pellgjet, janë instaluar sensorë për matjet hidrometrike, të cilët njëkohësisht matin dhe ruajnë të dhënat në mënyrë të përhershme gjatë gjithë vitit. Monitorimi i cilësisë fiziko-kimike të ujërave nëntokësore deri më tani është bërë vetëm në 3 pellgjet lumore: Ibër, Lepenc dhe Morava e Binces, dhe ky lloj monitorimi është bërë për herë të parë në Kosovë në maj të vitit 2023 (T2/ 2023). I njëjti monitorim është përsëritur edhe në tetor 2023. Monitorimi do të vazhdojë edhe në të ardhmen.",1,"Me vendim te Sekretarit te Pergjithshëm te MMPHI  eshte themeluar Sekretariati Teknik I Keshillit Kombetar per Ndryshime Klimatike me anetare nga disa institucione te perfshira."]
["MMPHI","Miratohimi I  Projektligjit për Ujërat e Kosovës dhe aktet nënligjore për Kushtet,\nMënyrat, parametrat dhe vlerat kufizuese të shkarkimit të ujërave të zeza në publik\nRrjeti i Kanalizimeve dhe në Trupin Ujor (K3/2022)","Koncept dokumenti per fushen e ujerave, i miratuar",1]
["MMPHI","Hartimi i Koncept Dokumentit për Mbrojtjen e Natyrës (K4/2022)","Koncept dokumenti për fushën e mbrojtjes së natyrës, i miratuar \n",1]
["MMPHI","\n“Ndrysho Ligjin për Vlerësimin e Ndikimit në Mjedis sipas standardeve të BE-së\npërfshirja e komponentit social (K2/2022)\"","Projektligji për Vlerësimin e Ndikimit në Mjedis është miratuar në Kuvend me 15 dhjetor 2022.",1]
["MMPHI","Miratimi i Planit Hapësinor për Parkun Kombëtar “Sharri””, (K2/2023) dhe miratimi i\nPlani Hapësinor “Bjeshkët e Nemuna” (K4 2022)","Më 07.06.2023 Kuvendi i Republikës së Kosovës e ka miratuar dokumentin e Planit Hapësinor të Parkut Kombëtar “Bjeshkët e Nemuna”.",1]
["MMPHI","Miratimi i projektligjit për Parandalimin dhe Kontrollin e Integruar të Ndotjes (K2/2022).","Ligji për parandalimin dhe kontrollin e integruar të ndotjes, i miratuar ne Kuvendin e Kosoves me daten 08.03.2023 (nuk ka qene I planifikuar ne PKIE 2023)",1]
["MMPHI","Të rrisë mbulimin e grumbullimit të mbetjeve, të zbatojë reduktimin e gjerë, ndarjen e riciklimit dhe ripërdorimin e mbetjeve,","Fillimi i krijimit të sistemit të rikthimit të depozitës për shishe, plastikë dhe kanaçe",1]
["MMPHI","Të zbatohet  strategjia e ndryshimeve klimatike dhe planin e veprimit për ndryshimet klimatike;","Plani i Veprimit te Strategjise per Ndryshime Klimatike ",1]
["MMPHI","Planet e cilësisë së ajrit për zonat në të cilat nivelet e ndotësve tejkalojnë qartë vlerat kufitare duhet  të miratohen;","Plani i rishikuar kombëtar për cilësinë e ajrit, i miratuar",1]
["MMPHI","Monitorimi dhe menaxhimi efektiv i zonave të mbrojtjes së ujit duhet ende të përmirësohet. Një sistem efektiv monitorimi i ujit, me të dhëna të disponueshme për publikun, duhet të ngrihet urgjentisht.;","Krijimi i Sistemit online të Informacionit Mjedisor",1]
["MMPHI","Fillimi i hartimit të një strategjie afatgjatë të dekarbonizimit (K1/2022)","Fillimi i hartimit të strategjisë për dekarbonizim",1]
["MMPHI","Miratimi i Strategjisë për Mbrojtjen e Mjedisit dhe Zhvillimin e Qëndrueshëm 2022-\n030 (K4/2022)","Strategjia për Mbrojtjen e Mjedisit dhe Zhvillim të Qëndrueshëm 2022-2030, e miratuar",1]
["MMPHI","Miratimi I Planit të Veprimit për Cilësinë e Ajrit (K4/2022) dhe planin e cilësisë së ajrit për Prishtinën\n(K3/2022)","Plani i rishikuar kombëtar për cilësinë e ajrit, i miratuar",1]
["MMPHI","Zhvillimi dhe fillimi I zbatimi të planit gjithëpërfshirës të zhvillimit të kapaciteteve institucionale\npër zbatimin dhe zbatimin e legjislacionit për menaxhimin e mbetjeve.","Trajnimi i nivelit komunal për zbatimin e legjislacionit për menaxhimin e mbeturinave",1]
["MMPHI","Fillimi i përgatitjes së programeve të parandalimit të mbetjeve (K2/2022)","Fillimi i zbatimit të projekteve për menaxhimin e mbeturinave të rrezikshme: objektin për ruajtjen e përkohshme të mbetjeve të rrezikshme, dekomisionimi i Kosovës A",1]
["MMPHI","Miratimi i planit të menaxhimit “Drini i Bardhë” (K3/2022) dhe identifikimi dhe monitorimi i të tjerave.\nzonat e rrezikut në lidhje me ujërat nëntokësore dhe sipërfaqësore dhe raportin mbi gjendjen e lojës dhe\nmasat e propozuara korrigjuese (K4/2022)","Plani i menaxhimit për pellgun e lumit Drini i Bardhë, i finalizuar",1]
[null,"Fillimi i hartimit të Ligjit për Mbrojtjen e Natyrës (K1/2023)","Plotësim-ndryshimi i Ligjit nr.03/L-233 për mbrojtjen e natyrës",1]
[null,"Miratimi dhe hartimi i planeve të detajuara rregulluese për Parkun Kombëtar Sharri dhe për\nParku Kombëtar “Bjeshkët e Nemuna” (K2/2022)","Plani hapësinor i parkut kombëtar ‘Bjeshkët e Nemuna’, i miratuar",1]
["MMPHI","Finalizimi i hartimit të planeve të menaxhimit të pellgjeve lumore për trupat ujorë të mbetur\n(d.m.th. Ibër, Morava e Binçës dhe Lepenc) (K2/2024)",null,0]
["MMPHI","Kosova duhet të fillojë të synojë dhe zgjeroj përdorimin e karburanteve alternative, në përputhje me Agjendën e Gjelbër për Ballkanin Perëndimor dhe Strategjinë e Mobilitetit së Zgjuar dhe të Qëndrueshme për Ballkanin Perëndimor.",null,0]
["MMPHI","Duhet të fillojë puna për krijimin e Agjencisë së Sigurisë Rrugore dhe zhvillohet një Strategji gjithëpërfshirëse e Sigurisë Rrugore për 2022-2030, duke përfshirë vendosjen e objektivave dhe mbledhjen e të dhënave më të besueshme të aksidenteve.",null,0]
["MMPHI","Kosova duhet të zbatojë rekomandimet e raportit CONNECTA për të përmirësuar cilësinë e rrjetit rrugor dhe veprimet, siç janë përcaktuar në planin rajonal të veprimit të Traktatit të Komunitetit të Transportit për sigurinë rrugore.",null,0]
["MMPHI","Kosova duhet të sigurojë nënshkrimin dhe zbatimin e marrëveshjes financiare 2020-2024 me INFRAKOS, - Menaxherin e infrastrukturës hekurudhore.",null,0]
["MMPHI","Sektori i aviacionit vazhdon të përballet me një numër sfidash që dalin nga mos anëtarësimi i Kosovës në disa organizata ndërkombëtare të aviacionit civil.",null,0]
["MMPHI","Kosova duhet të vazhdojë harmonizimin me pikat e mbetura të fazës së parë të HPEA.",null,0]
["MMPHI","Transpozimi I egjislacionit kombëtar Direktivën e Këshillit 92/106/EEC mbi\nvendosja e rregullave të përbashkëta për disa lloje të transportit të kombinuar të mallrave\nndërmjet shteteve anëtare. (K3/2022).",null,0]
["MMPHI","Zbatimi I tërësishëm i veprimeve të përcaktuara në planin rajonal të veprimit për Sigurinë Rrugore të miratuar në\nTetor 2020 (vazhdimisht)\"",null,0]
["MMPHI","Zhvillimi I një strategjie gjithëpërfshirëse kombëtare të sigurisë rrugore për 2021-2030, duke përfshirë\nvendosja e objektivave (K4/2022) dhe mbledhja e të dhënave më të besueshme të aksidenteve. (K4/2022)",null,0]
["MMPHI","Të reflektohet mbi  strukturën institucionale të sigurisë rrugore për adresimin e sfidave sa më shpejt\ntë jetë e mundur dhe të kryhet një vlerësim që përcakton nevojat për përmirësimin e sigurisë rrugore\nmenaxhmenti (duke reflektuar diskutimet në mbledhjen e KS për krijimin e një drejtuesi\nAgjencia për sigurinë rrugore) (K4-2022)",null,0]
["MMPHI","“Vazhdimi i identifikimit të akseve rrugore me rrezikshmëri të lartë dhe zbatimi i plotë i rekomandimeve për përmirësimin e cilësisë së rrjetit rrugor. (e vazhdueshme)\"",null,0]
["MMPHI","“Vazhdimi i transpozimit të acquis të tregut hekurudhor të BE-së dhe, në veçanti, harmonizimi i ligjit për Hekurudhat me Direktivën 2012/34, të ndryshuar me Direktivën 2016/2370 (të vazhdueshme)\"",null,0]
["MMPHI","Të sigurohet nënshkrimi i marrëveshjes financiare 2020-2024, të dorëzuar nga INFRAKOS\nnë tetor 2019, ndërmjet Menaxherit të Infrastrukturës dhe autoriteteve kompetente\n(K1/2023)",null,0]
["MMPHI","Përfundimi I  transpozimit të  pjesëve të mbetura në fazën 1 të\nMarrëveshjes Evropiane për Zonën e Përbashkët të Aviacionit (ECAA) (K4/2022)",null,0]
["MMPHI","Vazhdimi I përpjekjeve për të transpozuar acquis të të drejtave të pasagjerëve të BE-së në të gjitha mënyrat e\ntransporti (i vazhdueshëm)",null,0]
["MMPHI","harmonizimi dhe fillimi i zbatimit të dispozitave ligjore për përgjegjësinë mjedisore, dëmin dhe krimin; ",null,0]
["MMPHI","Të zbatojë parimin ndotësi paguan dhe të rrisë ndërgjegjësimin e publikut për mbrojtjen e mjedisit;",null,0]
["MMPHI","Kosova ende duhet të harmonizojë mbrojtjen e saj mjedisore me direktivën e përgjegjësisë mjedisore.",null,0]
["MMPHI","Edhe pse legjislacioni i inspektimit mjedisor është riformuluar, ai ende nuk është miratuar dhe ende mungon kapaciteti zbatues.",null,0]
["MMPHI","Koordinimi ndërinstitucional dhe përfshirja e shoqërisë civile duhet të rritet;",null,0]
["MMPHI","Kosova duhet të marrë përsipër përgjegjësitë e ndërgjegjësimit nga komuniteti ndërkombëtar dhe organizatat e shoqërisë civile;",null,0]
["MMPHI","Kosova duhet të zbatojë në mënyrë efektive masat për ndalimin e thëngjillit për ngrohje dhe të fillojë futjen e subvencioneve dhe investimeve për forma të tjera të ngrohjes;",null,0]
["MMPHI","Kuadri ligjor duhet të përfshijë përgjegjësinë e zgjeruar të prodhuesit dhe parimin ndotësi paguan;",null,1]
["MMPHI","Duhet të plotësohen hartat e rrezikut dhe rrezikut nga përmbytjet. Ujërat e zeza dhe shkarkimet e patrajtuara mbeten burimet kryesore të ndotjes së ujit, veçanërisht lumenjve ",null,0]
["MMPHI","Masat efektive për të siguruar mbrojtjen e specieve të rrezikuara;",null,0]
["MMPHI","Zbatimi i kornizes ligjore për eksportin dhe importin e kimikateve të rrezikshme;",null,0]
["MMPHI","Krijimi i  një qendre për kontrollin e helmimeve kimike;",null,0]
["MMPHI","Instalimin e Shërbimeve Transevropiane për Telematikë ndërmjet Administratave (TESTA) si parakusht për instalimin e sistemit të përbashkët të komunikimit dhe informacionit të urgjencës (CECIS) të Komisionit Evropian;",null,0]
["MMPHI","Korniza strategjike dhe legjislative duhet të përshtatet me qëllimet strategjike të BE-së që rrjedhin nga Axhenda e Gjelbër për Ballkanin Perëndimor;",null,0]
["MMPHI","Zbatimi i plotë i strategjisë për ndryshimet klimatike duhet të shërbejë si udhërrëfyes për arritjen e objektivave të marrëveshjes  së Konventës në Kuadër të OKB-së për Ndryshimet Klimatike",null,0]
["MMPHI","Zbatimi i strategjisë së ndryshimeve klimatike dhe planit të veprimit për ndryshimet klimatike",null,0]
["MMPHI","Përgatitja e  afateve kohore për përafrimin legjislativ dhe implikimet financiare të\nveprimet në lidhje me ndryshimet klimatike (K3/2022)",null,0]
["MMPHI","Përmirësimi i bashkëpunimit ndërinstitucional për të siguruar integrimin e ndryshimeve klimatike në\nsektorë të tjerë, veçanërisht në energji dhe transport, dhe për të forcuar rolin e\nKëshilli Kombëtar për Ndryshimet Klimatike (në vazhdim)",null,0]
["MMPHI","Përforcimi në mënyrë të konsiderueshme dhe urgjente aktivitetet ndërgjegjësuese (në vazhdimësi) dhe raportoni\nmbi progresin (tremujore).",null,0]
["MMPHI","Miratimi i projektligjit për mbeturinat (K2/2022)",null,0]
["MMPHI","Përgatitja dhe miratimi I transpozimin në ligjin KO të direktivave të BE-së për rrjedhën e mbetjeve\n(K1/2023)",null,0]
["MMPHI","Hartimi i Udhëzimit Administrativ për transpozimin e plotë të Direktivës për Nitratet\n(K1/2023).\"",null,0]
["MMPHI","Miratimi i ligjit të ndryshuar për mbrojtjen nga zhurma (K2/2022)",null,0]
["Përqindja",null,null,{"v":0.49,"d":"49%"}]
["Rezultati i përgjithshëm",null,null,5]
["Ministria e Arsimit, Shkencës, Teknologjisë dhe Inovacionit"]
["MASHTI","Kosova duhet te  zhvillojë një qasje strategjike për zhvillimin, prioritizimin dhe promovimin e kërkimit shkencor dhe inovacionit dhe të sigurojë shpenzime më të larta të qeverisë për kërkimin shkencor; kërkojnë të stimulojnë investimet nga sektori privat duke plotësuar një Strategji Smart Specializimi","Programi Kombëtar i Shkencës, i hartuar ",1,"UA për plotësim-ndryshimin e UA për Standardet dhe Procedurat e Verifikimit të Standardeve të Profesionit, i miratuar"]
["MASHTI","Gjithashtu duhet te vazhdohet me perpjekjen për të rritur pjesëmarrjen në programin Horizon Europe;","Pikat kombëtare të kontaktit për Programin Horizon, të funksionalizuara ",1,"Mbështetja e qendrave mësimore për romë, ashkalinj dhe egjiptianë"]
["MASHTI","Duhet te behet finalizimi i zbatimit të kornizës së re kurrikulare për arsimin bazë me tekste cilësore dhe duke ofruar trajnime të qëndrueshme për mësuesit;","Kurrikula bërthamë për edukimin në fëmijërinë e hershme, e hartuar dhe miratuar \nKorniza Kurrikulare për AAP, e miratuar",1,"Bursat për nxënës dhe studentë romë, ashkalinj dhe egjiptianë, të ndara"]
["MASHTI","Përgatitja dhe miratimi i Planit të ri Strategjik të Arsimit 2022-2026 [K2 202].","I përfunduar",1,"Platforma KRIS, e finalizuar dhe lansuar"]
["MASHTI","Të sigurohet zbatimi i suksesshëm i Ligjit për Inspektimin e Arsimit dhe të sigurohet\nKomisioni me objektivat e synuara për inspektimin e shkollave për vitet në vijim. (K4 2022)","Së pagu 20 Inspektorë të rinj, të rekrutuar ",1,"Infrastruktura e pershtatur (pjerrinat) në 14 shkolla, brenda dhe jashte objektit"]
["MASHTI","Miratimi i Ligjit për Arsimin në Fëmijërinë e Hershme","Projektligji për edukimin në fëmijërinë e hershme 0-6 vjeç, i miratuar",1]
["MASHTI","Ligji për Tekstet dhe Materialet Mësimore [Q32022]","Projektligji për Agjencinë e Akreditimit, i miratuar ",1]
["MASHTI","Ligji për Arsimin e Lartë [K4 2022].","Projektligji për Arsimin e Lartë, i miratuar",1]
["MASHTI","Miratimi i Ligjit për Agjencinë Kosovare të Akreditimit [K2 2022]","Projektligji për Agjencinë e Akreditimit, i miratuar ",1]
["MASHTI","Vazhdimi i përpjekjeve për të rritur shkallën e regjistrimit në fëmijërinë e hershme të fëmijëve 0-5 vjeç\nrritja e numrit të objekteve të kujdesit për fëmijët përmes ndërtimit të objekteve të reja si dhe përshtatjes\nshkolla/hapësira alternative të disponueshme për ofrimin e shërbimeve në edukimin e fëmijërisë së hershme",null,0]
["MASHTI","Kosova duhet te ofrojë të dhëna statistikore për numrin e studiuesve, përqindjen e PBB-së të shpenzuar për kërkimin dhe inovacionin, dhe performancën në lidhje me prioritetet e Zonës Evropiane të Kërkimit.",null,0]
["MASHTI","Cilësia e arsimit duhet të përmirësohet dhe legjislacioni kyç (përfshirë arsimin parashkollor, arsimin e lartë dhe agjencinë e akreditimit) duhet të miratohet nga Kuvendi.",null,0]
["MASHTI","Kosova duhet te rrise ofrimimin e arsimit dhe formimit profesional cilësor për profesionet e kërkuara në funksion të Garancisë për Rininë",null,0]
["MASHTI","Kosova duhet të vazhdojë përpjekjet për t'u ofruar fëmijëve me aftësi të kufizuara qasje në arsim cilësor.",null,0]
["MASHTI","Publikimi i të dhënave të sakta në fushën e arsimit dhe rinisë (përfshirë PBB-në\nshpenzimet për arsimin), të cilat duhet të jenë të matshme, të gjurmueshme dhe të krahasueshme me kalimin e kohës.\nSigurohuni që Sistemi Informativ i Menaxhimit të Arsimit të zhvillohet më tej për të përmbushur\nnevojat aktuale dhe të ardhshme në këtë fushë.[K4 2022]",null,0]
["MASHTI","“Rritja e administrimit, rritja e pjesëmarrjes dhe zbatimi i ndërkombëtarëve\nvlerësimet.[K4 2022]\"",null,0]
["MASHTI","Vazhdimi i përpjekjeve për të siguruar qasje në arsimin online për të gjithë fëmijët në arsimin bazë,\nveçanërisht ato nga familjet me të ardhura të ulëta dhe grupet e margjinalizuara.",null,0]
["MASHTI","Vazhdimi i përpjekjeve për rritjen e shkallës së regjistrimit të nxënësve/studentëve me nevoja të veçanta dhe parandalimi\nbraktisja.[K4 2022]",null,0]
["MASHTI","Përmirësimi i cilësisë së arsimit në të gjitha nivelet duke aplikuar në mënyrë sistematike cilësinë ekzistuese\nmekanizmat e sigurimit, si koordinatorët e cilësisë, inspektimet e shkollave në arsimin bazë dhe\ntë sigurojë monitorim të rreptë të kushteve të Agjencisë së Kosovës për Akreditim për akreditimin e\nprogramet e arsimit të lartë.[K4 2022]",null,0]
["MASHTI","Përfundimi i një rishikimi të përgjithshëm të legjislacionit që lidhet me zhvillimin profesional të mësuesve dhe\nlicencimi i mësuesve [K4 2022] me synimin për të ndërmarrë hapa konkretë për të siguruar burime për\nzhvillimin profesional të mësuesve dhe lidhjen e pagave të mësuesve me trajnimet e tyre dhe\nperformanca [K1 2023]",null,0]
["MASHTI","Vazhdimi i trajtimit të  rrezikut të  korrupsionit dhe ndikimit politik, në konsultim të ngushtë me\nstudentët dhe raportojnë për veprimet e ndërmarra, duke përfshirë zgjedhjen e bazuar në merita të mësimdhënies dhe stafi drejtues [K4 2022]",null,0]
["MASHTI","Rritja e pjesëmarrjes në programin e ri Erasmus+.[K4 2022]",null,0]
["MASHTI","Vazhdimi I sigurimit të të dhëna vestatistikore (sipas Manualit Frascati të OECD) mbi\nshuma, dhe Përqindja e PBB-së, e shpenzuar për Hulumtim dhe Inovacion, dhe për performancë\nlidhur me Prioritetet e Zonës Evropiane të Kërkimit",null,0]
["MASHTI","Të ofrohen treguesit e nevojshëm statistikorë që Kosova të marrë pjesë në Evropian\nTabela e rezultateve të inovacionit (K4, 2022)",null,0]
["MASHTI","Forcimi i pjesëmarrjes në Horizon Europe për të arritur të paktën nivelet e vitit 2019 dhe merrni pjesë në ato kyçe\nIniciativat Horizon Europe (ESS, EOSC, EuroHPC), në veçanti EuroHPC Joint\nNdërmarrja (K2, 2022) dhe bashkimi në raundin e 11-të të Anketës Sociale Evropiane (K2, 2022)",null,0]
["MASHTI","Përfundimi i Procesit te Zbulimit të Sipërmarrjes të Strategjisë së Specializimit të zgjuar\nprocesi [K4 2022].",null,0]
["MASHTI","Pjesëmarrja në masat rajonale të inovacionit.",null,0]
["Përqindja",null,null,{"v":0.33,"d":"33%"}]
["Rezultati i përgjithshëm",null,null,4]
["Ministria e Bujqësisë, Pylltarisë dhe Zhvillimit Rural"]
["MBPZHR","Miratimi i Programit të Bujqësisë dhe Zhvillimit Rural","Programi për bujqësi dhe zhvillim rural 2022-2027, i miratuar",1,"Plani kombëtar për bujqësi organike, i miratuar"]
["MBPZHR","Projektligji për tokën bujqësore","Projektligji për tokën bujqësore, i miratuar",1,"Projektligj i për veterinarinë, i miratuar"]
["MBPZHR","Miratimi i Ligjit për organizimin e tregut të përbashkët","Projektligji për organizimin e tregut të përbashkët të produkteve bujqësore, i miratuar",1,"Plani për avancimin e ndërmarrjeve agro-ushqimore, i miratuar"]
["MBPZHR","Përfundimi I procesit për të krijuar një inventar të llojeve të peshqve në një zonë pilot","Inventarizimi i peshkut (pilotprojekt) në një (1) pellg lumor, i finalizuar",1]
["MBPZHR","Sigurimi i burimeve adekuate financiare për Agjencinë e Ushqimit dhe Veterinarisë së Kosovës (AVUK) (K3 2022) në mënyrë që ndër të tjera të ketë një numër adekuat të inspektorëve",null,0]
["MBPZHR","Miratimi I  Udhëzimeve Administrative për nënproduktet shtazore që transpozojnë Rregulloren (EC) 1069/2009 (T3 2022) dhe Rregulloren zbatuese (EC) 142/2011 (T4 2022);",null,0]
["MBPZHR","Zbatimi i aspekteve të Strategjisë së Zhvillimit Rural 2022-2028 në lidhje me përmirësimin e objekteve bujqësore ushqimore;",null,0]
["MBPZHR","Vazhdimi i forcimit të mekanizmave të bashkëpunimit me homologët serbë për të luftuar kundër tregtisë ilegale të kafshëve të gjalla dhe produkteve agroushqimore (raportet tremujore që do t'i dërgohen Komisionit).",null,0]
["MBPZHR","Të finalizohet dhe të miratohet UA për verifikimin e produkteve bujqësore dhe ushqimore (K3 2022) dhe të vazhdohet me regjistrimin e djathit Sharri dhe verës Rahoveci si tregues gjeografikë (K4 2022)",null,0]
["MBPZHR","Finalizimi dhe miratimi i Ligjit të ri për Verërat",null,0]
["MBPZHR","Miratimi i Ligjit për pijet alkoolike",null,0]
["MBPZHR","Miratimi i koncept dokumentit për rregullimin e tokës",null,0]
["MBPZHR","Fillimi i projektit FADN për 2021-24",null,0]
["MBPZHR","Përdorimi në mënyrë efektive i rezultateve të arritura me ndihmën e BE-së, pasi ato janë prodhuar me qëllim të sigurimit të zhvillimit efektiv dhe të qëndrueshëm të sektorit agro-rural të Kosovës.",null,0]
["MBPZHR","Rritja e përpjekjeve për të forcuar kapacitetet administrative për të siguruar përafrimin e duhur legjislativ;",null,0]
["MBPZHR","Përafrimi i mëtejshëm i kontrollit të peshkimit, si dhe akuakulturës, politikave të tregut dhe mbledhjes së të dhënave me acquis;",null,0]
["MBPZHR","Përgatitja e aplikacioneve TAIEX për metodologjinë e mbledhjes së të dhënave dhe avancimit të legjislacionit dhe politikave të peshkimit",null,0]
["Përqindja",null,null,{"v":0.24,"d":"24%"}]
["Rezultati i përgjithshëm",null,null,3]
["Ministria e Punëve të Brendshme"]
["MPB","Vazhdimi i zbatimit të veprimeve prioritare të marrëveshjes zbatuese të Planit të Përbashkët të Veprimit ndërmjet BE-së dhe Ballkanit Perëndimor.","Raportet gjashtëmujore për zbatimin e Planit të Përbashkët të Veprimit BE – Ballkan Perëndimor kundër Ekstremizmit të Dhunshëm dhe Terrorizmit, të hartua",1,"Të paktën 20% të projektligjeve ekzistuese, draft ligjeve, akteve nënligjore dhe udhëzimeve administrative që përmbajnë procedura të veçanta administrative dhe janë pjesë e programit legjislativ, të harmonizuara me LPPA"]
["MPB","Përmirësimi i sistemeve të menaxhimit të të dhënave të migracionit dhe azilit, duke përfshirë futjen e një mekanizmi të harmonizuar dhe të qëndrueshëm të regjistrimit dhe mbledhjes së të dhënave biometrike, i cili është në përputhje me standardet e zbatueshme ndërkombëtare dhe të BE-së, si dhe garanton ndërkomunikueshmëri/ndërveprim të sistemeve të menaxhimit të informacionit dhe bazat e të dhënave duke përfshirë në nivel rajonal, nëpërmjet zhvillimit të mëtejshëm të Sistemit të Informacionit të Menaxhimit të Migracionit. Sigurimi i trajnimeve për ngritjen e kapaciteteve për zyrtarët qeveritarë (vendorë dhe kombëtarë) për menaxhimin e të dhënave. Rritja graduale e stafit ekspertë/specializuar të institucioneve përkatëse në fushën e migracionit dhe azilit në procedurat transparente të punësimit me fokus kompetencën dhe ekspertizën e kërkuar teknike.","Programi i TI -së, me opsionin QlikView, për të përfshirë Sistemin e Menaxhimit të Rasteve (CMS) dhe Platformën e Inteligjencës Kufitare (BI), i avancuar\nSë paku pesë (5) trajnime, për 400 zyrtarë të nivelit qendror dhe lokal, për zbatimin e politikave për riintegrimin dhe integrimin e të huajve, të mbajtur\nTrajnim i trajnerëve (TT) me pjesëmarrjen e së paku dhjetë (10) zyrtarëve të nivelit qendror dhe lokal, për integrimin e të huajve, i mbajtur\n",1,"Memorandum shpjegues për ligjin për inspektim administrativ, i hartuar"]
["MPB","Të vazhdohen programet në mbështetje të riintegrimit të qytetarëve të Kosovës dhe të sigurohet që ato të jenë gjithëpërfshirëse dhe të financuara në mënyrë adekuate. Krijimi i mekanizmit funksional të referimit ku të gjithë të kthyerit kanë akses në informacionin e disponueshëm për mbështetjen e riintegrimit.","Së paku 60 gra ose vajza përfituese nga skemat e riintegrimit dhe integrimit të qëndrueshëm",1,"Së paku tridhjetekatër (34) prej tridhjetetetë (38) planeve lokale të veprimit për riintegrim, të miratuara"]
["MPB","Të sigurohet që masat e hershme të integrimit për refugjatët të merren parasysh duke përfshirë mjetet e mjaftueshme materiale dhe financiare për të mbështetur integrimin e qëndrueshëm ligjor, social, ekonomik dhe kulturor të të huajve siç parashikohet nga Rregullorja për Integrimin e të Huajve dhe Udhëzimet. Mbrojtja e fëmijëve dhe aksesi në arsim për aplikantët dhe refugjatët, duke përfshirë kurset e gjuhës, skemat e qirasë, përfitimet sociale duke përfshirë refugjatët e moshuar, aksesin në tregun e punës dhe mundësitë për mbështetje te vetja duhet të kenë përparësi.","Udhëzuesi për monitorimin e integrimit të të huajve, i hartuar\nQarkorja informative për zbatimin e politikave për riintegrim të qëndrueshëm, e hartuar",1,"Profili i Zgjeruar i Migrimit 2018- 2022, i miratuar"]
["MPB","Policia e Kosovës, të emërojë dhe të dërgojë zyrtarin ndërlidhës të PK-së në Shtabin e Europolit","Zyrtari ndërlidhës me EUROPOL, i sistemuar",1,"Ndërlidhja e NjIP -së, me së paku tre (3) operatorë për të pranuar të dhëna REU, e funksionalizuar"]
["MPB","Vazhdimi i procesit të dixhitalizimit (verifikimi i të dhënave dhe lidhja/përputhja e të dhënave), në përputhje me afatet kohore të dakorduara në kuadër të programeve të asistencës së BE-së, në mënyrë që të sigurohet finalizimi i një sistemi të sigurt, të qëndrueshëm dhe të besueshëm të gjendjes civile, gjithëpërfshirës nga të gjitha burimet e disponueshme të të dhënave, si si dhe për të mbështetur lidhjen e tij me sisteme të tjera përkatëse (d.m.th. adresat, ID-të, pasaportat). ","Faza e tretë e digjitalizimit të librave të skanuar, përkatësisht verifikimi i të dhënave dhe lidhja/përputhja e të dhënave, e zbatuar",1,"Plani i veprimit i QKMK, i zbatuar plotësisht"]
["MPB","Vazhdimi i përmirësimit të cilësisë dhe besueshmërisë së të dhënave të përpunuara dhe të regjistruara në Sistemin Qendror të Regjistrimit të Gjendjes Civile, duke përfshirë strukturën dhe dizajnin e bazës së të dhënave.","Sistemi ARIS dhe Sistemi Qendror për Regjistrim Civil, të funksionalizuar dhe ndërlidhur",1,"Së paku njëzet (20) analistë të trajnuar në fushën e analizës"]
["MPB","Të përmirësojë llogaridhënien në sektorin publik duke: (1) zbatimin efektiv të Ligjit për Organizimin dhe Funksionimin e Administratës Shtetërore dhe Agjencive të Pavarura dhe (2) duke përshpejtuar riorganizimin e vazhdueshëm të agjencive duke krijuar një organ drejtues dhe duke miratuar një plan veprimi të rishikuar për racionalizim ","Projektligji për valën e tretë të racionalizimit të agjencive, i miratuar\nProjektligji për valën e dytë të racionalizimit të agjencive, i miratuar\nKoncept dokumenti për valën e tretë të racionalizimit të agjencive, i miratuar\nKoncept dokumenti për valën e katërt të racionalizimit të agjencive, i miratuar\nPlani për racionalizimin e agjencive, i rishikuar\n\n",1,"Plani i Përbashkët në mes të Policisë së Kosovës dhe Guardia di Finanza, i hartuar"]
["MPB","Forcimi i bashkëpunimit multidisiplinar në procedurat hetimore përmes komunikimit ndërinstitucional dhe shkëmbimit të informacionit, inspektimeve të përbashkëta dhe ekipeve hetimore shumëdisiplinore",null,0,"Projektligji për plotësim-ndryshim e ligjeve që përmbajnë procedura të veçanta administrative dhe harmonizimin e tyre me ligjin për procedurën e përgjithshme administrative, faza e dytë, i miratuar"]
["MPB","Krijimi i Zyrës së Koordinatorit Kombëtar me burime adekuate financiare dhe njerëzore",null,0,"Së paku 50 shërbime të reja në platformën eKosova, të funksionalizuar"]
["MPB","Krijimi dhe funksionalizimi i një strukture/mekanizmi në kuadër të Ministrisë së Punëve të Brendshme me buxhetin dhe burimet e nevojshme, kështu që filloni me trajnimin e stafit dhe hartimin e akteve nënligjore dhe dokumenteve të tjera të nevojshme për mbrojtjen e infrastrukturës kritike. ",null,0,"Ofrimi i shërbimeve të gjendjes civile në komunat veriore"]
["MPB","Të forcohet bashkëpunimi dhe koordinimi ndërinstitucional në fushën e migracionit dhe azilit, veçanërisht ndërmjet institucioneve të ndryshme të politikës dhe sigurisë, duke përfshirë ndërveprueshmërinë e sistemeve të TI-së. Të forcohet dixhitalizimi i menaxhimit të kufirit duke zhvilluar përmirësimet e nevojshme të sistemeve përkatëse të TI-së dhe duke prokuruar pajisje të përshtatshme.",null,0,"Rishikimi i kornizës ligjore dhe popullimi i regjistrit qendror me të gjitha të dhënat e qytetarëve, përfshirë ato historike, duke zvogëluar rastet e personave pa dokumente"]
["MPB","Merrni hapat e nevojshëm për të funksionalizuar dhe siguruar qëndrueshmërinë e qendrës së re të pritjes për akomodimin e përkohshëm të pritjes, regjistrimin biometrik dhe identifikimin e personave vulnerabël, duke përfshirë proceset efektive të referimit",null,0,"Projektligji për plotësim-ndryshim e Ligjit për Organizimin dhe Funksionimin e Administratës Shtetërore dhe Agjencive të Pavarura, i miratuar"]
["MPB","Të përmirësohen më tej praktikat e ndjeshme ndaj mbrojtjes për kthimin dhe ripranimin e migrantëve të parregullt dhe azilkërkuesve të dështuar në vendet e tyre të origjinës. Legjislacioni i kthimit të jetë në përputhje me strategjinë e re të BE-së, e cila synon rritjen e numrit të kthimeve vullnetare dhe përmirësimin e cilësisë së mbështetjes së ofruar për të kthyerit.",null,0,"Platforma digjitale për raportimin mbi zbatimin e kornizës strategjike të RAP, e funksionalizuar"]
["MPB","Të përmirësohen kushtet e jetesës në Qendrën e Paraburgimit për të Huaj dhe të merret parasysh punësimi i personelit administrativ shtesë. Eksploroni opsionin e ndryshimit të qëllimit të Qendrës aktuale të Paraburgimit për të Huajt në Qendër Tranzite për të siguruar një trajtim të sigurt dhe njerëzor pa elemente që sjellin paraburgim në përputhje me ligjin për azilin që parashikon alternativa ndaj ndalimit",null,0,"Gjashtë (6) rregullore për zbatimin e Ligjit për Zyrtarët Publikë, të plotësuara-ndryshuara"]
["MPB","Për sa i përket procedurës së azilit, kërkohet ndërtim i mëtejshëm i kapaciteteve të menaxherëve të rasteve të Përcaktimit të statusit të refugjatit (RSD) për të siguruar standarde cilësore të menaxhimit të rasteve dhe vendimmarrjes për azilin, aplikimin e standardizuar të Informacionit të Vendit të Origjinës (COI) dhe përdorimin e të përshpejtuar dhe të thjeshtuar. procedurat si për rastet qartazi të bazuara ashtu edhe ato të pabazuara gjatë procedurave të para-pranimit/skanimit në kufi. Krijimi i procedurave në lidhje me të miturit e pashoqëruar (BIA/BID) duke përfshirë përcaktimin e moshës, kujdestarinë ligjore dhe komunikimin duhet t'i jepet përparësi.",null,0,"Projektligji për inspektimin administrativ, i miratuar"]
["MPB","Të shtohen përpjekjet për të shpërbërë rrjetet e kontrabandës (përqendrimi te të miturit e pashoqëruar dhe të ndarë) përmes rritjes së monitorimit, raportimit dhe hetimit të rrjeteve të mundshme të kontrabandës dhe kontrabandistëve që trajtojnë migrantët dhe personat që kanë nevojë për mbrojtje ndërkombëtare në Kosovë.",null,0,"Profili i Lehtë i Migrimit 2022, i miratuar"]
["MPB","Sigurimi i potencialit të plotë të Qendrës Kombëtare për Menaxhimin e Kufirit duke zbatuar plotësisht Planin e Veprimit të MKKM të shkurtit 2019 dhe përditësimet përkatëse. NCBM është një bazë për Qendrën Kombëtare të Koordinimit të së ardhmes së afërt (QKK) bazuar në rregulloren EUROSUR. Në këtë drejtim, flukset e informacionit ndërmjet QKBM-së, të gjithë komponentëve të tjerë të analizës së rrezikut dhe strukturave të kontrollit dhe komandës së Policisë së Kosovës do të zbatohen në mënyrë efektive (online) për të lehtësuar pasqyrën gjithëpërfshirëse të situatës dhe reagimin e shpejtë operacional.",null,0,"Projektligji për shtetësinë, i plotësuar-ndryshuar"]
["MPB","Rritja e kapaciteteve operacionale dhe analitike për të adresuar dhe zbutur sfidat e sigurisë kufitare dhe krimit të organizuar transnacional në kontekstin e përzier të migracionit. Zhvilloni korniza të përshtatshme operacionale për mashtrimin e identitetit dhe dokumenteve të udhëtimit dhe lehtësoni zhvillimin dhe zbatimin e sistemeve API/PNR gjithashtu duke mbështetur përpunimin e ligjeve kombëtare dhe kapacitetet operacionale.",null,0,"Projektligji për plotësim - ndryshimin e Ligjit për të Huajt, i miratuar"]
["MPB","Forcimi i sistemit të menaxhimit të kufijve të ndjeshëm ndaj mbrojtjes përmes bashkëpunimit ndër-rajonal duke përfshirë shkëmbimin e rregullt të informacionit, si dhe me agjencitë e BE-së që luajnë një rol të rëndësishëm në zbatimin e menaxhimit të kufijve të ndjeshëm ndaj mbrojtjes si Agjencia e Azilit të Bashkimit Evropian (EUAA) dhe Agjencia Evropiane e Rojës Kufitare dhe Bregdetare (FRONTEX)",null,0,"Së paku tre (3) trajnime në kuadër të Udhërrëfyesit të bashkëpunimit me EUAA, me pjesëmarrjen e së paku tre (3) zyrtarëve të azilit, të organizuara"]
["MPB","Rritja e ndërgjegjësimit për trafikimin e qenieve njerëzore. Sigurimi i qëndrueshmërisë financiare të strehimoreve për viktimat e trafikimit dhe të mbijetuarit e dhunës seksuale dhe të dhunës me bazë gjinore. Rritja e bashkëpunimit rajonal për të luftuar THB-në. Vazhdoni trajnimet specifike për TQNJ-në për reaguesit e parë, duke përfshirë Policinë e Kosovës dhe zyrtarët e angazhuar në qendrat e azilit, pritjes dhe paraburgimit se si të identifikojnë dhe raportojnë viktimat e qenieve njerëzore (duke përfshirë në mesin e azilkërkuesve, refugjatëve dhe migrantëve).",null,0,"Projektligji për banesa dhe vendbanime, i plotësuar-ndryshuar"]
["MPB","Funksionalizimi i Observatorit Kombëtar të Drogës në kuadër të Ministrisë së Punëve të Brendshme",null,0,"Projektligji për plotësim -ndryshim e Ligjit për Kontrollin dhe Mbikëqyrjen e Kufirit Shtetëror, i miratuar"]
["MPB","Sigurimi i planifikimit adekuat buxhetor dhe ngritjes së kapaciteteve për të mbështetur procesin e vazhdueshëm të riorganizimit të brendshëm dhe sistematizimit të vendeve të punës",null,0,"Së paku 200 policë sektorialë (policë të lagjes), të caktuar"]
["MPB","Përmirësimi i funksionimit të shërbimit civil duke përshpejtuar zbatimin e Ligjit për Zyrtarët Publikë në përputhje me vendimin përkatës të Gjykatës Kushtetuese dhe me parimet e RAP-it, duke organizuar njëkohësisht rekrutues të centralizuar",null,0,"Njësia e Veçante e Hetimeve në PK, e themeluar në përputhje me Ligjin për Prokurorinë Speciale"]
["MPB","Zhvillimi i një skeme koherente pagash në përputhje me parimet e meritës, drejtësisë dhe barazisë në shërbimin civil, duke finalizuar organizimin e brendshëm të ministrive, duke vendosur klasifikime të vendeve të punës dhe sistematizimin e vendeve të punës në shërbimin civil, të cilat mundësojnë kushte për një skemë koherente pagash;",null,0,"Së paku dy (2) trajnime të përbashkëta polici -prokurori, për së paku dhjetë (10) zyrtarë policorë, për hetime financiare, konfiskimin e aseteve dhe mbrojtjen efektive të dëshmitarëve, të mbajtur"]
["Përqindja",null,null,{"v":0.32,"d":"32%"}]
["Rezultati i përgjithshëm",null,null,4]
["Ministria e Industrisë, Ndërmarrësisë dhe Tregtisë"]
["MINT","Continue preparations to establish the Point of Single Contact, including human and IT resources (Q4 2022);","Pika e veKe e kontaktit, e themeluar dhe e funksionalizuar\nUeb-faqja për pikën e veKe të kontaktit, e krijuar dhe e lansuar",1,"Vendimi për publikimin e listës me titujt dhe referencat e standardeve të harmonizuara për pajtueshmërinë elektromagnetike, i miratua"]
["MINT","Increase the human resource capacity of the Ministry of Industry, Entrepreneurship and Trade, notably as regards inspectors, to better protect consumers.","Së paku dhjetë (10) zyrtarë të rinj në inspektoratin e tregut, të rekrutuar\n\nSë paku dhjetë (10) zyrtarë të fushës së sigurisë së produkteve, të trajnuar",1,"Së paku një (1) laborator i ri në Agjencinë e Metrologjisë i themeluar"]
["MINT","Përafrimi i zhvillimeve të ardhshme në legjislacionin për të drejtën e shoqërive tregtare me Direktivën EU/2017/1132 (kodifikimi) dhe dispozitat e tjera të BE-së në fushat ku kishte boshllëqe ose përafrim të pjesshëm në Ligjin për Shoqëritë Tregtare, duke përfshirë kërkesat minimale për kapital, aspektet e zbulimit të informacionit për kompanitë dhe degët e tyre, bashkimet ndërkufitare, mbrojtja e aksionarëve dhe ofertat për blerje","Projektligji për shoqëritë tregtare, i miratuar",1,"Njësia për informimin e bizneseve në lidhje me standardet e themeluar"]
["MINT","Miratimi i projektligjit për shoqëritë tregtare (K1 2023) duke përfshirë përafrimin e tij me acquis më të fundit të BE-së (Direktiva 2017/828, Direktiva 2019/1151 dhe Direktiva 2019/2121);","Projektligji për shoqëritë tregtare, i miratuar",1,"Së paku dy (2) zyrtarë të rekrutuar në Agjencinë e Metrologjisë"]
["MINT","Finalizimi i zbatimit të skemave të reja të akreditimit (organet certifikuese K4 2022). Vazhdohet me përfshirjen e skemave të reja (të vazhdueshme).","Skema e Akreditimit për trupat certifikuese (EN ISO/IEC 17065), e themeluar dhe e funksionalizuar",1,"Dokumenti për politika tregtare, i miratuar"]
["MINT","Finalizimi i Strategjisë për Mbështetjen e Biznesit dhe Zhvillimin e Industrisë dhe Strategjinë e Inovacionit dhe Ndërmarrësisë duke përfshirë masat që synojnë të adresojnë deficitin tregtar të Kosovës në mallra dhe të zgjerojnë tregtinë në shërbime (K4 2022).","Strategjia për zhvillimin e industrisë dhe mbështetje të biznesit, e miratuar",1,"Rregullorja për plotësim - ndryshimin e Rregullores (MINT) nr. 01/2018 për Etiketimin dhe Shënjimin e Produkteve të Tekstilit, e miratuar"]
["MINT","Konsultimi dhe miratimi i një strategjie për të mbështetur mjedisin e biznesit dhe zhvillimin industrial të Kosovës (K4 2022). Në përgatitjen e asaj strategjie, Kosova duhet të marrë parasysh komentet e dhëna nga BE-ja për draft Strategjinë e Zhvillimit të Sektorit Privat (PSDS) në vitin 2019 dhe strategjinë e specializuar të zgjuar, si dhe të integrojë masat për të rritur eksportin e mallrave dhe shërbimeve","Strategjia për zhvillimin e industrisë dhe mbështetje të biznesit, e miratuar",1,"Vendimi për publikimin e listës me titujt dhe referencat e standardeve të harmonizuara për pajisjet elektrike të destinuara për përdorim brenda kufijve të caktuar të tensionit, i miratuar"]
["MINT","Përafrimi i mëtejshëm i legjislacionit për të drejtën e shoqërive tregtare me acquis të së drejtës së kompanive të BE-së, gjithashtu në fushën e të drejtave të aksionarëve, duke përfshirë promovimin e angazhimit afatgjatë të aksionarëve","Projektligji për shoqëritë tregtare, i miratuar",1,"Së paku pesë (5) zyrtarë të rinj në AMK, të rekrutuar"]
["MINT","Zbatimi i riorganizimit të Agjencisë Kosovare për InvesKent dhe Mbështetjen e Ndërmarrjeve për t'i mundësuar agjencisë të hartojë dhe zbatojë shërbimet dhe programet e promovimit dhe kujdesit pasues në mbështetje të investimeve të huaja direkte (K2 2023). Operacionalizimi i procesit të ankesave të investitorëve, që zbaton parimet e Mekanizmit të Përgjigjes së InvesKent Sistemik, i propozuar nga Banka Botërore (K2 2023).","Struktura organizative e KIESA-së e miratuar e cila adreson aspektet kryesore të përmirësimit të performancës: ndarjen e përgjegjësive, burimeve financiare dhe kapaciteteve njerëzore\n\nNjësia e kujdesit për investitorët, e themeluar\n\nProgrami i kujdesit, i miratuar\n\nMekanizmi i ankesës, i krijuar",1,"Koncept dokumentit për fushën e akreditimit, i miratuar"]
["MINT","Miratimi dhe fillimi I zbatimit të një strategjie për zhvillimin industrial dhe biznesin dhe shtyllën e rritjes së qëndrueshme ekonomike të Strategjisë Kombëtare të Zhvillimit 2021-2030","Strategjia për zhvillimin e industrisë dhe mbështetje të biznesit, e miratuar",1,"Standardi EN ISO/IEC 17020 për laboratorët e metrologjisë ligjore (laboratori i masës, laboratori vëllim rrjedhje, laboratori i matjeve elektrike dhe laboratori i presionit), i zbatuar"]
["MINT","Rritja e kapaciteteve profesionale të departamenteve juridike dhe tregtare të Ministrisë së Tregtisë dhe Industrisë për vlerësimin e pajtueshmërisë së projektakteve normative me Ligjin për Shërbime (K3 2022);","Një (1) zyrtar në Departamentin e Tregtisë, i rekrutuar",1,"Sistemi online për shitjen e standardeve, i funksionalizuar"]
["MINT","Rritja e kapaciteteve administrative dhe profesionale të Agjencisë së Pronësisë Industriale edhe për sa i përket numrit të stafit (K4 2022);","Së paku tre (3) trajnime për zyrtarët e Agjencisë së Pronësisë Industriale, të realizuara",1,"UA mbi kërkesat e përcaktuara në relacion me komunikimin tregtar përfshi reklamimin apo marketingun, i miratuar"]
["MINT","Të dorëzojë raportin për zbatimin e legjislacionit për shërbimet në Kosovë për vitet 2018-2021 (K2 2022);",null,0,"Njësia për informimin e bizneseve, e funksionalizuar"]
["MINT","Vazhdimi i harmonizimit të legjislacionit kombëtar të mbetur me Direktivën e Shërbimeve (K4 2022);",null,0,"Laboratori i forcës dhe termometrisë, i akredituar"]
["MINT","Miratimi i Rregullores së ndryshuar për organizimin e brendshëm të Ministrisë së Industrisë, Ndërmarrësisë dhe Tregtisë, duke përfshirë strukturën ligjore të autoriteteve për mbrojtjen e konsumatorit (K3 2022);",null,0,"Së paku 20 biznese (10 deri në K2 2022 dhe 10 deri në K2 2023) të subvencionuara në formë të granteve për certifikim të produkteve"]
["MINT","Ngritja e një mekanizmi monitorimi për të ndjekur zbatimin e Planit të Veprimit pesëvjeçar (K3 2022);",null,0,"UA për biokarburante, i miratuar"]
["MINT","Ratifikimi i Protokollit Shtesë 6 të CEFTA-s për Shërbimet",null,0,"Projektligji për regjistrin e pronarëve përfitues, i miratuar"]
["MINT","Rritja e ndërgjegjësimit të bizneseve, shoqatave profesionale dhe bashkive për thjeshtimin e procedurave administrative të lidhura me zbatimin e Planit të Veprimit pesëvjeçar (K4 2022).",null,0,"Së paku dy (2) sektorë të ri të shërbimeve, të digjitalizuar"]
["MINT","Krijimi i një liste të detajuar të profesioneve të rregulluara që përmbajnë grupin e profesioneve, specialitetet, seksionet e Direktivës së BE-së që lidhen me këtë grup profesionesh, Ligjet që lidhen me këtë grup profesionesh, nëse ka, Organizatat që lidhen me këtë grup profesionesh: organet e informacionit, organet e provimit, ministritë përgjegjëse, autoritetet kompetente. (K3 2022);",null,0,"Së paku dy (2) zyrtarë të rekrutuar në Agjencinë e Metrologjisë"]
["MINT","Kontrolli I kërkesave për qasje në secilin profesion të rregulluar në Kosovë, duke përdorur Direktivën 2018/958 për testin e proporcionalitetit si mjet ndihmës gjatë vlerësimit të kërkesave (K4 2022);",null,0,"Agjencia për përkrahjen e ndërmarrjeve, e themeluar dhe funksionalizuar"]
["MINT","Për të lehtësuar lëvizjen ndërkufitare të profesionistëve dhe shërbimeve, të vendosen strukturat, rregullat dhe procedurat e nevojshme për njohjen e kualifikimeve profesionale të marra në vende të tjera (K4 2022).",null,0,"Analiza e ndikimit të zonave ekonomike në zhvillimin e NVM, e kryer"]
["MINT","Të ndërmerren hapa për të harmonizuar më tej me acquis, veçanërisht në lidhje me markat tregtare dhe sekretet tregtare (K3 2022)",null,0,"Së paku dyzet (40) biznese përfituese të granteve që u ndihmojnë bizneseve për të rritur kapacitetet prodhuese dhe zbatojnë standardet e kërkuara në tregun e BE -së"]
["MINT","Vazhdimi i ndërgjegjësimit për mbrojtjen e të drejtave të pronësisë industriale, duke kontribuar në rritjen e numrit të aplikimeve për pronësi intelektuale. Rritja e ndërgjegjësimit të bartësve të të drejtave për të kërkuar mbrojtje ligjore, duke rritur numrin e kërkesave për veprime në institucionet ligjzbatuese",null,0,"Vlerësimi i performancës së skemave mbështetëse për bizneset të KIESA-s, i realizuar"]
["MINT","Përgatitja dhe miratimi i Strategjisë së Pronësisë Industriale me një afat kohor dhe plan veprimi të qartë (K3 2022)",null,0,"Programi për pronësi industriale, e miratuar"]
["MINT","Sigurimi i harmonizimit dhe zbatimit efektiv të Direktivës për Zbatimin e të Drejtave të Pronësisë Industriale (K3 2022);",null,0,"Së paku një (1) produkt i regjistruar sipas treguesit gjeografik"]
["MINT","Ndërmerrni hapa konkretë, duke përfshirë krijimin e një platforme elektronike, për të rritur kapacitetin dhe koordinimin e institucioneve politikëbërëse dhe agjencive të zbatimit të ligjit – në veçanti efektivitetin e Task Forcës dhe Këshillit Shtetëror të Pronësisë Industriale – për të fuqizuar intelektuale, industriale dhe tregtare të drejtat e pronës dhe luftimi i mallrave të falsifikuara dhe piraterisë. Përgatitni raporte të përbashkëta të aktiviteteve (K4 2022).\n",null,0]
["MINT","Ndryshimi i ligjit për mbrojtjen e konsumatorit për të hequr elementet e diskutueshme dhe të metat teknike (K4 2022);",null,0]
["MINT","Përafrimi i mëtejshëm i ligjit për mbrojtjen e konsumatorëve me acquis përkatëse, duke përfshirë rishikimin e Artit. 10.5 të ligjit aktual për të përafruar me dispozitat e Direktivës 2005/29/KE (K4 2022)",null,0]
["MINT","Të vazhdohet dhe të përmirësohet, me palët e tjera të interesuara, aktivitetet ndërgjegjësuese për të drejtat e konsumatorëve dhe detyrimet e tregtarëve, veçanërisht në lidhje me blerjet on-line;",null,0]
["MINT","Miratimi I Ligjit të ri për Sigurinë e Përgjithshme të Produkteve – miratimi i Koncept Dokumentit (K2 2022) dhe përgatitja e projektligjit (K3 2022);",null,0]
["MINT","Miratimi I  Ligjit të ri për Sigurinë e Përgjithshme të Produkteve duke marrë parasysh kërkesat e ndryshme të parashikuara nga Direktiva 2001/95/EC (T4 2022)",null,0]
["MINT","Agjencia Kosovare për Regjistrimin e Bizneseve të zbatojë një kornizë bashkëpunimi me Këshillin e Kosovës për Raportim Financiar dhe Administratën Tatimore të Kosovës për të siguruar publikimin e vazhdueshëm të informacionit të kompanisë duke përfshirë pasqyrat financiare dhe raportet e auditimit që çojnë në rritjen e transparencës dhe rritjen e besueshmërisë së regjistrit të të dhënave dhe raportimit në Komisionin Evropian (K2 2022);",null,0]
["MINT","Të bëhet sistemi e-standard (Sistemi i Informacionit të Menaxhimit Standard) plotësisht funksional dhe miqësor për bizneset (K4 2022).",null,0]
["MINT","Miratimi i Rregullores për statusin ligjor, organizimin dhe funksionimin e Drejtorisë për Akreditimin e Kosovës, duke siguruar pavarësinë e saj (K4 2022)",null,0]
["MINT","Zbatimi i programit për heqjen e pengesave në tregti për përmbushjen e detyrimeve sipas neneve 34-36 të Traktatit për Funksionimin e Bashkimit Evropian (TFEU) (vazhdimisht) dhe dorëzoni raportin e parë të progresit deri në (K3/2022)",null,0]
["MINT","Zbatimi i të pesë (5) Udhëzimeve Administrative për grupe të ndryshme të produkteve të ndërtimit. (K4 2022)",null,0]
["MINT","Miratimi dhe zbatimi i legjislacionit dytësor për zbatimin e Ligjit Nr. 06/L-041 për Kërkesat Teknike për Produktet dhe Vlerësimin e Konformitetit, përkatësisht Rregulloren për Dispenzuesit e Aerosolit (duke transpozuar 75/324/EEC) dhe Rregulloren për Pajisjet me Presion të Transportueshëm (transpozimi 2010/ 35//BE) (K4 2022).",null,0]
["MINT","Miratimi i rregullores për pajisjet dhe sistemet mbrojtëse të destinuara për përdorim në një Kosfera potencialisht shpërthyese - ATEX (duke transpozuar Direktivën 2014/34/BE të Parlamentit Evropian dhe Këshillit të datës 26 shkurt 2014 mbi harmonizimin e ligjeve të Shteteve Anëtare në lidhje me pajisjet dhe sistemet mbrojtëse të destinuara për përdorim në një aKospheres potencialisht shpërthyese) (T4 2022)",null,0]
["MINT","Miratimi i listës me referenca për standardet e harmonizuara për produktet e ndërtimit, për pajisjet personale mbrojtëse dhe për pajisjet me gaz (K2 2022).",null,0]
["MINT","Miratimi i draft-Udhëzimit Administrativ në pritje për Organizimin e Brendshëm të Agjencisë Kosovare të Metrologjisë (K4 2022)",null,0]
["MINT","Zbatimi i plotë i sistemeve të menaxhimit të cilësisë sipas EN ISO/17025 dhe vazhdimi i zbatimit të standardit EN ISO/IEC 17020 (T4 2022)",null,0]
["MINT","Të ketë tre laboratorë të akredituar dhe duke përfshirë zbatimin e plotë të sistemit të menaxhimit të cilësisë. (K3 2022)",null,0]
["MINT","Agjencia Kosovare e Metrologjisë do të vazhdojë të ndjekë anëtarësimin e asociuar në EURAMET",null,0]
["MINT","Miratimi i Udhëzimit Administrativ që mbulon të gjitha aspektet e cilësisë së karburanteve të lëngëta me origjinë nga nafta (K4 2022) dhe Udhëzimit Administrativ për karburantet e rinovueshme (K2 2023)",null,0]
["MINT","Miratimi i planit të veprimit për përafrimin me Rregulloren e BE-së për mbikëqyrjen e tregut (K3 2022).",null,0]
["MINT","Përgatitja e koncept dokumentit për të harmonizuar me rregulloren e BE-së 1020/2019 për mbikëqyrjen e tregut dhe përputhshmërinë e produkteve dhe me rregulloren e BE-së 515/2019 për njohjen reciproke të mallrave (K4 2022).",null,0]
["MINT","Forcimi i kapaciteteve administrative dhe institucionale të organeve përgjegjëse për infrastrukturën e cilësisë në lidhje me Metrologjinë, Akreditimin dhe Standardizimin, mbikëqyrjen e tregut dhe rritjen e kapaciteteve njerëzore në Divizionin e Infrastrukturës së Cilësisë si njësi rregullatore dhe koordinuese për lëvizjen e lirë të mallrave (K4 2022).",null,0]
["MINT","Përgatitni një propozim që mbulon rregullat dhe kushtet në të cilat përcaktohen humbjet gjatë prodhimit ose transportit (përfshirë naftën dhe mallrat e tjera që prishen) (K4 2022).",null,0]
["MINT","Miratimi i ligjit për Tregtinë e Brendshme (K1 2023), duke u konsultuar me Komisionin dhe duke marrë parasysh komentet (K3 2022).",null,0]
["MINT","Zbatimi i planit të veprimit për zhvillimin e Tregut të Përbashkët Rajonal (CRM). Në veçanti, Komisioni rekomandon ratifikimin dhe zbatimin e Protokollit Shtesë 5 të CEFTA-s për lehtësimin e tregtisë dhe Protokollit Shtesë 6 për tregtinë e shërbimeve dhe vazhdimin e negociatave në lidhje me Protokollin Shtesë 7 për zgjidhjen e mosmarrëveshjeve dhe; miratimin e vendimeve të CEFTA-s lidhur me zbatimin e këtyre protokolleve.",null,0]
["MINT","Forcimi i kapaciteteve administrative të Ministrisë së Industrisë, Sipërmarrjes dhe Tregtisë, veçanërisht në funksion të angazhimeve rajonale për tregtinë. Siguroni një organogram të përditësuar (K4 2022)",null,0]
["MINT","Zhvillimi i akteve nënligjore zbatuese në lidhje me tregtinë elektronike (K4 2022) dhe miratimi i Vendimit përkatës të CEFTA-s (K4 2024).",null,0]
["MINT","Ndërtimi i kapaciteteve institucionale për të ndërmarrë mbikëqyrjen e duhur të rasteve të dumpingut, subvencioneve dhe praktikave të tjera të padrejta të këtij lloji",null,0]
["MINT","Konsultimi dhe miratimi I një strategjie për inovacionin dhe sipërmarrjen",null,0]
["MINT","Sigurimi i hyrjes në fuqi të ligjit për investimet e qëndrueshme dhe të gjitha dokumenteve ligjore vartëse (K4 2022).",null,0]
["MINT","Përfundimi i përpunimit të aplikacioneve për statusin e investitorit strategjik të cilat janë aktualisht të pazgjidhura (K4 2022).",null,0]
["MINT","Rritja e kapacitetit zbatues të infrastrukturës cilësore, veçanërisht të organeve të vlerësimit të konformitetit dhe mbikëqyrjes së tregut",null,0]
["MINT","Heqja e barrierave të identifikuara për të drejtën e themelimit dhe lirinë për të ofruar shërbime duke hartuar planin e veprimit për zbatimin e plotë të ligjit për shërbimet.",null,0]
["MINT","Përafrimi me acquis të BE-së për njohjen reciproke të kualifikimeve profesionale",null,0]
["MINT","Ndryshimi i ligjit për mbrojtjen e konsumatorit për të hequr nenet problematike dhe për të rritur ndërgjegjësimin për të drejtat e konsumatorëve dhe detyrimet e tregtarëve, veçanërisht në lidhje me blerjet online",null,0]
["Përqindja",null,null,{"v":0.2,"d":"20%"}]
["Rezultati i përgjithshëm",null,null,2]
["Ministria e Drejtësisë"]
["MD","Implementation of the Strategy of Rule of Law and its Action Pplan","Edhe pse është miratuar, nuk përfshihet në PKIE dhe ERA.",1]
["MD","To complete the drafting of the law on confiscation of unjustifiably acquired assets in compliance with the principles enshrined in the Constitution and the recommendations of the Venice Commission, without prejudice to the full implementation of the existing tools on criminal confiscation","Projektligji për plotësim - ndryshimin e Ligjit për Administrimin e Pasurisë së Sekuestruar dhe të Konfiskuar, i miratuar",1]
["MD","Komisioni u interesua për strategjinë e Kosovës për të zvogëluar numrin e lëndëve të pazgjidhura gjyqësore. Autoritetet kujtuan miratimin në qershor 2022 të një plani për të reduktuar diferencën e mbetur dhe shpjeguan se më shumë burime iu ndanë sistemit, duke përfshirë më shumë staf, dhe se ata po punojnë drejt funksionalizimit të Gjykatës Ekonomike (K2 2022);",null,0]
["MD","Draft i ri për Drejtësinë Administrative",null,0]
["MD","Zbatimi i Kodit të ri të Procedurës Penale (MD)",null,0]
["MD","Zbatimi i Ligjit për Deklarimin e Pasurisë dhe sigurimi i burimeve të nevojshme njerëzore, financiare dhe logjistike për Agjencinë (MD, Kuvend)",null,0]
["MD","Sigurimi i trajnimit të stafit të Agjencisë për Parandalimin e Korrupsionit për mjetet e reja parandaluese kundër korrupsionit",null,0]
["MD","Përparimi i shpejtë me krijimin e Fondit të Konfiskimit në funksion të mundësimit të ripërdorimit për qëllime sociale të parave dhe aseteve që rrjedhin nga aktivitetet kriminale",null,0]
["MD","Të zbatohen rekomandimet e Projektit PECK III në lidhje me kuadrin operacional të AMSCA",null,0]
["MD","Ndarja e fondeve të qëndrueshme dhe të përhershme për strehimoret, në mënyrë që funksionimi i tyre të jetë i qëndrueshëm dhe efikas",null,0]
["MD","Forcimi i përgjegjësive të Koordinatorit Kombëtar për Dhunën në Familje. Sigurimi i furnizimit të vazhdueshëm të të dhënave nga të gjitha institucionet në bazën e integruar të të dhënave në kuadër të Ministrisë së Drejtësisë dhe zbatimi i sigurt i strategjisë dhe planit të veprimit për\nDhuna në familje dhe Dhuna ndaj Grave ",null,0]
["MD","Të intensifikohet bashkëpunimi sistematik me IRMCT-në në funksion të marrjes së informacionit, provave dhe ndihmës së paçmuar në zgjidhjen e rasteve të krimeve të luftës në pritje dhe personave të zhdukur.",null,0]
["Përqindja",null,null,{"v":0.17,"d":"17%"}]
["Rezultati i përgjithshëm",null,null,2]
["\nMinistria e Financave, Punës dhe Transfereve"]
["MFPT","Ministria e Financave duhet të vazhdojë të përfshijë një analizë gjithëpërfshirëse të rrezikut fiskal të të gjitha Ndërmarrjeve Publike (NP) në dokumentet e strategjisë fiskale dhe të rifillojë publikimin në faqen e internetit të MFLT-së të pasqyrave financiare tremujore të NP-ve.","Hartimi i analizës së rreziqeve fiskale, përfshirë rreziqet që vijnë nga NP-të, e përfshirë në kornizën makro-fiskale, në dokumentet strategjike si KASh, ligji i buxhetit dhe PRE",1]
["MFPT","Miratimi (K4 2022) dhe zbatimi (vazhdimisht) i Planit të Veprimit 2022-2023 dhe finalizimi (K4 2023) Strategjia për Parandalimin dhe Luftën kundër Ekonomisë Informale, Pastrimit të Parave, Financimit të Terrorizmit dhe Krimeve Financiare dhe publikoni rregullisht raportet e zbatimit të tyre.","Koncept dokumenti për parandalimin e pastrimit të parave dhe luftimin e financimit të terrorizmit, i miratuar",1]
["MFPT","Miratimi i Ligjit të Prokurimit Publik, duke marrë parasysh komentet e Komisionit Evropian","Projektligji për plotësim - ndryshimin e Ligjit për Prokurimin Publik, i miratuar",1]
["MFPT","“Përmirësimi i ndjeshëm i ndërgjegjësimit për rreziqet e pastrimit të parave/financimit të terrorizmit nga bizneset dhe profesionet e përcaktuara jofinanciare dhe ofrimi i dëshmive përmes të dhënave\nmbi raportet e marra të transaksioneve të dyshimta dhe ndjekjen ligjore nëpërmjet hetimeve dhe sanksioneve nga autoritetet","Numri i ngritur i raporteve të pranuara të transaksioneve / aktiviteteve të dyshimta",1]
["MFPT","Përmirësimi i funksionimit të sistemit të KBFP përmes zbatimit më të mirë të rekomandimeve të raportit vjetor të KBFP, dhe veçanërisht (1) duke përmirësuar bashkëpunimin ndërmjet drejtuesit të njësisë së sektorit publik, komitetit të auditimit dhe auditorit të brendshëm. Të forcohen kapacitetet e performancës së njësive të auditimit të brendshëm për të kryer mandatin e tyre, përtej pajtueshmërisë me rregullat dhe procedurat, në veçanti duke zhvilluar procedura për sigurimin e cilësisë. Vazhdimi i zgjerimit të komiteteve të auditimit të brendshëm në të gjitha organizatat buxhetore, duke përfshirë edhe nivelin komunal.","Komitetet e auditimit të brendshëm në të gjitha organizatat buxhetore, përfshirë edhe nivelin komunal, të themeluara",1]
["MFPT","Ndryshimi i Ligjit për Auditorin e Përgjithshëm dhe Zyrën Kombëtare të Auditimit të Kosovës, duke hequr detyrimin për kryerjen e auditimeve të rregullsisë çdo vit për të gjitha organizatat buxhetore.","Projektligji për plotësimndryshimin e Ligjit për Auditorin e Përgjithshëm dhe Zyrën Kombëtare të Auditimit të Kosovës, i miratuar",1]
["MFPT","Miratimi i Ligjit të Punës dhe akteve nënligjore përkatëse, në përputhje me acquis përkatëse të BE-së, duke përfshirë lejen e lehonisë dhe prindërore dhe mosdiskriminimin në punësim dhe politikën sociale [K4 2022]","Projektligji i punës, i miratuar",1]
["MFPT","Të sigurojë që Inspektorati i Punës të ketë burime adekuate financiare dhe njerëzore për të përmbushur mandatin e tij","Numri inspektorëve të punës i rritur për 100 inspektorë shtesë",1]
["MFPT","Miratimi i projektligjit për ndryshimin e Kodit Doganor të Kosovës dhe Kodit të Akcizave, për t'i harmonizuar më tej me legjislacionin dhe praktikat e BE-së.","Projekt-kodi për plotësim-ndryshimin e Kodit Doganor dhe të Akcizave në Kosovë, i miratuar",1]
["MFPT","Ulja e tarifave të ngarkuara për eksportuesit/importuesit, për përdorimin e terminaleve në brendësi të vendosura në infrastrukturën private dhe vazhdoni procesin e zhvendosjes në vendet në pronësi publike","Zhvendosja në pronë publike dhe funksionalizimi i plotë për së paku një (1) terminali doganor",1]
["MFPT","Të forcojë më tej funksionet e menaxhimit të rrezikut të pajtueshmërisë së Administratës Tatimore në Menaxhimin e Rrezikut të Përputhshmërisë dhe kontrollet tatimore në sektorët e bazuar në rrezik (të vazhdueshme) dhe të publikojë rregullisht raportet e zbatimit të aplikimit të metodologjisë së Menaxhimit të Rrezikut të Përputhshmërisë dhe zbatimin e Strategjisë së Përmirësimit të Auditimit 2020-2022 (të vazhdueshme ).","Numri i veprimeve të ndërmarra për të përmirësuar pajtueshmërinë tatimore",1]
["MFPT","të sigurojë zbatimin e Planit të Zbatimit të Garancisë Rinore për t'u përgatitur për pilotimin e skemës;","Plani për Zbatimin e Skemës së Garantuar për të Rinj, i pilotuar",1]
["MFPT","të intensifikohen inspektimet në sektorët e punës me rrezik më të lartë dhe të zbatohen rregullat për shëndetin dhe sigurinë në punë për të siguruar uljen e aksidenteve në vendin e punës;","Numri i inspektimeve nga Inspektorati i Punës, i rritur",1]
["MFPT","Sigurimi i stabilitetit makro-financiar, i cili është kusht për çdo disbursim të mbështetjes buxhetore, duke përfshirë monitorimin e vazhdueshëm të situatës së borxhit publik dhe masat adekuate të kontrollit nëse nivelet e borxhit publik vazhdojnë të rriten.",null,0]
["MFPT","Zbatoni udhëzimet e synuara të politikave për Programin e Reformës Ekonomike të ofruara për Kosovën në Konkluzionet e Përbashkëta të Dialogut Ekonomik dhe Financiar ndërmjet BE-së dhe Ballkanit Perëndimor dhe Turqisë në maj 2022.",null,0]
["MFPT","Të gjitha shpenzimet publike, duke përfshirë prokurimet, disbursimet për programin e rimëkëmbjes, programet e mbështetjes financiare ose ndihmën shtetërore, duhet të bëhen sipas parimeve të transparencës dhe mbikëqyrjes së shpenzimeve publike dhe kuadrit ligjor vendas.",null,0]
["MFPT","Përmirësimi i ekzekutimit të shpenzimeve kapitale, veçanërisht në prezantimin e një mekanizmi të rishikimit të çmimeve për të përballuar sfidat e rritjes aktuale të çmimeve dhe rritja e zbatimit të Udhëzimit Administrativ (UA) 2019 për kriteret e përzgjedhjes dhe prioritizimit të projekteve kapitale, si dhe konkluzionet për zbatimin e rekomandimeve të PEFA dhe PIMA.",null,0]
["MFPT","Të mos miratohen iniciativeat e reja  pensionale dhe sociale pa u bërë rishikimi I skemave ekzistuese sociale dhe iniciativave të reja, veçanërisht pensionet e bazuara në kategori, siç është rënë dakord në udhëzimin e politikave ERP 1.",null,0]
["MFPT","Draftimi i projektligjit të  ri për statusin dhe përfitimet e personave me aftësi të kufizuara, në kuadër të Axhendës së Reformës Pensionale të Qeverisë, me qëllim që të sigurohet trajtim i barabartë dhe të përmbahen shpenzimet sociale, të cilat do të përcaktojnë kriteret për t'u kualifikuar për aftësi të kufizuar.",null,0]
["MFPT","Të sigurohet që fondi i Agjencisë Kosovare të Privatizimit (AKP) të shpenzohet në mënyrë të synuar dhe transparente, dhe të zbatohen masa mbrojtëse dhe mbikëqyrëse në ekzekutimin e fondit, duke përfshirë veprimet që synojnë rimbursimin e depozitave të AKP-së dhe ndikimin e mundshëm si detyrime buxhetore.",null,0]
["MFPT","Të sigurohet një raport i detajuar mbi zbatimin e Programit të Rimëkëmbjes/Rigjallërimit Ekonomik dhe bëni rregullisht publikisht informacionin mbi personat juridikë që marrin grante dhe ndihmë shtetërore (",null,0]
["MFPT","Zbatimi i rekomandimeve te analizës së thellë të kërkesave për personel dhe kompetencë në fushat kryesore të politikave të Bankës Qendrore, veçanërisht stabilitetin financiar dhe vazhdoni të zbatoni procedurat e punësimit dhe politikën e Bankës Qendrore të Kosovës për punësimin (të vazhdueshme).",null,0]
["MFPT","Miratimi dhe zbatimi i projektligjit për mikrofinancat dhe institucionet financiare jobanka, duke marrë parasysh komentet e Komisionit Evropian",null,0]
["MFPT","Miratimi dhe zbatimi i Ligjit për Bankat",null,0]
["MFPT","Pas miratimit të ligjit për të drejtat pronësore të të huajve, të miratohen të gjitha aktet e nevojshme nënligjore duke përfshirë të drejtat reciproke.",null,0]
["MFPT","Miratimi i ligjit të ri për shërbimet e pagesave që transpozon Direktivën e Shërbimeve të Pagesave 2",null,0]
["MFPT","Miratimi dhe zbatimi i një strategjie të re MFP e cila përfshin një komponent specifik të KBFP dhe merr parasysh studimin e SIGMA mbi Përgjegjshmërinë Menaxheriale si dhe integrimin e menaxhimit të rrezikut dhe kontrollit të brendshëm në proceset e MFP. Konsultohuni me Komisionin Evropian",null,0]
["MFPT","Avancimi me hartimin e Skemës së re të Asistencës Sociale të testuar me mjete, ndërkohë që ndahen përfitimet ekzistuese kategorike sociale dhe krijohet një mekanizëm për rishikimin vjetor të përfitimeve.",null,0]
["MFPT","Rritja e kapaciteteve të Agjencisë së Punësimit duke rritur numrin e zyrtarëve të punësimit për të siguruar ndarje të arsyeshme të rasteve dhe duke rritur fondet e qeverisë për masa aktive të tregut të punës",null,0]
["MFPT","Përdorimi i raportit të sigurimit të cilësisë dhe Barometrin e sapokrijuar të Tregut të Punës dhe Aftësive të Kosovës, ndër të tjera, për të avancuar a) politikëbërjen e bazuar në dëshmi dhe b) reformën e sektorit të AAP-së, në përputhje me nevojat e tregut të punës. Krijimi i një dialogu ndërinstitucional/ndërministror përmes Komisionit të sapokrijuar",null,0]
["MFPT","Zgjidhja e formulës më të përshtatshme të financimit të AFP-së dhe përshpejtoni zbatimin e saj në të gjitha shkollat ​​e AFP-së.",null,0]
["MFPT","Hartimi në bashkëpunim me të gjitha ministritë përkatëse, agjencitë e tyre dhe palët e interesuara, dhe në përputhje me rekomandimet e BE/ILO, një Plan Zbatues të Garancisë Rinore dhe filloni zbatimin e tij",null,0]
["MFPT","Plotësimi dhe miratimi i Strategjisë për Sigurinë dhe Shëndetin në Punë në Punë, me fokus të veçantë në përmirësimin e zbatimit të legjislacionit ekzistues dhe plotësimin e kuadrit ligjor për shëndetin në punë dhe sigurimin nga aksidentet dhe sëmundjet profesionale.",null,0]
["MFPT","Sigurimi i miratimit të shpejtë të projektligjit për financat e pushtetit lokal",null,0]
["MFPT","Publikimi I rregullt I  raporteve të zbatimit të Strategjisë (2019-2023) dhe Planit të Veprimit (2019-2020) për Parandalimin e Ekonomisë Informale, Pastrimit të Parave, Financimit të Terrorizmit dhe Krimit Financiar",null,0]
["MFPT","Zhvillimi dhe përdorimi i matjen përmes  treguesve kryesorë të performancës në gjashtë pilot zona/sektorë të identifikuar, si bazë për matjen e performancës në Doganën e Kosovës",null,0]
["MFPT","Miratimi i Ligjit për Administratën Tatimore dhe Procedurat dhe ligjet për Tatimin mbi Vlerën e Shtuar (K4 2022), Tatimin mbi të Ardhurat e Korporatave dhe Tatimin mbi të Ardhurat Personale (K4 2022), në përputhje me praktikat më të mira evropiane",null,0]
["MFPT","Ministria e Financave të bëjë publike çmimet e shitjes së patundshmërive, të marra nga Agjencia Kadastrale e Kosovës, si pjesë e kërkesës së tyre për të publikuar atributet që ndikojnë në vlerat e vlerësuara të pronës së paluajtshme. Fillimi i procesit drejt regjistrimit dhe publikimit të çmimeve të shitjes në nivel të Agjencisë Kadastrale të Kosovës\n",null,0]
["MFPT","Zbutja e ndikimit të  goditjeve të pafavorshme me masa mbështetëse të synuara mirë kur është e nevojshme, ndërsa planifikon kthimin në kufirin e deficitit prej 2% të PBB-së në afat të mesëm",null,0]
["MFPT","Përgatitja e një rishikimi të sistemit të sigurimeve shoqërore, duke përfshirë pensionet e veteranëve të luftës, me synimin për të përmirësuar efikasitetin e kostos dhe drejtësinë e skemave të sigurimeve shoqërore, dhe një rishikim të shpenzimeve tatimore, duke përcaktuar sasinë e të ardhurave të harruara nga të gjitha përjashtimet dhe të reduktuara normat",null,0]
["MFPT","Zbatimi I masave aktive të tregut të punës për të mbështetur punësimin, të rifillojë publikimin e të dhënave të anketës së fuqisë punëtore dhe të vazhdojë zbatimin e masave që synojnë formalizimin e punësimit informal",null,0]
["MFPT","Ndjekja e reformave të thella në fushën e skemave të asistencës sociale për të siguruar një objektiv dhe ndikim më të mirë mbi varfërinë dhe për të përmirësuar ofrimin e shërbimeve sociale në komuna",null,0]
["Përqindja",null,null,{"v":0.31,"d":"31%"}]
["Rezultati i përgjithshëm",null,null,4]
["Ministria për Komunitete dhe Kthim"]
["MKK","Miratimi i Strategjisë për Komunitete dhe Kthim, themelimi i Komisionit të Ankesave dhe bazës përkatëse të të dhënave (MKK)","Strategjia për mbrojtjen dhe promovimin e të drejtave të komuniteteve dhe pjesëtarëve të tyre, e miratuar",1,"Deri në 56 të zhvendosur dhe të cenueshëm social në Komunën e Graçanicës, të sistemuar në njësi banimi të përhershëm"]
[null,"Themelimi i Komisionit të Ankesave",null,0]
[null,"Ngritja e bazës përkatëse të të dhënave",null,0]
["Përqindja",null,null,{"v":0.33,"d":"33%"}]
["Rezultati i përgjithshëm",null,null,4]
["Ministria e Shëndetësisë"]
["MSH","Miratimi i Ligjit të ndryshuar për Shëndetësinë","Projektligji për shëndetësi, i miratuar",1,"UA për masat për ndihma mjekësore, psikologjike, rehabilitim dhe ri integrim të fëmijës viktimë të abuzimit, i miratuar"]
["MSH","Miratimi i Ligjit të ndryshuar për Sigurimet Shëndetësore","Projektligji për sigurime shëndetësore, i miratuar",1,"UA për vërejtjet e kombinuara në njësinë e paketimit të duhanit, i miratuar"]
["MSH","Një certifikatë dixhitale për COVID, duke përmbushur kërkesat teknike për një vendim të ekuivalencës së BE-së",null,0,"UA për masat për parandalimin e abuzimit me substanca narkotike dhe psikotrope për fëmijë, i miratuar"]
["MSH","Fillimi i zbatimit të masave për promovimin dhe edukimin shëndetësor",null,0,"Lista dhe çmimorja e shërbimeve shëndetësore, të hartuara"]
["MSH","Zbatimi i legjislacionit ekzistues dhe Plani i Veprimit për kontrollin e duhanit (dhe në vazhdim) dhe raportimi i progresit",null,0,"Projektligji për parandalimin dhe kontrollin e sëmundjeve ngjitëse, i miratuar"]
["MSH","Vendosja e masave për ofrimin e shërbimeve adekuate të kujdesit shëndetësor parësor dhe sigurimit të detyrueshëm shëndetësor dhe miratimi i masave të mëtejshme për të përmirësuar standardet e cilësisë në kujdesin shëndetësor, duke përfshirë investimet në aktivitetet dhe trajnimet e promovimit të shëndetit",null,0,"Strategjia sektoriale e shëndetësisë 2022-2032, e hartuar"]
["MSH","Progresi në përgatitjen e paketës bazë të përfitimeve dhe bëni konsultime publike dhe ndërgjegjësim, përpara se të filloni mbledhjen e primeve për Fondin e Sigurimeve Shëndetësore.",null,0,"UA për zbatimin e lirimit nga pagesa e premiumeve, bashkë-pagesat dhe bashkëfinancimi për shërbime shëndetësore, i hartuar"]
["MSH","Miratimi dhe zbatimi i Planit të Veprimit për sëmundjet ngjitëse bazuar në rekomandimet e raportit të vlerësimit teknik të ECDC",null,0,"UA për skemën e barnave jashtë-spitalore, i hartuar"]
["MSH","Përafrimi me Rregulloren e BE-së për Kozmetikën (1223/2009) në mënyrë që t'u mundësohet prodhuesve kosovarë të eksportojnë produkte kozmetike në tregun e BE-së",null,0,"UA për trajtim mjekësor jashtë institucioneve shëndetësore publike, i plotësuar-ndryshuar"]
["MSH","Rritja e burimeve njerëzore dhe financiare të nevojshme për zbatimin e reformave të sektorit shëndetësor dhe përforcimi i sistemit të kujdesit shëndetësor duke përfshirë shtrirjen e mëtejshme të shëndetit publik elektronik sistemi informativ, veçanërisht për komunitetet rom dhe ashkali; ",null,0,"Studimi i fizibilitetit për SISh, i kryer"]
["Përqindja",null,null,{"v":0.2,"d":"20%"}]
["Rezultati i përgjithshëm",null,null,2]
["Zyra e Kryeministrit"]
["ZKM","Sigurimi i monitorimit të duhur të përcjelljes së raporteve dhe rekomandimeve nga Ombudspersoni për të rritur më tej shkallën e zbatimit.",null,0,"Raporti vjetor për vlerësimin e performancës së agjencive të ekzekutive, i hartuar"]
["ZKM","Përfshirja e mëtejshme gjinore në të gjithë administratën publike, në përputhje me Kushtetutën, Ligjin për Barazinë Gjinore dhe Ligjin për Zyrtarët Publikë, duke përfshirë fuqizimin e mekanizmave institucionalë për barazinë gjinore duke siguruar kapacitete financiare dhe njerëzore dhe duke ndërmarrë masa afirmative me qëllim rritjen e pjesëmarrja e grave dhe vajzave në proceset vendimmarrëse në administratën publike.",null,0,"Raporti final për performancën e agjencive ekzekutive, i miratuar nga Qeveria"]
["ZKM","Ndërmarrja e hapave konkretë për të forcuar koordinimin e mekanizmave ekzistues të të drejtave të njeriut në nivel qendror dhe lokal dhe fuqizimin e rolit të zyrtarëve kundër diskriminimit në ministri dhe komuna",null,0,"Projektligji për plotësim-ndryshim e Ligjit për Lirinë Fetare në Kosovë, i \nmiratuar"]
["ZKM","Krijimi i një mekanizmi efikas gjurmues për zbatimin e Programit të të Drejtave të Njeriut dhe një Plan Veprimi. Koordinimi i të gjithë aktorëve relevantë që janë përgjegjës për zbatimin e programit të të Drejtave të Njeriut",null,0,"Akte nënligjore në kuadër të ligjit për liritë fetare, të hartuara dhe miratuara"]
["ZKM","Vazhdimi i përkrahjes së programit të studimeve të Ballkanistikës në Universitetin e Prishtinës përmes stafit shtesë dhe regjistrimit të maturantëve nga komuniteti serb",null,0,"Numri i rekomandimeve të zbatuara të Avokatit të Popullit"]
["ZKM","Krijimi I  Qelizës të Gjuhës/Përkthimit brenda OLC/ZKM siç parashikohet në konceptin përkatës dhe ndani buxhet të mjaftueshëm për këtë iniciativë",null,0,"Numri i përgjigjeve të pranuara nga institucionet përgjegjëse lidhur me rekomandimet e adresuara te Avokatit te Popullit"]
["ZKM","Ndarja e fondeve të qëndrueshme dhe të përhershme për strehimoret, në mënyrë që funksionimi i tyre të jetë i qëndrueshëm dhe efikas",null,0,"Plani Kombëtar për Barazi Gjinore 2023-2026, i miratuar"]
["ZKM","Të mirret parasysh emërimi i një pike qendrore në qeveri për t'u përfshirë në zhvillimin e politikave të lidhura me median.",null,0,"Gjashtëmbëdhjetë (16) UA që rrjedhin nga ligji për mbrojtjen e fëmijëve, të miratuara"]
["ZKM","BE insiston në rëndësinë e sigurimit të një angazhimi kuptimplotë në grupin punues Prishtinë-Beograd të lehtësuar nga KNKK për personat e zhdukur dhe përcjelljen e shpejtë të informacionit në lidhje me vendndodhjet e mundshme të mbetjeve të personave të zhdukur në Kosovë\n",null,0,"Ngritja e vetëdijes së publikut për parandalimin e dhunës ndaj grave, luftimin e stereotipave gjinorë, dhe të drejtave që garanton korniza ligjore për barazi gjinore duke pergatitur pesë (5) videospote dhe tri (3) tryeza diskutimi"]
["ZKM","Sigurimi i zbatimit të të gjitha urdhrave të gjykatës në pritje në vendet e mundshme",null,0,"UA (masë afirmative) për regjistrimin e pronës së paluajtshme të përbashkët në emër të dy bashkëshortëve, i miratuar"]
["Përqindja",null,null,{"v":0,"d":"0%"}]
["Rezultati i përgjithshëm",null,null,0]
["Ministria e Kulturës, Rinisë dhe Sportit"]
["MKRS","Të ndërmerren hapa për të harmonizuar më tej me acquis në fushën e së drejtës së autorit dhe të drejtave të lidhura, veçanërisht në lidhje me Direktivën për Menaxhimin e të Drejtave Kolektive. (K4 2022)","UA për procedurat, kushtet për licencimin e organizatave të menaxhimit kolektiv, i miratuar",1,"Së paku një (1) Shoqatë për Menaxhim Kolektiv në fushën e letërsisë, e licencuar"]
["MKRS","Të demonstrojë vazhdimisht një histori të shembujve konkretë ku autorët e ndërtimit të paligjshëm ose prishjes së objekteve të trashëgimisë kulturore janë përballur me masa ndëshkuese dhe pasoja ligjore për veprimet e tyre, duke përfshirë informacionin se si janë zbatuar vendimet ligjore nga autoritetet (zbatimi i akteve juridike).",null,0,"Projektligji për trashëgiminë kulturore, i miratuar"]
["MKRS","Konsultimi i projektligjit për trashëgiminë kulturore me të gjitha palët e interesuara (Kisha Ortodokse Serbe, OSBE dhe Zyra e BE-së/ EUSR) dhe filloni konsultimin publik për draftin [K2 2023] me synim miratimin e tij [K4 2023]. Sigurimi i zbatimit efektiv me përpunimin e rregulloreve adekuate zbatuese.",null,0,"Akte nënligjore në kuadër të avancimit të mbrojtjes së trashëgimisë kulturore, të hartuara dhe të miratuara"]
["MKRS","Ratifikimi i plotë i marrëveshjes së asocimit të Evropës Krijuese (K1 2022). Të vazhdojë përpjekjet për të përafruar legjislacionin me Direktivën e Shërbimeve Mediatike Audiovizive për të mundësuar pjesëmarrjen në vargun MEDIA të Evropës Kreative.",null,0]
["MKRS","Ruajtja e shpeshtësisë së takimeve të Këshillit Zbatues dhe Monitorues (KPM) dhe identifikimi i zgjidhjeve të përbashkëta që duhet të arrihen ndërmjet Kosovës dhe Kishës Ortodokse Serbe në bazë të vullnetit të mirë dhe bashkëpunimit.",null,0]
["MKRS","Vazhdimi i përpjekjeve për të garantuar zbatimin e marrëveshjeve të përshtatshme kolektive të licencimit, në mënyrë që të garantohet një shpërblim për mbajtësit e të drejtave (K4 2022",null,0]
["Përqindja",null,null,{"v":0.17,"d":"17%"}]
["Rezultati i përgjithshëm",null,null,2]
["\nMinistria e Administrimit të Pushtetit Lokal"]
["MAPL","N/A","Koncept dokumenti për Ligjin për Dhënien në Shfrytëzim dhe Këmbimin e Pronës së Paluajtshme të Komunës, i miratuar",0]
["MAPL","N/A","Projektligji për plotësimndryshimin e Ligjit për Dhënien në Shfrytëzim dhe Këmbimin e Pronës së Paluajtshme të Komunës, i miratuar",0]
["MAPL","N/A","Projektligji për plotësim ndryshimin e Ligjit për Bashkëpunim Ndër-komunal, i miratuar",0]
["MAPL","N/A","UA për administratën e hapur lokale, i miratua",0]
["MAPL","N/A","Vlerësimi ex-post i legjislacionit mbi mekanizmat e demokracisë lokale, i miratuar",0]
["MAPL","N/A","Anëtarësimi i Republikës së Kosovës dhe komunave në Partneritetin për Qeverisje të Hapur, i miratuar",0]
["MAPL","N/A","Platforma shtetërore eKomunat, e funksionalizuar",0]
["MAPL","N/A","Vendosja e eKiosqeve në 20 Komuna të cilat nuk kanë kapacitete financiare",0]
["Përqindja",null,null,{"v":0,"d":"0%"}]
["Rezultati i përgjithshëm",null,null,0]
[]
["Çdo masë vlerësohet sipas të gjitha kritereve me vlerën \"1\" ose vlerën \"0\". Vlera \"1\" paraqet vlerësim pozitiv, ndërsa \"0\" atë negative.\n\nPër këtë vlerësim ne fillimisht përcaktojmë kërkesat e qarta dhe të matshme siç janë identifikuar në Raportin e Vendit dhe konkluzionet e Nënkomitetit të MSA-së. Së dyti, ne vlerësojmë nëse masat e planifikuara në PKIE dhe ERA adresojnë kërkesat e identifikuara të BE-së. Në fund, ne zbresim numrin e kërkesave të adresuara nga numri i përgjithshëm i kërkesave të BE-së. Rezultati përfundimtar vlerësohet si më poshtë:\n\n1. Më e lartë se 0% = 1\n2. Më e lartë se 10% = 2\n3. Më e lartë se 20% = 3\n4. Më e lartë se 30% = 4\n5. Më e lartë se 40% = 5\n6. Më e lartë se 50% = 6\n7. Më e lartë se 60% = 7\n8. Më e lartë se 70% = 8\n9. Më e lartë se 80% = 9\n10. Më e lartë se 90% = 10\n\nKy rezultat më pas transferohet në vlerësimin e përgjithshëm nën kriteret e kolonës “Planifikimi kundrejt detyrimeve të BE-së”."]

{"sheet":"Criteria 3","index":3,"n_rows":311,"n_cols":6,"rows_kept":311,"merged":[[0,0,0,5],[2,0,2,5],[16,0,16,2],[17,0,17,2],[18,0,18,5],[55,0,55,2],[56,0,56,2],[57,0,57,5],[96,0,96,2],[97,0,97,2],[98,0,98,5],[106,0,106,2],[107,0,107,2],[108,0,108,5],[156,0,156,2],[157,0,157,2],[158,0,158,5],[197,0,197,2],[198,0,198,2],[199,0,199,5],[206,0,206,2],[207,0,207,2],[208,0,208,5],[247,0,247,2],[248,0,248,2],[249,0,249,5],[254,0,254,2],[255,0,255,2],[256,0,256,5],[269,0,269,2],[270,0,270,2],[271,0,271,5],[289,0,289,2],[290,0,290,2],[291,0,291,5],[296,0,296,2],[297,0,297,2],[298,0,298,5],[307,0,307,2],[308,0,308,2],[310,0,310,5]]}
["Kriteri 3: Shkalla e zbatimit\n\nQëllimi i këtij vlerësimi është të matë zbatimin e masave të planifikuara në Programin Kombëtar për Integrim Evropian dhe Planin e Veprimit të Agjendës së Reformës Evropiane."]
["Institution","Priority","Masa","Afati","Referenca","Zbatimi"]
["Ministria e Ekonomisë"]
["ME",null,"Projektligji për energji, i miratuar","K4 2023","PKIE",1]
["ME",null,"Projektligji për rregullatorin e energjisë, i miratuar","K4 2023","PKIE",1]
["ME",null,"Projektligji për burimet e ripërtëritshme të energjisë, i miratuar","K2 2023","PKIE\nERA (K4 2022)",1]
["ME",null,"Programi i Zbatimit të Strategjisë së Energjisë, i miratuar","K3 2023","PKIE\nERA (K2 2022)",1]
["ME",null,"Plani i Energjisë dhe Klimës 2021-2030, i miratuar","K2 2022","ERA",0]
["ME",null,"Rregullorja për skemën e re mbështetëse për BRE","K4 2022","ERA",0]
["ME",null,"Dizajnimi i skemës konkurruese për BRE","K4 2022","ERA",0]
["ME",null,"Hapja e tregut të energjisë për konsumatorët e nivelit të tensionit 35 kv dhe 10 kv","K2 2022","ERA",0]
["ME",null,"Projektligji i plotësuar-ndryshuar për ndërmarrje publike, bazuar në rekomandimet e BE dhe praktikat e mira, i miratuar","K2 2022","ERA",0]
["ME",null,"Aktet nënligjore të miratuara","K4 2022","ERA",0]
["ME",null,"Kodi i etikës dhe qeverisjes korporative të ndërmarrjeve publike, i miratuar","K3 2022","ERA",0]
["ME",null,"Agjenda Digjitale për Kosovën 2030, e miratuar","K3 2023","PKIE",1]
["ME",null,"Njëzet (20) pirgje të rrjetit mobil, ‘5G ready’, të lidhura me infrastrukturë fikse brezgjerë","K4 2023","PKIE",1]
["Përqindja",{"$nulls":4},{"v":0.46,"d":"46%"}]
["Rezultati i përgjithshëm",{"$nulls":4},5]
["Ministria e Mjedisit, Planifikimit Hapësinor dhe Infrastrukturës"]
["MMPHI","K14: Politikat e Transportit","Projektligji për plotësim-ndryshimin e Ligjit për Transportin Rrugor, i miratuar","K4 2023","PKIE",1]
["MMPHI","K14: Politikat e Transportit","UA për kontrollimin e rregullsisë teknike të automjeteve në rrugë, i miratuar","K2 2023","PKIE",0]
["MMPHI","K14: Politikat e Transportit","Plani i veprimit 2023-2025 për zbatimin e Strategjisë së transportit multimodal 2023-2030, i miratuar","K4 2023","PKIE",1]
["MMPHI","K14: Politikat e Transportit","Koncept dokumenti për hekurudha, i miratuar","K4 2023","PKIE",1]
["MMPHI","K14: Politikat e Transportit","Koncept dokumenti për transportin e mallrave të rrezikshme, i miratuar","K3 2023","PKIE",1]
["MMPHI","K27: Mjedisi","Projektligji për plotësim-ndryshimin e Ligjit për Vlerësimin Strategjik Mjedisor, i miratuar ","K3 2023","PKIE",1]
["MMPHI","K27: Mjedisi","Projektligji për ndryshime klimatike, i miratuar","K2 2023","PKIE",1]
[null,null,"Projektligji për inspektimin në fushën e mjedisit, ujërave, natyrës, planifikimit hapësinor, ndërtimit dhe banimit, i miratuar","K4 2023","PKIE",1]
[null,null,"UA për ambalazhim/paketim dhe mbeturinat e ambalazhimit/ paketimit, i miratuar ","K2 2023","PKIE",1]
[null,null,"Strategjia për Mbrojtjen e Mjedisit dhe Zhvillim të Qëndrueshëm 2022-2030, e miratuar","K3 2023","PKIE",0]
[null,null,"Strategjia Shtetërore e Ujërave të Kosovës 2023-2027 dhe Plani i Veprimit 2023-2025 për zbatimin e saj, i miratuar","K2 2023","PKIE",1]
[null,null,"Koncept dokumenti për fushën e ujërave, i miratuar ","K2 2023","PKIE",1]
[null,null,"Koncept dokumenti për fushën e mbrojtjes së natyrës, i miratuar ","K3 2023","PKIE",1]
[null,null,"Plani për menaxhimin e mbeturinave ndërtimore dhe të demolimit, i miratuar ","K2 2023","PKIE",1]
[null,null,"Numri i inspektorëve të trajnuar për të kontrolluar zbatimin e legjislacionit mjedisor ","K4 2023","PKIE",1]
[null,null,"Numri i zonave të reja të natyres (rreth 10), të mbrojtura ","K4 2023","PKIE",1]
[null,null,"Numri i deponive ilegale në komuna të identifikuara dhe reduktuara","K3 2023","PKIE",1]
[null,null,"Inventari i gazrave serrë për vitin 2021, i përgatitur","K2 2023","PKIE",1]
[null,null,"Projektligji për mbrojtjen e ajrit nga ndotja, i miratuar","K1 2022","ERA",1]
[null,null,"Projektligji për ujërat e Kosovës, i miratuar","K1 2022","ERA",0]
[null,null,"Projektligji për mbeturinat, i miratuar","K2 2021","ERA",1]
[null,null,"Fillimi i hartimit të strategjisë për dekarbonizim","K4 2021","ERA",0]
[null,null,"Plani i rishikuar kombëtar për cilësinë e ajrit, i miratuar","K4 2022","ERA",0]
[null,null,"Plani për menaxhimin e mbeturinave me VSM në zonën e Prishtinës, i \nhartuar","K2 2023","ERA",1]
[null,null,"Plani i menaxhimit për pellgun e lumit Drini i Bardhë, i finalizuar","K4 2022","ERA",0]
[null,null,"Rrjeti i monitorimit të ujërave nëntokësore, i funksionalizuar","K4 2022","ERA",1]
[null,null,"Trajnimi i nivelit komunal për zbatimin e legjislacionit për menaxhimin e \nmbeturinave","K4 2022","ERA",1]
[null,null,"Trajnimi i nivelit komunal për zbatimin e legjislacionit për menaxhimin e \nmbeturinave","K4 2022","ERA",1]
[null,null,"Fillimi i zbatimit të projekteve për menaxhimin e mbeturinave të \nrrezikshme: objektin për ruajtjen e përkohshme të mbetjeve të rrezikshme, \ndekomisionimi i Kosovës A","K3 2021","ERA",0]
[null,null,"Qendrat e transferimit dhe riciklimit në Skenderaj, Klinë, Istog, \nNovobërdë, të ndërtuara","K2 2023","ERA",0]
[null,null,"Fillimi i krijimit të sistemit të rikthimit të depozitës për shishe, plastikë \ndhe kanaçe","K4 2022","ERA",0]
[null,null,"Plotësim-ndryshimi i Ligjit nr.03/L-233 për mbrojtjen e natyrës","K3 2021","ERA",0]
[null,null,"Monitorimi dhe raportimi për gjendjen e zonave të mbrojtura dhe \nbiodiversitetit","K4 2022","ERA",1]
[null,null,"Plani hapësinor për parkun kombëtar ‘Sharri’, i miratuar ","K2 2023","ERA",1]
[null,null,"Plani hapësinor i parkut kombëtar ‘Bjeshkët e Nemuna’, i miratuar","K2 2022","ERA",1]
[null,null,"Krijimi i Sistemit online të Informacionit Mjedisor","K1 2023","ERA",1]
["Përqindja",{"$nulls":4},{"v":0.72,"d":"72%"}]
["Rezultati i përgjithshëm",{"$nulls":4},8]
["Ministria e Arsimit, Shkencës, Teknologjisë dhe Inovacionit"]
["MASHTI","K3: E drejta e themelimit dhe liria e ofrimit të shërbimeve","UA për plotësim-ndryshimin e UA për Standardet dhe Procedurat e Verifikimit të Standardeve të Profesionit, i miratuar","K4 2023","PKIE",0]
[null,null,"Mbështetja e qendrave mësimore për romë, ashkalinj dhe egjiptianë","K4 2023","PKIE",1]
[null,null,"Bursat për nxënës dhe studentë romë, ashkalinj dhe egjiptianë, të ndara","K4 2023","PKIE",1]
[null,null,"Programi Kombëtar i Shkencës, i hartuar ","K4 2023","PKIE",1]
[null,null,"Platforma KRIS, e finalizuar dhe lansuar","K4 2023","PKIE",1]
[null,null,"Pikat kombëtare të kontaktit për Programin Horizon, të funksionalizuara ","K4 2023","PKIE",0]
[null,null,"Kurrikula bërthamë për edukimin në fëmijërinë e hershme, e hartuar dhe miratuar ","K4 2023","PKIE",0]
[null,null,"Korniza Kurrikulare për AAP, e miratuar","K4 2023","PKIE",0]
[null,null,"Infrastruktura e pershtatur (pjerrinat) në 14 shkolla, brenda dhe jashte objektit","K4 2023","PKIE",1]
[null,null,"Së pagu 20 Inspektorë të rinj, të rekrutuar ","K4 2023","PKIE",0]
["Raportet për 400 mësimdhënës dhe 30 institucione arsimore për nivelin e performancës së arritur, të hartuara","Raportet për 400 mësimdhënës dhe 30 institucione arsimore për nivelin e performancës së arritur, të hartuara","Raportet për 400 mësimdhënës dhe 30 institucione arsimore për nivelin e performancës së arritur, të hartuara","K4 2022","ERA",0]
["Roli i koordinatorëve të cilësisë i definuar përmes miratimit të UA","Roli i koordinatorëve të cilësisë i definuar përmes miratimit të UA","Roli i koordinatorëve të cilësisë i definuar përmes miratimit të UA","K4 2022","ERA",1]
["Të gjitha shkollat kanë koordinator të cilësisë të trajnuar dhe që dedikojnë numër të caktuar të orëve për çështje të cilësisë","Të gjitha shkollat kanë koordinator të cilësisë të trajnuar dhe që dedikojnë numër të caktuar të orëve për çështje të cilësisë","Të gjitha shkollat kanë koordinator të cilësisë të trajnuar dhe që dedikojnë numër të caktuar të orëve për çështje të cilësisë","K1 2023","ERA",1]
["Standardet për monitorim të miratuara","Standardet për monitorim të miratuara","Standardet për monitorim të miratuara","K3 2021","ERA",1]
["Miratimi i politikave (rregulloreve) për sigurim të brendshëm të cilësisë","Miratimi i politikave (rregulloreve) për sigurim të brendshëm të cilësisë","Miratimi i politikave (rregulloreve) për sigurim të brendshëm të cilësisë","K2 2022","ERA",0]
["Planit Strategjik i AKA-së, i miratuar","Planit Strategjik i AKA-së, i miratuar","Planit Strategjik i AKA-së, i miratuar","K4 2021","ERA",1]
["Njëzetepesë (25) inspektorë të rinj të arsimit, të rekrutuar përmes procesit konkurrues","Njëzetepesë (25) inspektorë të rinj të arsimit, të rekrutuar përmes procesit konkurrues","Njëzetepesë (25) inspektorë të rinj të arsimit, të rekrutuar përmes procesit konkurrues","K4 2021","ERA",0]
["Pesëmbëdhjetë (15) programe të zhvillimit profesional të mësimdhënësve, të miratuara","Pesëmbëdhjetë (15) programe të zhvillimit profesional të mësimdhënësve, të miratuara","Pesëmbëdhjetë (15) programe të zhvillimit profesional të mësimdhënësve, të miratuara","K1 2022","ERA",1]
["Numri i mësimdhënësve të licencuar","Numri i mësimdhënësve të licencuar","Numri i mësimdhënësve të licencuar","K4 2022","ERA",1]
["Kurrikulat bërthamë për klasën 11 dhe 12 të zhvilluara","Kurrikulat bërthamë për klasën 11 dhe 12 të zhvilluara","Kurrikulat bërthamë për klasën 11 dhe 12 të zhvilluara","K2 2022","ERA",1]
["Pakot mësimore për klasën 10, 11 dhe 12 të zhvilluara","Pakot mësimore për klasën 10, 11 dhe 12 të zhvilluara","Pakot mësimore për klasën 10, 11 dhe 12 të zhvilluara","K2 2022","ERA",1]
["Trajnimi i 1,500 mësimdhënësve për zbatimin e Kurrikulës bërthamë","Trajnimi i 1,500 mësimdhënësve për zbatimin e Kurrikulës bërthamë","Trajnimi i 1,500 mësimdhënësve për zbatimin e Kurrikulës bërthamë","K2 2022","ERA",0]
["Projektligji për Agjencinë e Akreditimit, i miratuar ","Projektligji për Agjencinë e Akreditimit, i miratuar ","Projektligji për Agjencinë e Akreditimit, i miratuar ","K3 2021","ERA",1]
["Projektligji për Arsimin e Lartë, i miratuar","Projektligji për Arsimin e Lartë, i miratuar","Projektligji për Arsimin e Lartë, i miratuar","K4 2022","ERA",0]
["Rregullorja për organizimin e brendshëm dhe sistematizimin e vendeve të punës në MAShTI, e miratuar","Rregullorja për organizimin e brendshëm dhe sistematizimin e vendeve të punës në MAShTI, e miratuar","Rregullorja për organizimin e brendshëm dhe sistematizimin e vendeve të punës në MAShTI, e miratuar","K3 2021","ERA",0]
["Vlerësimi i realizuar dhe rekomandimet e përfshira në PSAK të ri","Vlerësimi i realizuar dhe rekomandimet e përfshira në PSAK të ri","Vlerësimi i realizuar dhe rekomandimet e përfshira në PSAK të ri","K4 2021","ERA",1]
["Zbatimi i së paku 3 programeve prioritare trajnuese për secilën nga fushat e arsimit të lartë, para-universitar dhe AAP","Zbatimi i së paku 3 programeve prioritare trajnuese për secilën nga fushat e arsimit të lartë, para-universitar dhe AAP","Zbatimi i së paku 3 programeve prioritare trajnuese për secilën nga fushat e arsimit të lartë, para-universitar dhe AAP","K4 2022","ERA",1]
["Menaxhmenti i MAShTI-t i trajnuar për zbatim të instrumentit të mbështetjes direkte buxhetore","Menaxhmenti i MAShTI-t i trajnuar për zbatim të instrumentit të mbështetjes direkte buxhetore","Menaxhmenti i MAShTI-t i trajnuar për zbatim të instrumentit të mbështetjes direkte buxhetore","K4 2022","ERA",0]
["Menaxhmenti i MAShTI-t i trajnuar për planifikimin dhe menaxhimin e fondeve të jashtme përfshirë menaxhimin e deleguar","Menaxhmenti i MAShTI-t i trajnuar për planifikimin dhe menaxhimin e fondeve të jashtme përfshirë menaxhimin e deleguar","Menaxhmenti i MAShTI-t i trajnuar për planifikimin dhe menaxhimin e fondeve të jashtme përfshirë menaxhimin e deleguar","K4 2022","ERA",0]
["Projektligji për edukimin në fëmijërinë e hershme 0-6 vjeç, i miratuar","Projektligji për edukimin në fëmijërinë e hershme 0-6 vjeç, i miratuar","Projektligji për edukimin në fëmijërinë e hershme 0-6 vjeç, i miratuar","K2 2022","ERA",1]
["UA për detyrat, përgjegjësitë, procedurat dhe kriteret e zgjedhjes së drejtorit dhe të zëvendësdrejtorit të institucionit edukativo-arsimor dhe aftësues para-universitar me përfshirje të aspekteve gjinore, i miratuar","UA për detyrat, përgjegjësitë, procedurat dhe kriteret e zgjedhjes së drejtorit dhe të zëvendësdrejtorit të institucionit edukativo-arsimor dhe aftësues para-universitar me përfshirje të aspekteve gjinore, i miratuar","UA për detyrat, përgjegjësitë, procedurat dhe kriteret e zgjedhjes së drejtorit dhe të zëvendësdrejtorit të institucionit edukativo-arsimor dhe aftësues para-universitar me përfshirje të aspekteve gjinore, i miratuar","K3 2022","ERA",1]
["UA për Procedurat e përzgjedhjes së personelit edukativo-arsimor në institucionet edukativo-arsimore dhe aftësuese (IEAA) të arsimit para-universitar me përfshirje të aspekteve gjinore, i miratuar","UA për Procedurat e përzgjedhjes së personelit edukativo-arsimor në institucionet edukativo-arsimore dhe aftësuese (IEAA) të arsimit para-universitar me përfshirje të aspekteve gjinore, i miratuar","UA për Procedurat e përzgjedhjes së personelit edukativo-arsimor në institucionet edukativo-arsimore dhe aftësuese (IEAA) të arsimit para-universitar me përfshirje të aspekteve gjinore, i miratuar","K3 2022","ERA",1]
["Takime informuese në të gjitha DKA-të, të realizuara","Takime informuese në të gjitha DKA-të, të realizuara","Takime informuese në të gjitha DKA-të, të realizuara","K4 2022","ERA",1]
["Trajnime me stafin e 6 qendrave burimore, trajnime me edukatoret e nivelit parashkollor, para-fillor si dhe mësimdhënësit e shkollave fillore, të mesme të ulëta dhe të larta","Trajnime me stafin e 6 qendrave burimore, trajnime me edukatoret e nivelit parashkollor, para-fillor si dhe mësimdhënësit e shkollave fillore, të mesme të ulëta dhe të larta","Trajnime me stafin e 6 qendrave burimore, trajnime me edukatoret e nivelit parashkollor, para-fillor si dhe mësimdhënësit e shkollave fillore, të mesme të ulëta dhe të larta","K3 2022","ERA",1]
["Trajnimi i institucioneve dhe ekipeve vlerësuese komunale dhe parashkollore për përdorim të instrumenteve për vlerësimin e fëmijëve me nevoja të veçanta","Trajnimi i institucioneve dhe ekipeve vlerësuese komunale dhe parashkollore për përdorim të instrumenteve për vlerësimin e fëmijëve me nevoja të veçanta","Trajnimi i institucioneve dhe ekipeve vlerësuese komunale dhe parashkollore për përdorim të instrumenteve për vlerësimin e fëmijëve me nevoja të veçanta","K3 2022","ERA",1]
["Financimi i mjaftueshëm i qendrave ekzistuese të të mësuarit","Financimi i mjaftueshëm i qendrave ekzistuese të të mësuarit","Financimi i mjaftueshëm i qendrave ekzistuese të të mësuarit","K4 2022","ERA",0]
["20 komuna dhe shkolla për zbatimin e platformës për parandalim dhe reagim ndaj braktisjes dhe dhunës, të mbështetura","20 komuna dhe shkolla për zbatimin e platformës për parandalim dhe reagim ndaj braktisjes dhe dhunës, të mbështetura","20 komuna dhe shkolla për zbatimin e platformës për parandalim dhe reagim ndaj braktisjes dhe dhunës, të mbështetura","K4 2022","ERA",1]
["Zbatimi i instruksioneve dhe udhëzuesit për themelimin dhe funksionimin e Qendrave Mësimore","Zbatimi i instruksioneve dhe udhëzuesit për themelimin dhe funksionimin e Qendrave Mësimore","Zbatimi i instruksioneve dhe udhëzuesit për themelimin dhe funksionimin e Qendrave Mësimore","K4 2022","ERA",1]
["Përqindja",{"$nulls":4},{"v":0.67,"d":"67%"}]
["Rezultati i përgjithshëm",{"$nulls":4},7]
["Ministria e Bujqësisë, Pylltarisë dhe Zhvillimit Rural"]
["MBPZHR","Perkrahja bujqesise dhe zhvillimit rural","Projektligji për organizimin e tregut të përbashkët të produkteve bujqësore, i miratuar","K1 2023","PKIE",1]
["MBPZHR","Perkrahja bujqesise dhe zhvillimit rural","Projektligji për tokën bujqësore, i miratuar","K4 2023","PKIE",1]
["MBPZHR","Perkrahja bujqesise dhe zhvillimit rural","Programi për bujqësi dhe zhvillim rural 2022-2027, i miratuar","K1 2023","PKIE",1]
["MBPZHR","Perkrahja bujqesise dhe zhvillimit rural","Plani kombëtar për bujqësi organike, i miratuar","K2 2023","PKIE",1]
["MBPZHR","Avancimi i sigurisë së ushqimit, fitosanitarise dhe veterinarisë","Projektligj i për veterinarinë, i miratuar","K4 2023","PKIE",0]
["MBPZHR","Avancimi i sigurisë së ushqimit, fitosanitarise dhe veterinarisë","Plani për avancimin e ndërmarrjeve agro-ushqimore, i miratuar","K4 2023","PKIE",0]
["MBPZHR","Avancimi i sigurisë së ushqimit, fitosanitarise dhe veterinarisë","Inventarizimi i peshkut (pilotprojekt) në një (1) pellg lumor, i finalizuar","K4 2023","PKIE",1]
["Përqindja",{"$nulls":4},{"v":0.71,"d":"71%"}]
["Rezultati i përgjithshëm",{"$nulls":4},8]
["Ministria e Punëve të Brendshme"]
["MPB","Ofrimi i sherbimeve cilesore publike","Projektligji për plotësim-ndryshim e ligjeve që përmbajnë procedura të veçanta administrative dhe harmonizimin e tyre me ligjin për procedurën e përgjithshme administrative, faza e dytë, i miratuar","K3 2023","PKIE",1]
["MPB","Ofrimi i sherbimeve cilesore publike","Së paku 50 shërbime të reja në platformën eKosova, të funksionalizuar","K4 2023","PKIE",1]
["MPB","Ofrimi i sherbimeve cilesore publike","Sistemi ARIS dhe Sistemi Qendror për Regjistrim Civil, të funksionalizuar dhe ndërlidhur","K2 2023","ERA",0]
["MPB","Ofrimi i sherbimeve cilesore publike","Të paktën 20% të projektligjeve ekzistuese, draft ligjeve, akteve nënligjore dhe udhëzimeve administrative që përmbajnë procedura të veçanta administrative dhe janë pjesë e programit legjislativ, të harmonizuara me LPPA","K4 2021","ERA",1]
["MPB","Ofrimi i sherbimeve cilesore publike","Faza e tretë e digjitalizimit të librave të skanuar, përkatësisht verifikimi i të dhënave dhe lidhja/përputhja e të dhënave, e zbatuar","K4 2022","ERA",1]
["MPB","Ofrimi i sherbimeve cilesore publike","Ofrimi i shërbimeve të gjendjes civile në komunat veriore","K4 2022","ERA",1]
["MPB","Ofrimi i sherbimeve cilesore publike","Rishikimi i kornizës ligjore dhe popullimi i regjistrit qendror me të gjitha të dhënat e qytetarëve, përfshirë ato historike, duke zvogëluar rastet e personave pa dokumente","K4 2022","ERA",0]
["MPB","Krijimi i administrates Evropiane publike","Projektligji për plotësim-ndryshim e Ligjit për Organizimin dhe Funksionimin e Administratës Shtetërore dhe Agjencive të Pavarura, i miratuar","K3 2023","PKIE",0]
["MPB","Krijimi i administrates Evropiane publike","Platforma digjitale për raportimin mbi zbatimin e kornizës strategjike të RAP, e funksionalizuar","K1 2023","PKIE",1]
["MPB","Krijimi i administrates Evropiane publike","Gjashtë (6) rregullore për zbatimin e Ligjit për Zyrtarët Publikë, të plotësuara-ndryshuara","K4 2021","ERA",1]
["MPB","Krijimi i administrates Evropiane publike","Memorandum shpjegues për ligjin për inspektim administrativ, i hartuar","K4 2021","ERA",1]
["MPB","Krijimi i administrates Evropiane publike","Projektligji për inspektimin administrativ, i miratuar","K2 2022","ERA",1]
["MPB","Racionalizimi i agjencive","Projektligji për valën e tretë të racionalizimit të agjencive, i miratuar","K4 2023","PKIE\nERA (K1 2023)",0]
["MPB","Racionalizimi i agjencive","Projektligji për valën e dytë të racionalizimit të agjencive, i miratuar","K2 2022","ERA",1]
["MPB","Racionalizimi i agjencive","Koncept dokumenti për valën e tretë të racionalizimit të agjencive, i miratuar","K3 2022","ERA",1]
["MPB","Racionalizimi i agjencive","Koncept dokumenti për valën e katërt të racionalizimit të agjencive, i miratuar","K4 2022","ERA",1]
["MPB","Racionalizimi i agjencive","Plani për racionalizimin e agjencive, i rishikuar","K2 2023","PKIE",0]
["MPB","Zbatimi i politikave efektive te migrimit","Së paku tridhjetekatër (34) prej tridhjetetetë (38) planeve lokale të veprimit për riintegrim, të miratuara","K4 2023","PKIE",1]
["MPB","Zbatimi i politikave efektive te migrimit","Qarkorja informative për zbatimin e politikave për riintegrim të qëndrueshëm, e hartuar","K4 2023","PKIE",1]
["MPB","Zbatimi i politikave efektive te migrimit","Udhëzuesi për monitorimin e integrimit të të huajve, i hartuar","K4 2023","PKIE",1]
["MPB","Zbatimi i politikave efektive te migrimit","Profili i Zgjeruar i Migrimit 2018- 2022, i miratuar","K4 2023","PKIE",1]
["MPB","Zbatimi i politikave efektive te migrimit","Profili i Lehtë i Migrimit 2022, i miratuar","K4 2023","PKIE",1]
["MPB","Zbatimi i politikave efektive te migrimit","Trajnim i trajnerëve (TT) me pjesëmarrjen e së paku dhjetë (10) zyrtarëve të nivelit qendror dhe lokal, për integrimin e të huajve, i mbajtur","K4 2023","PKIE",1]
["MPB","Zbatimi i politikave efektive te migrimit","Së paku pesë (5) trajnime, për 400 zyrtarë të nivelit qendror dhe lokal, për zbatimin e politikave për riintegrimin dhe integrimin e të huajve, të mbajtur","K4 2023","PKIE",1]
["MPB","Zbatimi i politikave efektive te migrimit","Së paku dy (2) zyrtarë në Qendrën e Përkohshme të Pritjes, të sistemuar","K4 2023","PKIE",1]
["MPB","Zbatimi i politikave efektive te migrimit","Së paku 60 gra ose vajza përfituese nga skemat e riintegrimit dhe integrimit të qëndrueshëm","K4 2023","PKIE",1]
["MPB","Zbatimi i politikave efektive te migrimit","Projektligji për shtetësinë, i plotësuar-ndryshuar","K4 2022","ERA",0]
["MPB","Zbatimi i politikave efektive te migrimit","Projektligji për plotësim - ndryshimin e Ligjit për të Huajt, i miratuar","K3 2023","PKIE",0]
["MPB","Zbatimi i politikave efektive te migrimit","Së paku tre (3) trajnime në kuadër të Udhërrëfyesit të bashkëpunimit me EUAA, me pjesëmarrjen e së paku tre (3) zyrtarëve të azilit, të organizuara","K4 2023","PKIE",1]
["MPB","Zbatimi i politikave efektive te migrimit","Projektligji për banesa dhe vendbanime, i plotësuar-ndryshuar","K4 2022","ERA",0]
["MPB","Avancimi i menaxhimit te integruar te kuijve","Programi i TI -së, me opsionin QlikView, për të përfshirë Sistemin e Menaxhimit të Rasteve (CMS) dhe Platformën e Inteligjencës Kufitare (BI), i avancuar","K4 2023","PKIE",1]
["MPB","Avancimi i menaxhimit te integruar te kuijve","Ndërlidhja e NjIP -së, me së paku tre (3) operatorë për të pranuar të dhëna REU, e funksionalizuar","K4 2023","PKIE",1]
["MPB","Avancimi i menaxhimit te integruar te kuijve","Projektligji për plotësim -ndryshim e Ligjit për Kontrollin dhe Mbikëqyrjen e Kufirit Shtetëror, i miratuar","K4 2023","PKIE",1]
["MPB","Avancimi i menaxhimit te integruar te kuijve","Plani i veprimit i QKMK, i zbatuar plotësisht","K4 2021","ERA",0]
["MPB","Luftimi i krimit të organizuar dhe bashkëpunimi policor","Departamenti për Inteligjencë dhe Analizë në PK, i themeluar","K4 2023","PKIE",1]
["MPB","Luftimi i krimit të organizuar dhe bashkëpunimi policor","Së paku njëzet (20) analistë të trajnuar në fushën e analizës","K4 2023","PKIE",1]
["MPB","Luftimi i krimit të organizuar dhe bashkëpunimi policor","Së paku 200 policë sektorialë (policë të lagjes), të caktuar","K4 2023","PKIE",1]
["MPB","Luftimi i krimit të organizuar dhe bashkëpunimi policor","Njësia e Veçante e Hetimeve në PK, e themeluar në përputhje me Ligjin për Prokurorinë Speciale","K4 2023","PKIE",1]
["MPB","Luftimi i krimit të organizuar dhe bashkëpunimi policor","Së paku dy (2) trajnime të përbashkëta polici -prokurori, për së paku dhjetë (10) zyrtarë policorë, për hetime financiare, konfiskimin e aseteve dhe mbrojtjen efektive të dëshmitarëve, të mbajtur","K4 2023","PKIE",1]
["MPB","Luftimi i krimit të organizuar dhe bashkëpunimi policor","Zyrtari ndërlidhës me EUROPOL, i sistemuar","K1 2023","PKIE",1]
["MPB","Luftimi i krimit të organizuar dhe bashkëpunimi policor","Pjesëmarrja në së paku katër (4) aktivitete në kuadër të EMPACT","K4 2023","PKIE",1]
["MPB","Luftimi i krimit të organizuar dhe bashkëpunimi policor","Projektligji për plotësim - ndryshimin e Ligjit për Armë, i miratuar","K4 2023","PKIE",1]
["MPB","Luftimi i krimit të organizuar dhe bashkëpunimi policor","UA për Ekipet e Përbashkëta të Hetimit, i miratuar","K3 2021","ERA",0]
["MPB","Luftimi i krimit të organizuar dhe bashkëpunimi policor","Plani i Përbashkët në mes të Policisë së Kosovës dhe Guardia di Finanza, i hartuar","K4 2021","ERA",0]
["MPB","Lufta kunder terrorizmit","Raportet gjashtëmujore për zbatimin e Planit të Përbashkët të Veprimit BE – Ballkan Perëndimor kundër Ekstremizmit të Dhunshëm dhe Terrorizmit, të hartua","K4 2023","PKIE",1]
["MPB","Lufta kunder terrorizmit","Raporti TeSAT për EUROPOL, i hartuar","K4 2023","PKIE",1]
["MPB","Lufta kunder terrorizmit","Strategjia për parandalimin e terrorizmit dhe ekstremizmit të dhunshëm, e miratuar","K4 2021","ERA",1]
["Përqindja",{"$nulls":4},{"v":0.77,"d":"77%"}]
["Rezultati i përgjithshëm",{"$nulls":4},8]
["Ministria e Industrisë, Ndërmarrësisë dhe Tregtisë"]
["MINT",null,"Rregullorja për plotësim - ndryshimin e Rregullores (MINT) nr. 01/2018 për Etiketimin dhe Shënjimin e Produkteve të Tekstilit, e miratuar","K3 2023","PKIE",1]
["MINT",null,"Vendimi për publikimin e listës me titujt dhe referencat e standardeve të harmonizuara për pajisjet elektrike të destinuara për përdorim brenda kufijve të caktuar të tensionit, i miratuar","K3 2023","PKIE",1]
["MINT",null,"Vendimi për publikimin e listës me titujt dhe referencat e standardeve të harmonizuara për pajtueshmërinë elektromagnetike, i miratua","K3 2023","PKIE",1]
["MINT",null,"Koncept dokumentit për fushën e akreditimit, i miratuar","K3 2023","PKIE",0]
["MINT",null,"Njësia për informimin e bizneseve, e funksionalizuar","K4 2023","PKIE",1]
["MINT",null,"Skema e Akreditimit për trupat certifikuese (EN ISO/IEC 17065), e themeluar dhe e funksionalizuar","K4 2023","PKIE",1]
["MINT",null,"Laboratori i forcës dhe termometrisë, i akredituar","K4 2023","PKIE",1]
["MINT",null,"Së paku dhjetë (10) zyrtarë të rinj në inspektoratin e tregut, të rekrutua","K3 2023","PKIE",0]
["MINT",null,"Së paku pesë (5) zyrtarë të rinj në AMK, të rekrutuar","K2 2023","PKIE",0]
["MINT",null,"Së paku dhjetë (10) zyrtarë të fushës së sigurisë së produkteve, të trajnuar","K3 2023","PKIE",1]
["MINT",null,"Standardi EN ISO/IEC 17020 për laboratorët e metrologjisë ligjore (laboratori i masës, laboratori vëllim rrjedhje, laboratori i matjeve elektrike dhe laboratori i presionit), i zbatuar","K4 2023","PKIE",1]
["MINT",null,"UA për biokarburante, i miratuar","K2 2022","ERA",0]
["MINT",null,"Sistemi online për shitjen e standardeve, i funksionalizuar","K4 2023","PKIE",1]
["MINT",null,"Projektligji për regjistrin e pronarëve përfitues, i miratuar","K4 2023","PKIE",1]
["MINT",null,"Projektligji për shoqëritë tregtare, i miratuar","K4 2023","PKIE",1]
["MINT",null,"Së paku dy (2) sektorë të ri të shërbimeve, të digjitalizuar","K4 2023","PKIE",1]
["MINT",null,"Ueb-faqja për pikën e vetme të kontaktit, e krijuar dhe e lansuar","K4 2023","PKIE",1]
["MINT",null,"Strategjia për zhvillimin e industrisë dhe mbështetje të biznesit, e miratuar","K1 2023","PKIE",1]
["MINT",null,"Agjencia për përkrahjen e ndërmarrjeve, e themeluar dhe funksionalizuar","K3 2023","PKIE",0]
["MINT",null,"Analiza e ndikimit të zonave ekonomike në zhvillimin e NVM, e kryer","K4 2023","PKIE",1]
["MINT",null,"Së paku dyzet (40) biznese përfituese të granteve që u ndihmojnë bizneseve për të rritur kapacitetet prodhuese dhe zbatojnë standardet e kërkuara në tregun e BE -së","K4 2023","PKIE",1]
["MINT",null,"Së paku 20 biznese (10 deri në K2 2022 dhe 10 deri në K2 2023) të subvencionuara në formë të granteve për certifikim të produkteve","K2 2023","ERA",1]
["MINT",null,"Struktura organizative e KIESA-së e miratuar e cila adreson aspektet kryesore të përmirësimit të performancës: ndarjen e përgjegjësive, burimeve financiare dhe kapaciteteve njerëzore","K2 2022","ERA",0]
["MINT",null,"Mekanizmi i ankesës, i krijuar","K1 2022","ERA",0]
["MINT",null,"Programi i kujdesit, i miratuar","K4 2022","ERA",0]
["MINT",null,"Njësia e kujdesit për investitorët, e themeluar","K1 2022","ERA",0]
["MINT",null,"Vlerësimi i performancës së skemave mbështetëse për bizneset të KIESA-s, i realizuar","K4 2022","ERA",0]
["MINT",null,"Skema e Akreditimit për trupat certifikuese (EN ISO/IEC 17065) e themeluar dhe e funksionalizuar","K1 2022","ERA",0]
["MINT",null,"Së paku dy (2) zyrtarë të rekrutuar në Agjencinë e Metrologjisë","K4 2022","ERA",0]
["MINT",null,"Së paku një (1) laborator i ri në Agjencinë e Metrologjisë i themeluar","K4 2022","ERA",1]
["MINT",null,"Njësia për informimin e bizneseve në lidhje me standardet e themeluar","K4 2022","ERA",1]
["MINT",null,"Pika e vetme e kontaktit, e themeluar dhe e funksionalizuar","K1 2022","ERA",0]
["MINT",null,"UA mbi kërkesat e përcaktuara në relacion me komunikimin tregtar përfshi reklamimin apo marketingun, i miratuar","K4 2023","PKIE",1]
["MINT",null,"Programi për pronësi industriale, e miratuar","K1 2023","PKIE",0]
["MINT",null,"Së paku tre (3) trajnime për zyrtarët e Agjencisë së Pronësisë Industriale, të realizuara","K4 2023","PKIE",1]
["MINT",null,"Së paku një (1) produkt i regjistruar sipas treguesit gjeografik","K4 2023","PKIE",1]
["MINT",null,"Dokumenti për politika tregtare, i miratuar","K3 2023","PKIE",0]
["MINT",null,"Një (1) zyrtar në Departamentin e Tregtisë, i rekrutuar","K3 2023","PKIE",1]
["Përqindja",{"$nulls":4},{"v":0.61,"d":"61%"}]
["Rezultati i përgjithshëm",{"$nulls":4},7]
["Ministria e Drejtësisë"]
["MD","Avancimi i luftes kunder korrupsioni","Projektligji për plotësim - ndryshimin e Ligjit për Administrimin e Pasurisë së Sekuestruar dhe të Konfiskuar, i miratuar","K3 2023","PKIE",0]
["MD","Sigurimi i drejtave themelore te qytetareve","Marrëveshja për bashkëpunim juridik me Francën, e nënshkrua","K3 2023","PKIE",0]
["MD","Sigurimi i drejtave themelore te qytetareve","Koncept dokumenti për realizimin e të drejtave civile përfshirë të drejtën e palëve për gjykim brenda kohës së arsyeshme, i miratuar","K3 2023","PKIE",1]
["MD","Sigurimi i drejtave themelore te qytetareve","Projektligji për mosmarrëveshjet administrative, i miratuar","K4 2023","PKIE",1]
["MD","Sigurimi i drejtave themelore te qytetareve","Koncept Dokumenti për realizimin e të drejtave civile përfshirë të drejtën e palëve për gjykim brenda kohës se arsyeshme","K4 2023","ERA",1]
["MD","Sigurimi i drejtave themelore te qytetareve","Projektligji për parandalimin dhe mbrojtjen nga dhuna në familje dhe dhunën në baza gjinore, i miratuar","K4 2023","ERA",1]
["Përqindja",{"$nulls":4},{"v":0.67,"d":"67%"}]
["Rezultati i përgjithshëm",{"$nulls":4},7]
["\nMinistria e Financave, Punës dhe Transfereve"]
["MFPT","Ekzistenca e ekonomisë funksionale të tregut","Numri i trajnimeve të mbajtura për Departamentin e Makros në MFPT dhe Njësinë për Monitorimin e NPve në ME përmes projektit rajonal të asistencë teknike të FMN-FAD të financuar nga BE","K4 2023","PKIE",1]
["MFPT","Ekzistenca e ekonomisë funksionale të tregut","Raportimi i rregullt gjashtëmujor i zbatimit tё Planit tё Veprimit të SMFP 2022-2024","K3 2023","PKIE",1]
["MFPT","Ekzistenca e ekonomisë funksionale të tregut","Raportimi i rregullt vjetor i zbatimit të Planit të Veprimit tё SMFP 2022- 2024","K2 2023","PKIE",1]
["MFPT","Ekzistenca e ekonomisë funksionale të tregut","Hartimi i analizës së rreziqeve fiskale, përfshirë rreziqet që vijnë nga NP-të, e përfshirë në kornizën makro-fiskale, në dokumentet strategjike si KASh, ligji i buxhetit dhe PRE","K4 2023","PKIE",1]
["MFPT","Ekzistenca e ekonomisë funksionale të tregut","Raporte tremujore financiare dhe të performancës për të gjitha NP-të, të përgatitura","K4 2023","PKIE",1]
["MFPT","Krijimi i vendeve te reja pune dhe mbrojtja sociale e qytetareve ","Plani për Zbatimin e Skemës së Garantuar për të Rinj, i pilotuar","K4 2023","PKIE",1]
["MFPT","Krijimi i vendeve te reja pune dhe mbrojtja sociale e qytetareve ","Numri i grave të përfshira në masat aktive të tregut të punës, i rritur","K4 2023","PKIE",1]
["MFPT","Krijimi i vendeve te reja pune dhe mbrojtja sociale e qytetareve ","Numri inspektorëve të punës i rritur për 100 inspektorë shtesë","K4 2023","PKIE\nERA (K4 2022)",1]
["MFPT","Krijimi i vendeve te reja pune dhe mbrojtja sociale e qytetareve ","Numri i inspektimeve nga Inspektorati i Punës, i rritur","K4 2023","PKIE",1]
["MFPT","Krijimi i vendeve te reja pune dhe mbrojtja sociale e qytetareve ","Skema e grantit për zanate","K4 2022","ERA",0]
["MFPT","Krijimi i vendeve te reja pune dhe mbrojtja sociale e qytetareve ","Projektligji për skemën e ndihmave sociale, i miratuar","K2 2022","ERA",0]
["MFPT","Krijimi i vendeve te reja pune dhe mbrojtja sociale e qytetareve ","Projektligji për sigurinë dhe shëndetin në punë, i hartuar dhe miratuar","K2 2021","ERA",0]
["MFPT","Krijimi i vendeve te reja pune dhe mbrojtja sociale e qytetareve ","Projektligji i punës, i miratuar","K2 2022","ERA",0]
["MFPT","Krijimi i vendeve te reja pune dhe mbrojtja sociale e qytetareve ","Sistemi i Teknologjisë së Informacionit të Inspektoratit të Punës, i themeluar","K4 2022","ERA",0]
["MFPT","Krijimi i vendeve te reja pune dhe mbrojtja sociale e qytetareve ","Programi shtetëror për inkurajimin e investimeve në efiçiencën e energjisë duke subvencionuar familjet dhe bizneset që investojnë në këtë fushë, i miratuar","K4 2022","ERA",0]
["MFPT","Lëvizja e lirë e kapitalit","Projektligji për shërbimet e pagesave, i miratuar","K4 2023","PKIE",0]
["MFPT","Lëvizja e lirë e kapitalit","Koncept dokumenti për parandalimin e pastrimit të parave dhe luftimin e financimit të terrorizmit, i miratuar","K1 2023","PKIE",1]
["MFPT","Lëvizja e lirë e kapitalit","Udhëzuesit për faktorët e rrezikut, të hartuar dhe miratuar","K4 2023","PKIE",1]
["MFPT","Lëvizja e lirë e kapitalit","Memorandum mirëkuptimi për mbikëqyrjen e pajtueshmërisë mes NJIF dhe BQK, i nënshkruar","K4 2023","PKIE",1]
["MFPT","Lëvizja e lirë e kapitalit","Të paktën dy (2) aktivitetev mbikëqyrëse të mentorimit, të zhvilluara","K4 2023","PKIE",1]
["MFPT","Lëvizja e lirë e kapitalit","Numri i ngritur i raporteve të pranuara të transaksioneve / aktiviteteve të dyshimta","K4 2023","PKIE",1]
["MFPT","Lëvizja e lirë e kapitalit","Metodologjitë për vlerësim të rrezikut, të rishikuara/hartuara","K3 2023","PKIE",1]
["MFPT","Politikat e favorshme tatimore dhe doganore","Projekt -kodi për plotësim - ndryshimin e Kodit Doganor dhe të Akcizave në Kosovë, i miratuar","K2 2023","PKIE",1]
["MFPT","Politikat e favorshme tatimore dhe doganore","Luftimi i ekonomisë joformale dhe mashtrimit doganor përmes rritjes së bashkëpunimit dhe koordinimit ndërmjet Doganës, agjencive të zbatimit të ligjit dhe institucioneve të tjera relevante, e matur permes numrit te inspektimeve të realizuara, numri i operacioneve të ndërmarra, rezultatet e arritura","K4 2023","PKIE",1]
["MFPT","Politikat e favorshme tatimore dhe doganore","Zhvendosja në pronë publike dhe funksionalizimi i plotë për së paku një (1) terminali doganor","K4 2023","PKIE",1]
["MFPT","Politikat e favorshme tatimore dhe doganore","Koncept dokumenti për rishikimin e politikave tatimore, i miratuar","K2 2023","PKIE",0]
["MFPT","Politikat e favorshme tatimore dhe doganore","Numri i aktiviteteve në kuadër të projekteve për përmirësimin e përmbushjes tatimore, i rritur","K4 2023","PKIE",1]
["MFPT","Politikat e favorshme tatimore dhe doganore","Numri i kontrolleve dhe vizitave përmbushëse të bazuara në rrezik, i rritur","K4 2023","PKIE",1]
["MFPT","Politikat e favorshme tatimore dhe doganore","Numri i veprimeve të ndërmarra për të përmirësuar pajtueshmërinë tatimore","K2 2023","ERA",1]
["MFPT","Prokurimi publik dhe kontrolli financiar","Projektligji për plotësim - ndryshimin e Ligjit për Prokurimin Publik, i miratuar","K1 2023","PKIE\nERA (K1 2022)",0]
["MFPT","Prokurimi publik dhe kontrolli financiar","Projektligji për plotësimndryshimin e Ligjit për Auditorin e Përgjithshëm dhe Zyrën Kombëtare të Auditimit të Kosovës, i miratuar","K2 2023","PKIE",0]
["MFPT","Prokurimi publik dhe kontrolli financiar","Komitetet e auditimit të brendshëm në të gjitha organizatat buxhetore, përfshirë edhe nivelin komunal, të themeluara","K2 2023","PKIE",1]
["MFPT","Prokurimi publik dhe kontrolli financiar","Koncept Dokumenti për themelimin e një trupi fiskal të pavarur i miratuar pas konsultimit me palët e interesit përfshirë edhe BE-në","K4 2021","ERA",0]
["MFPT","Ndihma shtetërore, ne harmoni me rregullat e BE-se","Pesedhjete (50) sesione informuese për komunat, ministritë e linjës, institucionet rregullative dhe atyre të drejtësisë","K2 2023","ERA",1]
["MFPT","Ndihma shtetërore, ne harmoni me rregullat e BE-se","Numri i skemave të harmonizuara me Rregullat e Ndihmës Shtetërore","K1 2023","ERA",0]
["MFPT","Ndihma shtetërore, ne harmoni me rregullat e BE-se","Projektligji për ndihmë shtetërore, i rishikuar","K4 2022","ERA",0]
["MFPT","Ndihma shtetërore, ne harmoni me rregullat e BE-se","Rregullorja për Ndihmën Horizontale, e miratuar ","K4 2022","ERA",0]
["MFPT","Ndihma shtetërore, ne harmoni me rregullat e BE-se","Numri i skemave shtesë të njoftuara në DNSH","K4 2023","PKIE",1]
["Përqindja",{"$nulls":4},{"v":0.63,"d":"63%"}]
["Rezultati i përgjithshëm",{"$nulls":4},7]
["Ministria për Komunitete dhe Kthim"]
["MKK",null,"Strategjia për mbrojtjen dhe promovimin e të drejtave të komuniteteve dhe pjesëtarëve të tyre, e miratuar","K1 2023","PKIE",1]
["MKK",null,"Deri në 56 të zhvendosur dhe të cenueshëm social në Komunën e Graçanicës, të sistemuar në njësi banimi të përhershëm","K4 2023","PKIE",1]
["MKK",null,"Pesë (5) takime në nivelin komunal, sipas rajoneve, për zbatimin e Strategjisë për Mbrojtjen dhe Promovimin e të Drejtave të Komuniteteve dhe Pjesëtarëve të tyre, të mbajtur","K4 2023","PKIE",1]
["MKK",null,"Grupi koordinues ndërministror për zgjidhje të qëndrueshme për personat e zhvendosur, i themeluar","K4 2021","ERA",0]
["Përqindja",{"$nulls":4},{"v":0.75,"d":"75%"}]
["Rezultati i përgjithshëm",{"$nulls":4},8]
["Ministria e Shëndetësisë"]
["MSH","Mbrojtja e shëndetit","UA për masat për parandalimin e abuzimit me substanca narkotike dhe psikotrope për fëmijë, i miratuar","K2 2023","PKIE",1]
["MSH","Mbrojtja e shëndetit","UA për masat për ndihma mjekësore, psikologjike, rehabilitim dhe ri integrim të fëmijës viktimë të abuzimit, i miratuar","K2 2023","PKIE",1]
["MSH","Mbrojtja e shëndetit","UA për vërejtjet e kombinuara në njësinë e paketimit të duhanit, i miratuar","K2 2023","PKIE",1]
["MSH","Mbrojtja e shëndetit","Lista dhe çmimorja e shërbimeve shëndetësore, të hartuara","K1 2022","ERA",0]
["MSH","Mbrojtja e shëndetit","Projektligji për parandalimin dhe kontrollin e sëmundjeve ngjitëse, i miratuar","K2 2022","ERA",1]
["MSH","Forcimi i funksioneve kyçe të sistemit shëndetësor","Strategjia sektoriale e shëndetësisë 2022-2032, e hartuar","K4 2021","ERA",0]
["MSH","Forcimi i funksioneve kyçe të sistemit shëndetësor","Projektligji për sigurime shëndetësore, i miratuar","K4 2021","ERA",0]
["MSH","Forcimi i funksioneve kyçe të sistemit shëndetësor","Projektligji për shëndetësi, i miratuar","K2 2022","ERA",0]
["MSH","Forcimi i funksioneve kyçe të sistemit shëndetësor","UA për zbatimin e lirimit nga pagesa e premiumeve, bashkë-pagesat dhe bashkëfinancimi për shërbime shëndetësore, i hartuar","K1 2022","ERA",0]
["MSH","Forcimi i funksioneve kyçe të sistemit shëndetësor","UA për skemën e barnave jashtë-spitalore, i hartuar","K1 2022","ERA",0]
["MSH","Forcimi i funksioneve kyçe të sistemit shëndetësor","UA për trajtim mjekësor jashtë institucioneve shëndetësore publike, i plotësuar-ndryshuar","K1 2022","ERA",0]
["MSH","Forcimi i funksioneve kyçe të sistemit shëndetësor","Studimi i fizibilitetit për SISh, i kryer","K4 2021","ERA",1]
["Përqindja",{"$nulls":4},{"v":0.42,"d":"42%"}]
["Rezultati i përgjithshëm",{"$nulls":4},5]
["Zyra e Kryeministrit"]
["ZKM","Krijimi i administrates efektive publike","Raporti vjetor për vlerësimin e performancës së agjencive të ekzekutive, i hartuar","K2 2023","PKIE",1]
["ZKM","Krijimi i administrates efektive publike","Raporti final për performancën e agjencive ekzekutive, i miratuar nga Qeveria","K2 2023","PKIE",1]
["ZKM","Promovimi i lirive fetare","Projektligji për plotësim-ndryshim e Ligjit për Lirinë Fetare në Kosovë, i \nmiratuar","K1 2023","PKIE\nERA (K3 2022)",1]
["ZKM","Promovimi i lirive fetare","Akte nënligjore në kuadër të ligjit për liritë fetare, të hartuara dhe miratuara","K4 2022","ERA",0]
["ZKM","Zbatimi i rekomandimeve te Avokatit te Popullit","Numri i rekomandimeve të zbatuara të Avokatit të Popullit","K4 2023","PKIE",1]
["ZKM","Zbatimi i rekomandimeve te Avokatit te Popullit","Numri i përgjigjeve të pranuara nga institucionet përgjegjëse lidhur me rekomandimet e adresuara te Avokatit te Popullit","K4 2023","PKIE",1]
["ZKM","Zbatimi i rekomandimeve te Avokatit te Popullit","Ngritja së paku në 60% e zbatimit të rekomandimeve të Avokatit të Popullit dhe 95% sigurimi i përgjigjeve për rekomandimet e adresuara brenda afatit ligjore","K4 2021","ERA",0]
["ZKM","Avancimi i drejtave te njeriut","Korniza e treguesve për të drejtat e njeriut, e zhvilluar","K2 2023","PKIE",1]
["ZKM","Avancimi i drejtave te grave dhe femijeve","Plani Kombëtar për Barazi Gjinore 2023-2026, i miratuar","K4 2023","PKIE",1]
["ZKM","Avancimi i drejtave te grave dhe femijeve","Gjashtëmbëdhjetë (16) UA që rrjedhin nga ligji për mbrojtjen e fëmijëve, të miratuara","K2 2022","ERA",0]
["ZKM","Avancimi i drejtave te grave dhe femijeve","Ngritja e vetëdijes së publikut për parandalimin e dhunës ndaj grave, luftimin e stereotipave gjinorë, dhe të drejtave që garanton korniza ligjore për barazi gjinore duke pergatitur pesë (5) videospote dhe tri (3) tryeza diskutimi","K4 2023","PKIE",1]
["ZKM","Avancimi i drejtave te grave dhe femijeve","UA (masë afirmative) për regjistrimin e pronës së paluajtshme të përbashkët në emër të dy bashkëshortëve, i miratuar","K2 2023","PKIE",1]
["ZKM","Avancimi i drejtave te grave dhe femijeve","Akt nënligjor për zbatimin e buxhetimit gjinor, i miratuar","K4 2023","PKIE",0]
["ZKM","Avancimi i drejtave te grave dhe femijeve","Masa afirmative për rritjen e numrit të grave në pozita vendimmarrëse - niveli ekzekutiv, e miratuar","K4 2023","PKIE",0]
["ZKM","Avancimi i drejtave te grave dhe femijeve","Mbështetja e 10 OJQ-ve që synojnë fuqizimin e rolit të gruas në shoqëri","K4 2023","PKIE",1]
["ZKM","Avancimi i drejtave te grave dhe femijeve","Së paku dhjetë (10) trajnime mbi avancimin e realizimit të të drejtave të trashëgimisë; vendimmarrje; paqe, siguri dhe drejtësi, të mbajtura","K4 2023","PKIE",1]
["ZKM","Krijimi i nje mjedisi te lire per media","Projektligji për plotësim-ndryshim e Ligjit për Komisionin e Pavarur të Mediave, i miratuar","K2 2023","PKIE\nERA (K2 2021)",1]
["Përqindja",{"$nulls":4},{"v":0.71,"d":"71%"}]
["Rezultati i përgjithshëm",{"$nulls":4},8]
["Ministria e Kulturës, Rinisë dhe Sportit"]
["MKRS","Mbrojtja efektive e pronësisë intelektuale","UA për procedurat, kushtet për licencimin e organizatave të menaxhimit kolektiv, i miratuar","K4 2023","PKIE",1]
["MKRS","Mbrojtja efektive e pronësisë intelektuale","Së paku një (1) Shoqatë për Menaxhim Kolektiv në fushën e letërsisë, e licencuar","K4 2023","PKIE",0]
["MKRS","Përmirësimi i zbatimit të të drejtave dhe lirive themelore","Projektligji për trashëgiminë kulturore, i miratuar","K4 2022","ERA",0]
["MKRS","Përmirësimi i zbatimit të të drejtave dhe lirive themelore","Akte nënligjore në kuadër të avancimit të mbrojtjes së trashëgimisë kulturore, të hartuara dhe të miratuara","K4 2022","ERA",0]
["Përqindja",{"$nulls":4},{"v":0.25,"d":"25%"}]
["Rezultati i përgjithshëm",{"$nulls":4},3]
["\nMinistria e Administrimit të Pushtetit Lokal"]
["MAPL",null,"Koncept dokumenti për Ligjin për Dhënien në Shfrytëzim dhe Këmbimin e Pronës së Paluajtshme të Komunës, i miratuar","K1 2023","PKIE",1]
["MAPL",null,"Projektligji për plotësim-ndryshimin e Ligjit për Dhënien në Shfrytëzim dhe Këmbimin e Pronës së Paluajtshme të Komunës, i miratuar","K4 2023","PKIE",1]
["MAPL",null,"Projektligji për plotësim ndryshimin e Ligjit për Bashkëpunim Ndër-komunal, i miratuar","K4 2023","PKIE",0]
["MAPL",null,"UA për administratën e hapur lokale, i miratua","K4 2023","PKIE",1]
["MAPL",null,"Vlerësimi ex-post i legjislacionit mbi mekanizmat e demokracisë lokale, i miratuar","K4 2023","PKIE",1]
["MAPL",null,"Anëtarësimi i Republikës së Kosovës dhe komunave në Partneritetin për Qeverisje të Hapur, i miratuar","K4 2023","PKIE",1]
["MAPL",null,"Platforma shtetërore eKomunat, e funksionalizuar","K4 2023","PKIE",1]
["MAPL",null,"Vendosja e eKiosqeve në 20 Komuna të cilat nuk kanë kapacitete financiare","K4 2023","PKIE",0]
["Përqindja",{"$nulls":4},{"v":0.75,"d":"75%"}]
["Rezultati i përgjithshëm",{"$nulls":4},8]
[]
["Çdo masë vlerësohet sipas të gjitha kritereve me vlerën \"1\" ose vlerën \"0\". Vlera \"1\" paraqet vlerësim pozitiv: që do të thotë se masa është zbatuar, vlera \"0\" një negative: që do të thotë se masa nuk është zbatuar.\n\nPër këtë kriter numërojmë se sa masa janë kryer gjatë periudhës raportuese në krahasim me totalin e masave të planifikuara.\nRezultati përfundimtar vlerësohet si më poshtë:\n\n1. Më e lartë se 0% = 1\n2. Më e lartë se 10% = 2\n3. Më e lartë se 20% = 3\n4. Më e lartë se 30% = 4\n5. Më e lartë se 40% = 5\n6. Më e lartë se 50% = 6\n7. Më e lartë se 60% = 7\n8. Më e lartë se 70% = 8\n9. Më e lartë se 80% = 9\n10. Më e lartë se 90% = 10\n\nKy rezultat më pas transferohet në vlerësimin  e përgjithshëm nën kriteret e kolonës “Shkalla e zbatimit”."]

{"sheet":"Criteria 4","index":4,"n_rows":62,"n_cols":3,"rows_kept":62,"merged":[[0,0,0,2],[2,0,2,2],[5,0,5,1],[6,0,6,2],[9,0,9,1],[10,0,10,2],[14,0,14,1],[15,0,15,2],[18,0,18,1],[19,0,19,2],[22,0,22,1],[23,0,23,2],[32,0,32,1],[33,0,33,2],[35,0,35,1],[36,0,36,2],[42,0,42,1],[43,0,43,2],[45,0,45,1],[46,0,46,2],[48,0,48,1],[49,0,49,2],[52,0,52,1],[53,0,53,2],[56,0,56,1],[57,0,57,2],[59,0,59,1],[61,0,61,2]]}
["Kriteri 4: Vlerësimi i raportit të vendit i BE-së\nÇdo vit Komisioni Evropian publikon raportin vjetor të vendit për Kosovën. Në raport, KE përdor metodologji të matshme që lejon matjen e progresit vjetor të vendit në miratimin e detyrimeve të anëtarësimit në BE sipas përshkrimit të mëposhtëm: (0) kthim prapa; (1) nuk ka përparim; (2) progres i kufizuar; (3) disa përparime; (4) progres i mirë; (5) progres shumë i mirë. Qëllimi i këtij vlerësimi është të faktorizojë progresin që ka bërë çdo ministri e linjës gjatë periudhës së vlerësimit."]
["Institution","Kapitulli i raportit të vendit i BE-së","Vlerësimi i raportit të vendit i BE-së"]
["Ministria e Ekonomisë"]
["ME","Kapitulli 15: Energjia",10]
["ME","Kapitulli 10: Transformimi digjital dhe mediat",-10]
["Score",null,10]
["Ministria e Mjedisit, Planifikimit Hapësinor dhe Infrastrukturës"]
["MMPHI","Kapitulli 14: Politika e transportit",-10]
["MMPHI","Kapitulli 27: Mjedisi dhe ndryshimet klimatike",0]
["Score",null,0]
["Ministria e Arsimit, Shkencës, Teknologjisë dhe Inovacionit"]
["MASHTI","Kapitulli 3: E drejta e themelimit dhe liria për të ofruar shërbime",0]
["MASHTI","Kapitulli 25: Shkenca dhe hulumtimi",10]
["MASHTI","Kapitulli 26: Arsimi dhe kultura",0]
["Score",null,10]
["Ministria e Bujqësisë, Pylltarisë dhe Zhvillimit Rural"]
["MBPZHR","Kapitulli 11: Bujqësia dhe zhvillimi rural",0]
["MBPZHR","Kapitulli 12: \nSiguria ushqimore, politika veterinare dhe fitosanitare",-10]
["Score",null,0]
["Ministria e Punëve të Brendshme"]
["MPB","Reforma e Administratës Publike",0]
["MPB","Kapitulli 24: Drejtësi, liri dhe siguri",0]
["Score",null,0]
["Ministria e Industrisë, Ndërmarrësisë dhe Tregtisë"]
["MINT","Kapitulli 1: Lëvizja e lirë e mallrave",0]
["MINT","Kapitulli 2: Liria e lëvizjes për punëtorët\nKapitulli 3: E drejta e themelimit dhe liria për të ofruar shërbime",-10]
["MINT","Kapitulli 4: Lëvizja e lirë e kapitalit",0]
["MINT","Kapitulli 6: E drejta e shoqërive tregtare",0]
["MINT","Kapitulli 7: E drejta e pronësisë intelektuale",0]
["MINT","Kapitulli 20: Politika e ndërmarrjed dhe industrisë",10]
["MINT","Kapitulli 28: Mbrojtja e konsumatorit dhe shëndetit",0]
["MINT","Kapitulli 30: Marrëdhëniet e jashtme",0]
["Score",null,10]
["Ministria e Drejtësisë"]
["MD","Kapitulli 23: Gjyqësori dhe të drejtat themelore",0]
["Score",null,0]
["Ministria e Financave, Punës dhe Transfereve"]
["MFPT","Ekzistenca e një ekonomie tregu funksionale",0]
["MFPT","Kapitulli 16: Tatimet",0]
["MFPT","Kapitulli 17: Politika ekonomike dhe monetare",0]
["MFPT","Kapitulli 19: Politika sociale dhe punësimi",0]
["MFPT","Kapitulli 29: Bashkimi Doganor",0]
["Score",null,0]
["Ministria për Komunitete dhe Kthim"]
["MKK","Kapitulli 23: Gjyqësori dhe të drejtat themelore",0]
["Score",null,0]
["Ministria e Shëndetësisë"]
["MSH","Kapitulli 28: Mbrojtja e konsumatorit dhe shëndetit",0]
["Score",null,0]
["Zyra e Kryeministrit"]
["ZKM","Reforma e Administratës Publike",0]
["ZKM","Kapitulli 23: Gjyqësori dhe të drejtat themelore",0]
["Score",null,0]
["Ministria e Kulturës, Rinisë dhe Sportit"]
["MKRS","Kapitulli 7: E drejta e pronësisë intelektuale",0]
["MKRS","Kapitulli 23: Judiciary and fundamental rights",0]
["Score",null,0]
["Ministria e Administrimit të Pushtetit Lokal"]
["MAPL","N/A",0]
["Score",null,0]
[]
["Ndryshe nga kriteret e tjera, sipas këtij kriteri ne nuk vlerësojmë secilën masë. Këtu e gjithë ministria vlerësohet me një nga vlerat e mëposhtme: “10”, “0” ose “-10”.\n\nMinistria vlerësohet me vlerën “10” nëse raporti i fundit i vendit ka shënuar progres më të mirë këtë vit se ai i mëparshmi.\nMinistria vlerësohet me vlerën “0” nëse raporti i fundit i vendit nuk ka pasur asnjë ndryshim në performancën e ministrisë këtë vit krahasuar me atë të mëparshëm.\nMinistria vlerësohet me vlerën “-10” nëse raporti i fundit i vendit ka shënuar progres më të vogël këtë vit se ai i mëparshmi.\n\nSë fundi, rezultati më pas transferohet në vlerësimin e përgjithshëm nën kriteret e kolonës “Vlerësimi i Raportit të Vendit të BE-së”."]